Directorate,Department,Expenditure Type,Ref.Doc.1,Vendor Name,Expenditure Amount (exc VAT),Payment Date,
Assurance,Assurance,Advertising,60105671,ASSOCIATION OF ELECTORAL ADMINISTRA,611.00,03/07/2018,
Assurance,Assurance,Stationery,40002917,OFFICE DEPOT UK LTD,32.90,26/07/2018,
Assurance,Assurance,General Office Expenses,40002948,OFFICE DEPOT UK LTD,93.96,26/07/2018,
Assurance,Assurance,Postage,60109720,ROYAL MAIL GROUP LIMITED,44.10,30/07/2018,
Assurance,Assurance,Printing-Contract,60105976,ELECTORAL REFORM SERVICES,"18,071.00",13/07/2018,
Assurance,Assurance,Printing-Contract,60109061,ELECTORAL REFORM SERVICES,"41,583.69",24/07/2018,
Assurance,Assurance,Printing-Contract,60109765,ELECTORAL REFORM SERVICES,133.00,30/07/2018,
Assurance,Assurance,Rents,60107345,HENDON SCHOOL (ACADEMY),67.90,03/07/2018,
Assurance,Assurance,Rents,10014137,SAINT AUGUSTINE'S CHURCH,680.00,13/07/2018,
Assurance,Assurance,Equipment and Materials Purcha,60103017,THOMAS FATTORINI LTD,35.37,31/07/2018,
Assurance,Assurance,Training,80014631,NACO,375.00,17/07/2018,
Assurance,Assurance,Miscellaneous Expenses,80018640,TRAINING SHIP BROADSWORD,260.00,17/07/2018,
Assurance,Assurance,Equipment and Materials Purcha,60108723,BRITISH TELECOM PLC,"5,995.07",23/07/2018,
Assurance,Assurance,Training,60106686,CIPFA BUSINESS LIMITED,175.00,12/07/2018,
Assurance,Assurance,Professional Services,60106553,PRICEWATERHOUSE COOPERS,"19,895.75",12/07/2018,
Assurance,Assurance,Subscriptions,60095678,COMPANIES HOUSE,5.00,09/07/2018,
Assurance,Assurance,Subscriptions,60104458,COMPANIES HOUSE,4.00,09/07/2018,
Assurance,Assurance,Subscriptions,60104672,COMPANIES HOUSE,5.00,09/07/2018,
Assurance,Assurance,Subscriptions,60108302,COMPANIES HOUSE,4.00,12/07/2018,
Assurance,Assurance,Subscriptions,60108315,COMPANIES HOUSE,4.00,12/07/2018,
Assurance,Assurance,Equipment and Materials Purcha,60105690,PRIME PRODUCTION LTD,47.00,16/07/2018,
Assurance,Assurance,Translation Exp / Interpret,60106485,REDACTED - PERSONAL DATA,"1,065.00",31/07/2018,
Balance Sheet,Balance Sheet,Travel Insurance,20037706,ACE EUROPEAN GROUP LIMITED,101.98,30/07/2018,
Balance Sheet,Balance Sheet,Travel Insurance,20037707,ACE EUROPEAN GROUP LIMITED,106.30,30/07/2018,
Balance Sheet,Balance Sheet,Travel Insurance,20037708,ACE EUROPEAN GROUP LIMITED,40.43,30/07/2018,
Balance Sheet,Balance Sheet,Dental Insurance,20037294,DENPLAN LTD,408.20,24/07/2018,
Balance Sheet,Balance Sheet,Dental Insurance,20037297,DENPLAN LTD,437.05,24/07/2018,
Balance Sheet,Balance Sheet,Dental Insurance,20037705,DENPLAN LTD,925.80,30/07/2018,
Balance Sheet,Balance Sheet,Cycle to Work,20037290,HALFORDS,416.67,24/07/2018,
Balance Sheet,Balance Sheet,4004 Menorah High School,20037252,MENORAH HIGH SCHOOL FOR GIRLS,"12,161.33",13/07/2018,
Balance Sheet,Balance Sheet,Technology Benefits,20037291,STORMFRONT RETAIL LTD,"1,457.50",24/07/2018,
Central Expenses,Central Expenses,Subscriptions,60104714,CITY OF LONDON,"114,663.00",24/07/2018,
Central Expenses,Central Expenses,Grant Payments,60106685,CITY OF LONDON,"73,238.00",31/07/2018,
Central Expenses,Central Expenses,Other Establishments - Third P,EBX0235387,LEE VALLEY REGIONAL PARK AUTH.,"28,597.64",12/07/2018,
Central Expenses,Central Expenses,Other Establishments - Third P,EBX0238414,GREATER LONDON AUTHORITY,"49,678.00",26/07/2018,
Central Expenses,Central Expenses,Other Establishments - Third P,EBX0234991,GREATER LONDON AUTHORITY,"3,820,885.00",11/07/2018,
Central Expenses,Central Expenses,Insurance Claims,60109912,BROWNE JACOBSON SOLS.,"2,832.50",30/07/2018,
Central Expenses,Central Expenses,Insurance Claims,80018269,DWP COMPENSATION RECOVERY UNIT,678.00,02/07/2018,
Central Expenses,Central Expenses,Insurance Claims,80018672,DWP COMPENSATION RECOVERY UNIT,647.00,20/07/2018,
Central Expenses,Central Expenses,Insurance Claims,80018693,DWP COMPENSATION RECOVERY UNIT,883.00,20/07/2018,
Central Expenses,Central Expenses,Insurance Claims,80018881,DWP COMPENSATION RECOVERY UNIT,637.00,31/07/2018,
Central Expenses,Central Expenses,Insurance Claims,80018618,ENTERPRISE RENT-A-CAR,"1,960.26",18/07/2018,
Central Expenses,Central Expenses,Insurance Claims,80018668,ENTERPRISE RENT-A-CAR,974.41,20/07/2018,
Central Expenses,Central Expenses,Insurance Claims,80018788,ENTERPRISE RENT-A-CAR,680.72,25/07/2018,
Central Expenses,Central Expenses,Insurance Claims,60108818,GLENDALE COUNTRYSIDE LTD,190.30,26/07/2018,
Central Expenses,Central Expenses,Insurance Claims,60108856,GLENDALE COUNTRYSIDE LTD,314.20,26/07/2018,
Central Expenses,Central Expenses,Insurance Claims,60103500,JOHNSON AUSTIN PARTNERSHIP LLP,525.00,03/07/2018,
Central Expenses,Central Expenses,Insurance Claims,60105381,JOHNSON AUSTIN PARTNERSHIP LLP,375.00,06/07/2018,
Central Expenses,Central Expenses,Insurance Claims,60105415,JOHNSON AUSTIN PARTNERSHIP LLP,500.00,06/07/2018,
Central Expenses,Central Expenses,Insurance Claims,60105421,JOHNSON AUSTIN PARTNERSHIP LLP,375.00,06/07/2018,
Central Expenses,Central Expenses,Insurance Claims,60105429,JOHNSON AUSTIN PARTNERSHIP LLP,225.00,06/07/2018,
Central Expenses,Central Expenses,Insurance Claims,60105449,JOHNSON AUSTIN PARTNERSHIP LLP,"1,270.00",06/07/2018,
Central Expenses,Central Expenses,Insurance Claims,60105469,JOHNSON AUSTIN PARTNERSHIP LLP,"1,550.00",06/07/2018,
Central Expenses,Central Expenses,Insurance Claims,80018273,OAK HILL PARK BOWLS CLUB,"2,190.70",02/07/2018,
Central Expenses,Central Expenses,Insurance Claims,80018384,HW SOLICITORS,"14,412.00",06/07/2018,
Central Expenses,Central Expenses,Insurance Claims,80018413,HORWICH FARRELLY,663.82,09/07/2018,
Central Expenses,Central Expenses,Insurance Claims,80018414,PRODDOW MACKAY LTD,"4,561.15",09/07/2018,
Central Expenses,Central Expenses,Insurance Claims,80018443,ASPREY (WEST LONDON),"1,400.00",09/07/2018,
Central Expenses,Central Expenses,Insurance Claims,80018556,LEIGH DAY CLIENT ACCOUNT,"30,000.00",20/07/2018,
Central Expenses,Central Expenses,Insurance Claims,80018558,LEIGH DAY SOLICITORS,"8,061.30",16/07/2018,
Central Expenses,Central Expenses,Insurance Claims,80018625,FARLEYS SOLICITORS,"5,000.00",18/07/2018,
Central Expenses,Central Expenses,Insurance Claims,80018648,STEPHENSONS SOLICITORS,"3,340.00",18/07/2018,
Central Expenses,Central Expenses,Insurance Claims,80018664,ERSAN & CO SOLICITORS,"4,543.50",20/07/2018,
Central Expenses,Central Expenses,Insurance Claims,80018686,APPROACH DENTISTRY,"1,680.00",20/07/2018,
Central Expenses,Central Expenses,Insurance Claims,80018755,BARNES & PARTNERS,"1,713.00",20/07/2018,
Central Expenses,Central Expenses,Insurance Claims,80018767,FARLEYS SOLICITORS,"5,100.00",24/07/2018,
Central Expenses,Central Expenses,Insurance Claims,80018794,ACTIVE AUTO SOLUTIONS,"1,320.00",25/07/2018,
Central Expenses,Central Expenses,Insurance Claims,80018866,OAK HILL PARK BOWLS CLUB,169.34,27/07/2018,
Central Expenses,Central Expenses,Insurance Claims,80018880,ACCIDENTALLY INJURED LLP,"5,000.00",31/07/2018,
Central Expenses,Central Expenses,Insurance Claims,80018909,KINDERTONS LTD,"6,394.11",31/07/2018,
Central Expenses,Central Expenses,Insurance Claims,80018402,ZENITH INSURANCE,"3,172.54",06/07/2018,
Central Expenses,Central Expenses,Insurance Claims,80018454,ERIDGE UNDERWRITING AGENCY,"2,934.47",06/07/2018,
Central Expenses,Central Expenses,Insurance Claims,80018566,CHURCHILL'S SOLICITORS LTD,"8,843.00",13/07/2018,
Central Expenses,Central Expenses,Insurance Claims,80018567,COURT FUNDS OFFICE,"13,649.26",13/07/2018,
Central Expenses,Central Expenses,Insurance Claims,80018613,RSA,"4,953.91",17/07/2018,
Central Expenses,Central Expenses,Insurance Claims,80018636,THE CENTRE FOR CBT,"1,200.00",17/07/2018,
Central Expenses,Central Expenses,Insurance Claims,80018667,STRATA SOLICITORS LTD,"2,350.00",20/07/2018,
Central Expenses,Central Expenses,Insurance Claims,80018787,MANSFIELD SOLICITORS,"6,603.14",24/07/2018,
Central Expenses,Central Expenses,Insurance Claims,80018791,CARPENTERS SOLICITORS,816.00,24/07/2018,
Central Expenses,Central Expenses,Insurance Claims,80018212,SIMPSON MILLAR LLP,"15,418.00",02/07/2018,
Central Expenses,Central Expenses,Insurance Claims,60108273,WEIGHTMANS LLP,600.00,13/07/2018,
Central Expenses,Central Expenses,Insurance Claims,60108275,WEIGHTMANS LLP,876.00,13/07/2018,
Central Expenses,Central Expenses,Insurance Claims,60108281,WEIGHTMANS LLP,"2,712.00",13/07/2018,
Central Expenses,Central Expenses,Insurance Claims,60108326,WEIGHTMANS LLP,350.00,13/07/2018,
Central Expenses,Central Expenses,Insurance Claims,60108687,WEIGHTMANS LLP,713.00,18/07/2018,
Central Expenses,Central Expenses,Insurance Claims,60108699,WEIGHTMANS LLP,"1,199.00",18/07/2018,
Central Expenses,Central Expenses,Insurance Claims,60109160,WEIGHTMANS LLP,300.00,24/07/2018,
Central Expenses,Central Expenses,Insurance Claims,60109725,WEIGHTMANS LLP,621.00,31/07/2018,
Central Expenses,Central Expenses,Insurance Claims,80018058,REDACTED - PERSONAL DATA,"3,196.09",09/07/2018,
Central Expenses,Central Expenses,Insurance Claims,80018199,REDACTED - PERSONAL DATA,528.00,02/07/2018,
Central Expenses,Central Expenses,Insurance Claims,80018200,REDACTED - PERSONAL DATA,348.28,02/07/2018,
Central Expenses,Central Expenses,Insurance Claims,80018265,REDACTED - PERSONAL DATA,531.87,02/07/2018,
Central Expenses,Central Expenses,Insurance Claims,80018268,REDACTED - PERSONAL DATA,"7,000.00",02/07/2018,
Central Expenses,Central Expenses,Insurance Claims,80018293,REDACTED - PERSONAL DATA,853.95,02/07/2018,
Central Expenses,Central Expenses,Insurance Claims,80018297,REDACTED - PERSONAL DATA,304.40,02/07/2018,
Central Expenses,Central Expenses,Insurance Claims,80018311,REDACTED - PERSONAL DATA,332.79,06/07/2018,
Central Expenses,Central Expenses,Insurance Claims,80018313,REDACTED - PERSONAL DATA,130.00,06/07/2018,
Central Expenses,Central Expenses,Insurance Claims,80018382,REDACTED - PERSONAL DATA,669.00,06/07/2018,
Central Expenses,Central Expenses,Insurance Claims,80018398,REDACTED - PERSONAL DATA,85.99,06/07/2018,
Central Expenses,Central Expenses,Insurance Claims,80018405,REDACTED - PERSONAL DATA,209.33,06/07/2018,
Central Expenses,Central Expenses,Insurance Claims,80018407,REDACTED - PERSONAL DATA,216.77,06/07/2018,
Central Expenses,Central Expenses,Insurance Claims,80018409,REDACTED - PERSONAL DATA,469.44,06/07/2018,
Central Expenses,Central Expenses,Insurance Claims,80018421,REDACTED - PERSONAL DATA,170.00,09/07/2018,
Central Expenses,Central Expenses,Insurance Claims,80018456,REDACTED - PERSONAL DATA,350.00,10/07/2018,
Central Expenses,Central Expenses,Insurance Claims,80018457,REDACTED - PERSONAL DATA,150.00,10/07/2018,
Central Expenses,Central Expenses,Insurance Claims,80018458,REDACTED - PERSONAL DATA,400.00,10/07/2018,
Central Expenses,Central Expenses,Insurance Claims,80018460,REDACTED - PERSONAL DATA,314.49,10/07/2018,
Central Expenses,Central Expenses,Insurance Claims,80018461,REDACTED - PERSONAL DATA,192.00,10/07/2018,
Central Expenses,Central Expenses,Insurance Claims,80018462,REDACTED - PERSONAL DATA,330.00,10/07/2018,
Central Expenses,Central Expenses,Insurance Claims,80018463,REDACTED - PERSONAL DATA,107.93,10/07/2018,
Central Expenses,Central Expenses,Insurance Claims,80018468,REDACTED - PERSONAL DATA,151.60,10/07/2018,
Central Expenses,Central Expenses,Insurance Claims,80018473,REDACTED - PERSONAL DATA,152.15,10/07/2018,
Central Expenses,Central Expenses,Insurance Claims,80018550,REDACTED - PERSONAL DATA,73.99,16/07/2018,
Central Expenses,Central Expenses,Insurance Claims,80018577,REDACTED - PERSONAL DATA,"3,120.00",16/07/2018,
Central Expenses,Central Expenses,Insurance Claims,80018639,REDACTED - PERSONAL DATA,717.88,18/07/2018,
Central Expenses,Central Expenses,Insurance Claims,80018649,REDACTED - PERSONAL DATA,45.60,18/07/2018,
Central Expenses,Central Expenses,Insurance Claims,80018651,REDACTED - PERSONAL DATA,308.86,24/07/2018,
Central Expenses,Central Expenses,Insurance Claims,80018652,REDACTED - PERSONAL DATA,150.00,24/07/2018,
Central Expenses,Central Expenses,Insurance Claims,80018665,REDACTED - PERSONAL DATA,127.00,20/07/2018,
Central Expenses,Central Expenses,Insurance Claims,80018666,REDACTED - PERSONAL DATA,244.01,20/07/2018,
Central Expenses,Central Expenses,Insurance Claims,80018683,REDACTED - PERSONAL DATA,296.90,20/07/2018,
Central Expenses,Central Expenses,Insurance Claims,80018685,REDACTED - PERSONAL DATA,189.19,20/07/2018,
Central Expenses,Central Expenses,Insurance Claims,80018692,REDACTED - PERSONAL DATA,"1,500.00",20/07/2018,
Central Expenses,Central Expenses,Insurance Claims,80018737,REDACTED - PERSONAL DATA,195.54,20/07/2018,
Central Expenses,Central Expenses,Insurance Claims,80018752,REDACTED - PERSONAL DATA,178.49,20/07/2018,
Central Expenses,Central Expenses,Insurance Claims,80018763,REDACTED - PERSONAL DATA,131.24,24/07/2018,
Central Expenses,Central Expenses,Insurance Claims,80018803,REDACTED - PERSONAL DATA,179.09,25/07/2018,
Central Expenses,Central Expenses,Insurance Claims,80018819,REDACTED - PERSONAL DATA,183.44,25/07/2018,
Central Expenses,Central Expenses,Insurance Claims,80018855,REDACTED - PERSONAL DATA,600.00,27/07/2018,
Central Expenses,Central Expenses,Insurance Claims,80018860,REDACTED - PERSONAL DATA,192.00,27/07/2018,
Central Expenses,Central Expenses,Insurance Claims,80018894,REDACTED - PERSONAL DATA,631.97,31/07/2018,
Central Expenses,Central Expenses,Insurance Claims,80018913,REDACTED - PERSONAL DATA,241.95,31/07/2018,
Central Expenses,Central Expenses,Insurance Claims,80018915,REDACTED - PERSONAL DATA,210.00,31/07/2018,
Central Expenses,Central Expenses,Insurance Claims,80018932,REDACTED - PERSONAL DATA,384.00,31/07/2018,
Central Expenses,Central Expenses,Insurance Claims,80018452,REDACTED - PERSONAL DATA,500.00,06/07/2018,
Central Expenses,Central Expenses,Insurance Claims,80018565,REDACTED - PERSONAL DATA,"8,625.00",13/07/2018,
Central Expenses,Central Expenses,Insurance Claims,80018790,REDACTED - PERSONAL DATA,"3,030.00",24/07/2018,
Commercial,Customer Support Group,Building Repairs & Maintenance,60097849,AJS LTD,133.28,30/07/2018,
Commercial,Customer Support Group,Building Repairs & Maintenance,60102633,AJS LTD,52.01,30/07/2018,
Commercial,Customer Support Group,Building Repairs & Maintenance,60105272,AJS LTD,22.29,30/07/2018,
Commercial,Customer Support Group,Building Repairs & Maintenance,60109241,AJS LTD,22.29,30/07/2018,
Commercial,Customer Support Group,Building Repairs & Maintenance,60109257,AJS LTD,52.01,30/07/2018,
Commercial,Customer Support Group,Building Repairs & Maintenance,60109581,AJS LTD,245.19,30/07/2018,
Commercial,Customer Support Group,Building Repairs & Maintenance,60109612,AJS LTD,81.73,30/07/2018,
Commercial,Customer Support Group,Building Repairs & Maintenance,60109626,AJS LTD,52.01,30/07/2018,
Commercial,Customer Support Group,Building Repairs & Maintenance,60109480,OAKRAY LIMITED,"1,350.00",30/07/2018,
Commercial,Customer Support Group,Building Repairs & Maintenance,60049160,AJS LTD,387.75,30/07/2018,
Commercial,Customer Support Group,Building Repairs & Maintenance,60107210,AJS LTD,163.46,02/07/2018,
Commercial,Customer Support Group,Building Repairs & Maintenance,60099945,OAKRAY LIMITED,"1,578.62",13/07/2018,
Commercial,Customer Support Group,Building Repairs & Maintenance,60102917,RGE SERVICES,246.24,27/07/2018,
Commercial,Customer Support Group,Building Repairs & Maintenance,60103716,S W BRUCE & CO LTD,85.00,16/07/2018,
Commercial,Customer Support Group,Building Repairs & Maintenance,60104084,S W BRUCE & CO LTD,75.00,16/07/2018,
Commercial,Customer Support Group,Building Repairs & Maintenance,60107231,AJS LTD,84.00,02/07/2018,
Commercial,Customer Support Group,Cleaning and domestic material,60105584,CHURCHILL CONTRACT SERVICES,"1,032.37",13/07/2018,
Commercial,Customer Support Group,Cleaning and domestic material,60108090,CHURCHILL CONTRACT SERVICES,"1,032.37",30/07/2018,
Commercial,Customer Support Group,Building Repairs & Maintenance,60109719,AJS LTD,114.10,30/07/2018,
Commercial,Customer Support Group,Building Repairs & Maintenance,60109743,AJS LTD,64.00,30/07/2018,
Commercial,Customer Support Group,Other Services,60108194,BLUE 9 SECURITY LIMITED,"24,902.97",11/07/2018,
Commercial,Customer Support Group,Telephones Calls,60105647,BRITISH TELECOM PLC,105.45,06/07/2018,
Commercial,Customer Support Group,Water Services,60107864,CASTLE WATER LTD,869.85,06/07/2018,
Commercial,Customer Support Group,Cleaning and domestic material,60105618,CHURCHILL CONTRACT SERVICES,"11,562.54",13/07/2018,
Commercial,Customer Support Group,Cleaning and domestic material,60108017,CHURCHILL CONTRACT SERVICES,"11,562.54",30/07/2018,
Commercial,Customer Support Group,Furniture-Purchase-Repair,60107956,H.C. SLINGSBY PLC.,266.70,18/07/2018,
Commercial,Customer Support Group,Cleaning and domestic material,60108265,HERTFORDSHIRE COUNTY COUNCIL,"2,372.90",11/07/2018,
Commercial,Customer Support Group,Cleaning and domestic material,60108291,HERTFORDSHIRE COUNTY COUNCIL,"2,606.09",11/07/2018,
Commercial,Customer Support Group,Building Repairs & Maintenance,60107418,HSL COMPLIANCE LTD,75.00,03/07/2018,
Commercial,Customer Support Group,Building Repairs & Maintenance,60107453,HSL COMPLIANCE LTD,254.48,03/07/2018,
Commercial,Customer Support Group,Gas,60106502,KENT COUNTY COUNCIL (KCS),"3,784.83",04/07/2018,
Commercial,Customer Support Group,Electricity,60106525,KENT COUNTY COUNCIL (KCS),"5,040.13",04/07/2018,
Commercial,Customer Support Group,Gas,60108942,KENT COUNTY COUNCIL (KCS),"2,340.03",31/07/2018,
Commercial,Customer Support Group,Other Services,60105675,LEASING PROGRAMMES LIMITED,"1,235.00",06/07/2018,
Commercial,Customer Support Group,Building Repairs & Maintenance,60099413,LIFT & ENGINEERING SERVICES LTD,143.38,02/07/2018,
Commercial,Customer Support Group,Rubbish Collection,60105859,PEARCE RECYCLING CO. LTD,130.00,06/07/2018,
Commercial,Customer Support Group,Rubbish Collection,60108703,PEARCE RECYCLING CO. LTD,105.50,27/07/2018,
Commercial,Customer Support Group,Building Repairs & Maintenance,60098556,RGE SERVICES,165.02,13/07/2018,
Commercial,Customer Support Group,Building Repairs & Maintenance,60101317,S W BRUCE & CO LTD,927.28,11/07/2018,
Commercial,Customer Support Group,Building Repairs & Maintenance,60101781,S W BRUCE & CO LTD,65.00,11/07/2018,
Commercial,Customer Support Group,Building Repairs & Maintenance,60101795,S W BRUCE & CO LTD,25.00,11/07/2018,
Commercial,Customer Support Group,Building Repairs & Maintenance,60102410,S W BRUCE & CO LTD,210.00,11/07/2018,
Commercial,Customer Support Group,Building Repairs & Maintenance,60102457,S W BRUCE & CO LTD,95.00,11/07/2018,
Commercial,Customer Support Group,Building Repairs & Maintenance,60102578,S W BRUCE & CO LTD,95.00,11/07/2018,
Commercial,Customer Support Group,Building Repairs & Maintenance,60102589,S W BRUCE & CO LTD,75.00,13/07/2018,
Commercial,Customer Support Group,Building Repairs & Maintenance,60102940,S W BRUCE & CO LTD,280.60,03/07/2018,
Commercial,Customer Support Group,Building Repairs & Maintenance,60102951,S W BRUCE & CO LTD,122.50,11/07/2018,
Commercial,Customer Support Group,Building Repairs & Maintenance,60102961,S W BRUCE & CO LTD,97.75,11/07/2018,
Commercial,Customer Support Group,Building Repairs & Maintenance,60104046,S W BRUCE & CO LTD,82.00,06/07/2018,
Commercial,Customer Support Group,Building Repairs & Maintenance,60104072,S W BRUCE & CO LTD,25.00,06/07/2018,
Commercial,Customer Support Group,Building Repairs & Maintenance,60104148,S W BRUCE & CO LTD,162.50,06/07/2018,
Commercial,Customer Support Group,Building Repairs & Maintenance,60104154,S W BRUCE & CO LTD,50.00,06/07/2018,
Commercial,Customer Support Group,Building Repairs & Maintenance,60104413,S W BRUCE & CO LTD,207.60,06/07/2018,
Commercial,Customer Support Group,Building Repairs & Maintenance,60106118,S W BRUCE & CO LTD,153.12,06/07/2018,
Commercial,Customer Support Group,Building Repairs & Maintenance,60108098,S W BRUCE & CO LTD,"8,444.33",10/07/2018,
Commercial,Customer Support Group,Water Services,60108348,ANGEL SPRINGS LTD,170.00,27/07/2018,
Commercial,Customer Support Group,Other Services,60108146,BLUE 9 SECURITY LIMITED,"5,952.65",11/07/2018,
Commercial,Customer Support Group,Cleaning and domestic material,60105557,CHURCHILL CONTRACT SERVICES,"1,133.45",13/07/2018,
Commercial,Customer Support Group,Cleaning and domestic material,60107991,CHURCHILL CONTRACT SERVICES,45.00,27/07/2018,
Commercial,Customer Support Group,Cleaning and domestic material,60108002,CHURCHILL CONTRACT SERVICES,"1,133.45",30/07/2018,
Commercial,Customer Support Group,Furniture-Purchase-Repair,60105788,H.C. SLINGSBY PLC.,66.00,06/07/2018,
Commercial,Customer Support Group,Building Repairs & Maintenance,60108170,HERTEL (UK) LTD,120.00,10/07/2018,
Commercial,Customer Support Group,Building Repairs & Maintenance,60107548,HSL COMPLIANCE LTD,34.00,03/07/2018,
Commercial,Customer Support Group,Equipment and Materials Purcha,60104052,S W BRUCE & CO LTD,65.00,11/07/2018,
Commercial,Customer Support Group,Building Repairs & Maintenance,60104405,S W BRUCE & CO LTD,101.20,11/07/2018,
Commercial,Customer Support Group,Books-CDs-Audio-Video,60105514,SM ELECTRICAL SERVICES,450.00,06/07/2018,
Commercial,Customer Support Group,Building Repairs & Maintenance,60107442,HSL COMPLIANCE LTD,75.00,03/07/2018,
Commercial,Customer Support Group,Electricity,60105548,KENT COUNTY COUNCIL (KCS),"1,208.87",10/07/2018,
Commercial,Customer Support Group,Gas,60106864,KENT COUNTY COUNCIL (KCS),258.30,04/07/2018,
Commercial,Customer Support Group,Electricity,60107227,KENT COUNTY COUNCIL (KCS),"1,171.18",06/07/2018,
Commercial,Customer Support Group,Electricity,60108104,KENT COUNTY COUNCIL (KCS),"1,184.40",16/07/2018,
Commercial,Customer Support Group,Building Repairs & Maintenance,60102686,LIFT & ENGINEERING SERVICES LTD,116.00,02/07/2018,
Commercial,Customer Support Group,Building Repairs & Maintenance,60103482,OAKRAY LIMITED,112.00,11/07/2018,
Commercial,Customer Support Group,Water Services,60108724,CASTLE WATER LTD,"6,473.93",24/07/2018,
Commercial,Customer Support Group,Other Services,60105525,BLUE 9 SECURITY LIMITED,"1,944.38",06/07/2018,
Commercial,Customer Support Group,Other Services,60107987,BLUE 9 SECURITY LIMITED,"1,958.29",10/07/2018,
Commercial,Customer Support Group,Other Services,60108032,BLUE 9 SECURITY LIMITED,"1,972.58",10/07/2018,
Commercial,Customer Support Group,Other Services,60108238,BLUE 9 SECURITY LIMITED,"11,210.40",11/07/2018,
Commercial,Customer Support Group,Cleaning and domestic material,60105631,CHURCHILL CONTRACT SERVICES,"7,329.82",13/07/2018,
Commercial,Customer Support Group,Cleaning and domestic material,60105662,CHURCHILL CONTRACT SERVICES,247.20,16/07/2018,
Commercial,Customer Support Group,Cleaning and domestic material,60108009,CHURCHILL CONTRACT SERVICES,"7,329.82",30/07/2018,
Commercial,Customer Support Group,Rubbish Collection,60108335,G.B.HOLDINGS LTD,"1,216.00",16/07/2018,
Commercial,Customer Support Group,Cleaning and domestic material,60108327,HERTFORDSHIRE COUNTY COUNCIL,"2,182.23",11/07/2018,
Commercial,Customer Support Group,Rents,60107224,MIDDLESEX UNIVERSITY,"207,588.20",04/07/2018,
Commercial,Customer Support Group,Rents,60107307,MIDDLESEX UNIVERSITY,"207,588.20",04/07/2018,
Commercial,Customer Support Group,Building Repairs & Maintenance,60105635,NORTH LONDON CATERING EQUIPMENT,334.00,06/07/2018,
Commercial,Customer Support Group,Building Repairs & Maintenance,60107645,NORTH LONDON CATERING EQUIPMENT,107.00,06/07/2018,
Commercial,Customer Support Group,Building Repairs & Maintenance,60108760,NORTH LONDON CATERING EQUIPMENT,107.00,23/07/2018,
Commercial,Customer Support Group,Building Repairs & Maintenance,60109216,NORTH LONDON CATERING EQUIPMENT,95.00,30/07/2018,
Commercial,Customer Support Group,Rubbish Collection,60108638,PEARCE RECYCLING CO. LTD,104.00,27/07/2018,
Commercial,Customer Support Group,Equipment and Materials Purcha,60104099,S W BRUCE & CO LTD,25.00,06/07/2018,
Commercial,Customer Support Group,Building Repairs & Maintenance,60104159,S W BRUCE & CO LTD,65.00,06/07/2018,
Commercial,Customer Support Group,Building Repairs & Maintenance,60106060,S W BRUCE & CO LTD,734.80,06/07/2018,
Commercial,Customer Support Group,Building Repairs & Maintenance,60106075,S W BRUCE & CO LTD,725.49,06/07/2018,
Commercial,Customer Support Group,Building Repairs & Maintenance,60106096,S W BRUCE & CO LTD,40.00,06/07/2018,
Commercial,Customer Support Group,Furniture-Purchase-Repair,60108755,SCREWFIX DIRECT LTD,118.70,23/07/2018,
Commercial,Customer Support Group,Books-CDs-Audio-Video,60106362,SM ELECTRICAL SERVICES,200.00,10/07/2018,
Commercial,Customer Support Group,Books-CDs-Audio-Video,60106718,SM ELECTRICAL SERVICES,100.00,18/07/2018,
Commercial,Customer Support Group,Building Repairs & Maintenance,60109351,WATES LIVING SPACE,49.88,30/07/2018,
Commercial,Customer Support Group,Cleaning and domestic material,60105565,CHURCHILL CONTRACT SERVICES,661.80,13/07/2018,
Commercial,Customer Support Group,Rubbish Collection,60108356,G.B.HOLDINGS LTD,25.20,16/07/2018,
Commercial,Customer Support Group,Electricity,60107249,KENT COUNTY COUNCIL (KCS),709.22,06/07/2018,
Commercial,Customer Support Group,Building Repairs & Maintenance,60101549,S W BRUCE & CO LTD,256.25,16/07/2018,
Commercial,Customer Support Group,CSG Services Contract Payment,60105146,CAPITA BUSINESS SERVICES LTD,"9,950.63",13/07/2018,
Commercial,Customer Support Group,CSG Services Contract Payment,60108969,CAPITA BUSINESS SERVICES LTD,"10,710.00",26/07/2018,
Commercial,Customer Support Group,CSG Services Contract Payment,60108988,CAPITA BUSINESS SERVICES LTD,"529,512.00",26/07/2018,
Commercial,Customer Support Group,Fees and Charges,80018736,BARNET HOMES,"1,000.00",23/07/2018,
Commercial,Customer Support Group,Fees and Charges,80018283,REDACTED - PERSONAL DATA,150.00,09/07/2018,
Commercial,Customer Support Group,Fees and Charges,80018729,REDACTED - PERSONAL DATA,25.00,19/07/2018,
Commercial,Customer Support Group,Software Licences & Support,60102260,RM EDUCATION PLC,-310.00,25/07/2018,
Commercial,Customer Support Group,Software Licences & Support,60107729,RM EDUCATION PLC,"1,250.00",25/07/2018,
Commercial,Customer Support Group,Building Repairs & Maintenance,60107693,ADAMS ENVIRONMENTAL LTD,280.00,06/07/2018,
Commercial,Customer Support Group,Building Repairs & Maintenance,60107695,ADAMS ENVIRONMENTAL LTD,850.00,06/07/2018,
Commercial,Customer Support Group,Building Repairs & Maintenance,60109518,ADAMS ENVIRONMENTAL LTD,950.00,30/07/2018,
Commercial,Customer Support Group,Water Services,60109592,AFFINITY WATER LIMITED,529.08,30/07/2018,
Commercial,Customer Support Group,Water Services,60109669,AFFINITY WATER LIMITED,15.60,30/07/2018,
Commercial,Customer Support Group,Building Repairs & Maintenance,60107242,AJS LTD,29.72,02/07/2018,
Commercial,Customer Support Group,Building Repairs & Maintenance,60107268,AJS LTD,29.72,02/07/2018,
Commercial,Customer Support Group,Other Services,60108121,BLUE 9 SECURITY LIMITED,80.58,11/07/2018,
Commercial,Customer Support Group,Other Services,60108173,BLUE 9 SECURITY LIMITED,214.88,11/07/2018,
Commercial,Customer Support Group,Other Services,60108207,BLUE 9 SECURITY LIMITED,120.87,11/07/2018,
Commercial,Customer Support Group,Other Services,60108249,BLUE 9 SECURITY LIMITED,31.14,11/07/2018,
Commercial,Customer Support Group,Building Repairs & Maintenance,60104608,BOON EDAM LTD,"1,396.00",23/07/2018,
Commercial,Customer Support Group,Electricity,60109831,BRITISH GAS,70.94,30/07/2018,
Commercial,Customer Support Group,Gas,60103878,BRITISH GAS BUSINESS,124.65,25/07/2018,
Commercial,Customer Support Group,Gas,60103892,BRITISH GAS BUSINESS,130.26,25/07/2018,
Commercial,Customer Support Group,Gas,60103898,BRITISH GAS BUSINESS,66.47,25/07/2018,
Commercial,Customer Support Group,Gas,60103911,BRITISH GAS BUSINESS,115.38,25/07/2018,
Commercial,Customer Support Group,Gas,60103933,BRITISH GAS BUSINESS,52.01,25/07/2018,
Commercial,Customer Support Group,Electricity,60108764,BRITISH GAS BUSINESS,39.86,23/07/2018,
Commercial,Customer Support Group,Electricity,60108922,BRITISH GAS BUSINESS,"22,556.29",23/07/2018,
Commercial,Customer Support Group,Electricity,60105655,BRITISH GAS BUSINESS(ELEC),394.28,10/07/2018,
Commercial,Customer Support Group,Electricity,60105695,BRITISH GAS BUSINESS(ELEC),187.83,10/07/2018,
Commercial,Customer Support Group,Rents,60105436,CANAL & RIVER TRUST,"2,000.00",06/07/2018,
Commercial,Customer Support Group,Water Services,60093417,CASTLE WATER LTD,246.58,10/07/2018,
Commercial,Customer Support Group,Water Services,60106302,CASTLE WATER LTD,30.26,04/07/2018,
Commercial,Customer Support Group,Water Services,60107800,CASTLE WATER LTD,30.26,09/07/2018,
Commercial,Customer Support Group,Water Services,60108382,CASTLE WATER LTD,33.56,13/07/2018,
Commercial,Customer Support Group,Water Services,60108949,CASTLE WATER LTD,26.03,24/07/2018,
Commercial,Customer Support Group,Water Services,60109005,CASTLE WATER LTD,47.43,23/07/2018,
Commercial,Customer Support Group,Cleaning and domestic material,60105628,CHURCHILL CONTRACT SERVICES,294.16,13/07/2018,
Commercial,Customer Support Group,Cleaning and domestic material,60107996,CHURCHILL CONTRACT SERVICES,294.16,30/07/2018,
Commercial,Customer Support Group,Other Services,60107301,DATSCHA UK LTD,"10,000.00",19/07/2018,
Commercial,Customer Support Group,Electricity,60104366,E-ON ENERGY,27.27,10/07/2018,
Commercial,Customer Support Group,Electricity,60105721,E-ON ENERGY,71.98,06/07/2018,
Commercial,Customer Support Group,Electricity,60108323,E-ON ENERGY,13.60,23/07/2018,
Commercial,Customer Support Group,Electricity,60109142,E-ON ENERGY,28.00,24/07/2018,
Commercial,Customer Support Group,Electricity,60109749,E-ON ENERGY,67.47,30/07/2018,
Commercial,Customer Support Group,Electricity,60109784,E-ON ENERGY,241.04,30/07/2018,
Commercial,Customer Support Group,Furniture-Purchase-Repair,60105534,HARROW GREEN LTD,112.50,06/07/2018,
Commercial,Customer Support Group,Building Repairs & Maintenance,60108134,HERTEL (UK) LTD,104.74,20/07/2018,
Commercial,Customer Support Group,Building Repairs & Maintenance,60108139,HERTEL (UK) LTD,655.00,10/07/2018,
Commercial,Customer Support Group,Building Repairs & Maintenance,60108143,HERTEL (UK) LTD,87.00,10/07/2018,
Commercial,Customer Support Group,Building Repairs & Maintenance,60108215,HERTEL (UK) LTD,"2,300.00",10/07/2018,
Commercial,Customer Support Group,Building Repairs & Maintenance,60108239,HERTEL (UK) LTD,179.55,10/07/2018,
Commercial,Customer Support Group,Building Repairs & Maintenance,60106893,HSL COMPLIANCE LTD,34.91,02/07/2018,
Commercial,Customer Support Group,Building Repairs & Maintenance,60106897,HSL COMPLIANCE LTD,75.00,02/07/2018,
Commercial,Customer Support Group,Building Repairs & Maintenance,60106898,HSL COMPLIANCE LTD,34.91,02/07/2018,
Commercial,Customer Support Group,Building Repairs & Maintenance,60106904,HSL COMPLIANCE LTD,34.91,02/07/2018,
Commercial,Customer Support Group,Building Repairs & Maintenance,60106905,HSL COMPLIANCE LTD,45.00,02/07/2018,
Commercial,Customer Support Group,Building Repairs & Maintenance,60106916,HSL COMPLIANCE LTD,34.91,02/07/2018,
Commercial,Customer Support Group,Building Repairs & Maintenance,60106918,HSL COMPLIANCE LTD,34.91,02/07/2018,
Commercial,Customer Support Group,Building Repairs & Maintenance,60106919,HSL COMPLIANCE LTD,34.91,02/07/2018,
Commercial,Customer Support Group,Building Repairs & Maintenance,60106922,HSL COMPLIANCE LTD,34.91,02/07/2018,
Commercial,Customer Support Group,Building Repairs & Maintenance,60106923,HSL COMPLIANCE LTD,150.00,02/07/2018,
Commercial,Customer Support Group,Building Repairs & Maintenance,60106925,HSL COMPLIANCE LTD,45.00,02/07/2018,
Commercial,Customer Support Group,Building Repairs & Maintenance,60106929,HSL COMPLIANCE LTD,34.91,02/07/2018,
Commercial,Customer Support Group,Building Repairs & Maintenance,60106930,HSL COMPLIANCE LTD,34.91,02/07/2018,
Commercial,Customer Support Group,Building Repairs & Maintenance,60106932,HSL COMPLIANCE LTD,34.91,02/07/2018,
Commercial,Customer Support Group,Building Repairs & Maintenance,60106934,HSL COMPLIANCE LTD,34.91,02/07/2018,
Commercial,Customer Support Group,Building Repairs & Maintenance,60106939,HSL COMPLIANCE LTD,34.91,02/07/2018,
Commercial,Customer Support Group,Building Repairs & Maintenance,60106943,HSL COMPLIANCE LTD,34.91,02/07/2018,
Commercial,Customer Support Group,Building Repairs & Maintenance,60106951,HSL COMPLIANCE LTD,34.91,02/07/2018,
Commercial,Customer Support Group,Building Repairs & Maintenance,60106953,HSL COMPLIANCE LTD,34.91,02/07/2018,
Commercial,Customer Support Group,Building Repairs & Maintenance,60106957,HSL COMPLIANCE LTD,40.83,02/07/2018,
Commercial,Customer Support Group,Building Repairs & Maintenance,60106959,HSL COMPLIANCE LTD,34.91,02/07/2018,
Commercial,Customer Support Group,Building Repairs & Maintenance,60106960,HSL COMPLIANCE LTD,34.91,02/07/2018,
Commercial,Customer Support Group,Building Repairs & Maintenance,60106963,HSL COMPLIANCE LTD,34.91,02/07/2018,
Commercial,Customer Support Group,Building Repairs & Maintenance,60106964,HSL COMPLIANCE LTD,34.91,02/07/2018,
Commercial,Customer Support Group,Building Repairs & Maintenance,60106967,HSL COMPLIANCE LTD,34.91,02/07/2018,
Commercial,Customer Support Group,Building Repairs & Maintenance,60106970,HSL COMPLIANCE LTD,34.91,02/07/2018,
Commercial,Customer Support Group,Building Repairs & Maintenance,60106972,HSL COMPLIANCE LTD,34.91,02/07/2018,
Commercial,Customer Support Group,Building Repairs & Maintenance,60106980,HSL COMPLIANCE LTD,34.91,02/07/2018,
Commercial,Customer Support Group,Building Repairs & Maintenance,60107060,HSL COMPLIANCE LTD,40.83,02/07/2018,
Commercial,Customer Support Group,Building Repairs & Maintenance,60107109,HSL COMPLIANCE LTD,24.94,02/07/2018,
Commercial,Customer Support Group,Building Repairs & Maintenance,60107124,HSL COMPLIANCE LTD,24.94,02/07/2018,
Commercial,Customer Support Group,Building Repairs & Maintenance,60107136,HSL COMPLIANCE LTD,104.74,02/07/2018,
Commercial,Customer Support Group,Building Repairs & Maintenance,60107158,HSL COMPLIANCE LTD,104.74,02/07/2018,
Commercial,Customer Support Group,Building Repairs & Maintenance,60107163,HSL COMPLIANCE LTD,34.91,02/07/2018,
Commercial,Customer Support Group,Building Repairs & Maintenance,60107167,HSL COMPLIANCE LTD,"1,011.55",02/07/2018,
Commercial,Customer Support Group,Building Repairs & Maintenance,60107171,HSL COMPLIANCE LTD,179.55,02/07/2018,
Commercial,Customer Support Group,Building Repairs & Maintenance,60107176,HSL COMPLIANCE LTD,34.91,02/07/2018,
Commercial,Customer Support Group,Building Repairs & Maintenance,60107180,HSL COMPLIANCE LTD,75.00,02/07/2018,
Commercial,Customer Support Group,Building Repairs & Maintenance,60107327,HSL COMPLIANCE LTD,90.00,03/07/2018,
Commercial,Customer Support Group,Building Repairs & Maintenance,60107335,HSL COMPLIANCE LTD,225.00,03/07/2018,
Commercial,Customer Support Group,Building Repairs & Maintenance,60107339,HSL COMPLIANCE LTD,100.00,03/07/2018,
Commercial,Customer Support Group,Building Repairs & Maintenance,60107346,HSL COMPLIANCE LTD,45.00,03/07/2018,
Commercial,Customer Support Group,Building Repairs & Maintenance,60107377,HSL COMPLIANCE LTD,44.00,03/07/2018,
Commercial,Customer Support Group,Building Repairs & Maintenance,60107393,HSL COMPLIANCE LTD,45.00,03/07/2018,
Commercial,Customer Support Group,Building Repairs & Maintenance,60107398,HSL COMPLIANCE LTD,45.00,03/07/2018,
Commercial,Customer Support Group,Building Repairs & Maintenance,60107403,HSL COMPLIANCE LTD,"1,606.08",03/07/2018,
Commercial,Customer Support Group,Building Repairs & Maintenance,60107417,HSL COMPLIANCE LTD,69.00,03/07/2018,
Commercial,Customer Support Group,Building Repairs & Maintenance,60107424,HSL COMPLIANCE LTD,34.91,04/07/2018,
Commercial,Customer Support Group,Building Repairs & Maintenance,60107427,HSL COMPLIANCE LTD,34.91,04/07/2018,
Commercial,Customer Support Group,Building Repairs & Maintenance,60107429,HSL COMPLIANCE LTD,45.00,03/07/2018,
Commercial,Customer Support Group,Building Repairs & Maintenance,60107444,HSL COMPLIANCE LTD,104.74,03/07/2018,
Commercial,Customer Support Group,Building Repairs & Maintenance,60107475,HSL COMPLIANCE LTD,164.59,03/07/2018,
Commercial,Customer Support Group,Building Repairs & Maintenance,60107478,HSL COMPLIANCE LTD,150.00,03/07/2018,
Commercial,Customer Support Group,Building Repairs & Maintenance,60107484,HSL COMPLIANCE LTD,180.00,04/07/2018,
Commercial,Customer Support Group,Building Repairs & Maintenance,60107502,HSL COMPLIANCE LTD,268.00,04/07/2018,
Commercial,Customer Support Group,Building Repairs & Maintenance,60107503,HSL COMPLIANCE LTD,45.00,04/07/2018,
Commercial,Customer Support Group,Building Repairs & Maintenance,60107521,HSL COMPLIANCE LTD,135.00,03/07/2018,
Commercial,Customer Support Group,Building Repairs & Maintenance,60107547,HSL COMPLIANCE LTD,34.91,04/07/2018,
Commercial,Customer Support Group,Building Repairs & Maintenance,60107561,HSL COMPLIANCE LTD,34.91,04/07/2018,
Commercial,Customer Support Group,Building Repairs & Maintenance,60107575,HSL COMPLIANCE LTD,135.00,04/07/2018,
Commercial,Customer Support Group,Building Repairs & Maintenance,60107579,HSL COMPLIANCE LTD,34.91,04/07/2018,
Commercial,Customer Support Group,Building Repairs & Maintenance,60107583,HSL COMPLIANCE LTD,195.00,04/07/2018,
Commercial,Customer Support Group,Building Repairs & Maintenance,60107592,HSL COMPLIANCE LTD,104.74,03/07/2018,
Commercial,Customer Support Group,Building Repairs & Maintenance,60107595,HSL COMPLIANCE LTD,34.91,03/07/2018,
Commercial,Customer Support Group,Building Repairs & Maintenance,60107596,HSL COMPLIANCE LTD,90.00,03/07/2018,
Commercial,Customer Support Group,Building Repairs & Maintenance,60107597,HSL COMPLIANCE LTD,242.00,03/07/2018,
Commercial,Customer Support Group,Gas,60105504,KENT COUNTY COUNCIL (KCS),117.90,06/07/2018,
Commercial,Customer Support Group,Electricity,60105530,KENT COUNTY COUNCIL (KCS),681.46,06/07/2018,
Commercial,Customer Support Group,Electricity,60105689,KENT COUNTY COUNCIL (KCS),37.23,23/07/2018,
Commercial,Customer Support Group,Electricity,60105709,KENT COUNTY COUNCIL (KCS),59.02,10/07/2018,
Commercial,Customer Support Group,Gas,60106499,KENT COUNTY COUNCIL (KCS),120.34,04/07/2018,
Commercial,Customer Support Group,Electricity,60106514,KENT COUNTY COUNCIL (KCS),325.70,06/07/2018,
Commercial,Customer Support Group,Gas,60106531,KENT COUNTY COUNCIL (KCS),159.67,04/07/2018,
Commercial,Customer Support Group,Electricity,60106537,KENT COUNTY COUNCIL (KCS),"1,445.40",06/07/2018,
Commercial,Customer Support Group,Electricity,60106608,KENT COUNTY COUNCIL (KCS),"1,220.85",06/07/2018,
Commercial,Customer Support Group,Gas,60106634,KENT COUNTY COUNCIL (KCS),269.48,06/07/2018,
Commercial,Customer Support Group,Electricity,60106657,KENT COUNTY COUNCIL (KCS),253.62,03/07/2018,
Commercial,Customer Support Group,Electricity,60106695,KENT COUNTY COUNCIL (KCS),"1,737.43",06/07/2018,
Commercial,Customer Support Group,Gas,60106703,KENT COUNTY COUNCIL (KCS),69.10,04/07/2018,
Commercial,Customer Support Group,Gas,60106777,KENT COUNTY COUNCIL (KCS),82.61,04/07/2018,
Commercial,Customer Support Group,Gas,60106786,KENT COUNTY COUNCIL (KCS),69.81,04/07/2018,
Commercial,Customer Support Group,Gas,60107128,KENT COUNTY COUNCIL (KCS),320.50,04/07/2018,
Commercial,Customer Support Group,Gas,60107366,KENT COUNTY COUNCIL (KCS),121.83,09/07/2018,
Commercial,Customer Support Group,Electricity,60107451,KENT COUNTY COUNCIL (KCS),"1,378.00",06/07/2018,
Commercial,Customer Support Group,Gas,60108027,KENT COUNTY COUNCIL (KCS),302.18,10/07/2018,
Commercial,Customer Support Group,Electricity,60108634,KENT COUNTY COUNCIL (KCS),208.55,24/07/2018,
Commercial,Customer Support Group,Gas,60108649,KENT COUNTY COUNCIL (KCS),240.90,24/07/2018,
Commercial,Customer Support Group,Electricity,60108657,KENT COUNTY COUNCIL (KCS),205.42,25/07/2018,
Commercial,Customer Support Group,Electricity,60108681,KENT COUNTY COUNCIL (KCS),188.40,24/07/2018,
Commercial,Customer Support Group,Electricity,60108711,KENT COUNTY COUNCIL (KCS),201.87,24/07/2018,
Commercial,Customer Support Group,Gas,60108825,KENT COUNTY COUNCIL (KCS),92.42,31/07/2018,
Commercial,Customer Support Group,Gas,60108841,KENT COUNTY COUNCIL (KCS),87.69,31/07/2018,
Commercial,Customer Support Group,Gas,60108860,KENT COUNTY COUNCIL (KCS),122.47,25/07/2018,
Commercial,Customer Support Group,Gas,60108861,KENT COUNTY COUNCIL (KCS),338.60,31/07/2018,
Commercial,Customer Support Group,Gas,60108874,KENT COUNTY COUNCIL (KCS),142.33,31/07/2018,
Commercial,Customer Support Group,Gas,60108884,KENT COUNTY COUNCIL (KCS),237.75,31/07/2018,
Commercial,Customer Support Group,Gas,60108915,KENT COUNTY COUNCIL (KCS),114.07,31/07/2018,
Commercial,Customer Support Group,Gas,60108920,KENT COUNTY COUNCIL (KCS),272.82,31/07/2018,
Commercial,Customer Support Group,Gas,60108982,KENT COUNTY COUNCIL (KCS),310.38,31/07/2018,
Commercial,Customer Support Group,Gas,60108992,KENT COUNTY COUNCIL (KCS),72.12,31/07/2018,
Commercial,Customer Support Group,Gas,60108995,KENT COUNTY COUNCIL (KCS),55.50,31/07/2018,
Commercial,Customer Support Group,Gas,60109053,KENT COUNTY COUNCIL (KCS),8.64,31/07/2018,
Commercial,Customer Support Group,Service Charges,60105748,LAZARI INVESTMENTS LTD,"27,966.24",06/07/2018,
Commercial,Customer Support Group,Service Charges,60105797,LAZARI INVESTMENTS LTD,183.36,06/07/2018,
Commercial,Customer Support Group,Building Repairs & Maintenance,60098847,LIFT & ENGINEERING SERVICES LTD,116.00,02/07/2018,
Commercial,Customer Support Group,Building Repairs & Maintenance,60099436,LIFT & ENGINEERING SERVICES LTD,89.25,02/07/2018,
Commercial,Customer Support Group,Building Repairs & Maintenance,60101392,LIFT & ENGINEERING SERVICES LTD,89.25,02/07/2018,
Commercial,Customer Support Group,Building Repairs & Maintenance,60104170,LIFT & ENGINEERING SERVICES LTD,535.50,02/07/2018,
Commercial,Customer Support Group,Equipment and Materials Purcha,60104173,LIFT & ENGINEERING SERVICES LTD,215.07,02/07/2018,
Commercial,Customer Support Group,Building Repairs & Maintenance,60106574,LIFT & ENGINEERING SERVICES LTD,"3,981.00",17/07/2018,
Commercial,Customer Support Group,Building Repairs & Maintenance,60103462,OAKRAY LIMITED,96.00,11/07/2018,
Commercial,Customer Support Group,Building Repairs & Maintenance,60103499,OAKRAY LIMITED,96.00,11/07/2018,
Commercial,Customer Support Group,Building Repairs & Maintenance,60103502,OAKRAY LIMITED,108.00,11/07/2018,
Commercial,Customer Support Group,Building Repairs & Maintenance,60107102,OAKRAY LIMITED,96.00,06/07/2018,
Commercial,Customer Support Group,Building Repairs & Maintenance,60107155,OAKRAY LIMITED,80.00,06/07/2018,
Commercial,Customer Support Group,Building Repairs & Maintenance,60108480,OAKRAY LIMITED,722.52,18/07/2018,
Commercial,Customer Support Group,Building Repairs & Maintenance,80018852,LEE CONSTRUCTION  LTD,208.33,26/07/2018,
Commercial,Customer Support Group,Building Repairs & Maintenance,60107205,ONLITECH,"2,327.00",03/07/2018,
Commercial,Customer Support Group,Building Repairs & Maintenance,60108112,RGE SERVICES,50.45,20/07/2018,
Commercial,Customer Support Group,Building Repairs & Maintenance,60108128,RGE SERVICES,47.03,20/07/2018,
Commercial,Customer Support Group,Building Repairs & Maintenance,60108129,RGE SERVICES,228.02,20/07/2018,
Commercial,Customer Support Group,Building Repairs & Maintenance,60108144,RGE SERVICES,171.01,20/07/2018,
Commercial,Customer Support Group,Building Repairs & Maintenance,60108156,RGE SERVICES,122.43,20/07/2018,
Commercial,Customer Support Group,Building Repairs & Maintenance,60108168,RGE SERVICES,98.33,20/07/2018,
Commercial,Customer Support Group,Building Repairs & Maintenance,60108186,RGE SERVICES,32.53,19/07/2018,
Commercial,Customer Support Group,Building Repairs & Maintenance,60108191,RGE SERVICES,25.65,19/07/2018,
Commercial,Customer Support Group,Building Repairs & Maintenance,60108195,RGE SERVICES,149.63,19/07/2018,
Commercial,Customer Support Group,Building Repairs & Maintenance,60108200,RGE SERVICES,115.44,19/07/2018,
Commercial,Customer Support Group,Building Repairs & Maintenance,60108211,RGE SERVICES,195.13,19/07/2018,
Commercial,Customer Support Group,Building Repairs & Maintenance,60108212,RGE SERVICES,111.16,19/07/2018,
Commercial,Customer Support Group,Building Repairs & Maintenance,60108213,RGE SERVICES,115.43,20/07/2018,
Commercial,Customer Support Group,Building Repairs & Maintenance,60108219,RGE SERVICES,37.62,19/07/2018,
Commercial,Customer Support Group,Building Repairs & Maintenance,60108251,RGE SERVICES,31.00,18/07/2018,
Commercial,Customer Support Group,Building Repairs & Maintenance,60098277,S W BRUCE & CO LTD,125.00,10/07/2018,
Commercial,Customer Support Group,Building Repairs & Maintenance,60099053,S W BRUCE & CO LTD,114.68,10/07/2018,
Commercial,Customer Support Group,Building Repairs & Maintenance,60101727,S W BRUCE & CO LTD,156.40,11/07/2018,
Commercial,Customer Support Group,Building Repairs & Maintenance,60101761,S W BRUCE & CO LTD,110.00,11/07/2018,
Commercial,Customer Support Group,Building Repairs & Maintenance,60101773,S W BRUCE & CO LTD,98.00,18/07/2018,
Commercial,Customer Support Group,Building Repairs & Maintenance,60101803,S W BRUCE & CO LTD,55.00,11/07/2018,
Commercial,Customer Support Group,Building Repairs & Maintenance,60101811,S W BRUCE & CO LTD,121.90,10/07/2018,
Commercial,Customer Support Group,Building Repairs & Maintenance,60101816,S W BRUCE & CO LTD,52.00,18/07/2018,
Commercial,Customer Support Group,Building Repairs & Maintenance,60101864,S W BRUCE & CO LTD,48.00,10/07/2018,
Commercial,Customer Support Group,Building Repairs & Maintenance,60101876,S W BRUCE & CO LTD,120.00,11/07/2018,
Commercial,Customer Support Group,Building Repairs & Maintenance,60102402,S W BRUCE & CO LTD,95.00,10/07/2018,
Commercial,Customer Support Group,Building Repairs & Maintenance,60102406,S W BRUCE & CO LTD,98.00,18/07/2018,
Commercial,Customer Support Group,Building Repairs & Maintenance,60102425,S W BRUCE & CO LTD,48.00,10/07/2018,
Commercial,Customer Support Group,Building Repairs & Maintenance,60102490,S W BRUCE & CO LTD,208.00,18/07/2018,
Commercial,Customer Support Group,Building Repairs & Maintenance,60102523,S W BRUCE & CO LTD,72.00,10/07/2018,
Commercial,Customer Support Group,Equipment and Materials Purcha,60102546,S W BRUCE & CO LTD,275.00,18/07/2018,
Commercial,Customer Support Group,Building Repairs & Maintenance,60102923,S W BRUCE & CO LTD,128.62,10/07/2018,
Commercial,Customer Support Group,Building Repairs & Maintenance,60102937,S W BRUCE & CO LTD,142.60,10/07/2018,
Commercial,Customer Support Group,Building Repairs & Maintenance,60103008,S W BRUCE & CO LTD,87.40,10/07/2018,
Commercial,Customer Support Group,Building Repairs & Maintenance,60103015,S W BRUCE & CO LTD,77.50,10/07/2018,
Commercial,Customer Support Group,Equipment and Materials Purcha,60103037,S W BRUCE & CO LTD,62.00,10/07/2018,
Commercial,Customer Support Group,Equipment and Materials Purcha,60104036,S W BRUCE & CO LTD,248.00,18/07/2018,
Commercial,Customer Support Group,Building Repairs & Maintenance,60104077,S W BRUCE & CO LTD,92.00,16/07/2018,
Commercial,Customer Support Group,Building Repairs & Maintenance,60104093,S W BRUCE & CO LTD,110.50,23/07/2018,
Commercial,Customer Support Group,Building Repairs & Maintenance,60104106,S W BRUCE & CO LTD,40.00,17/07/2018,
Commercial,Customer Support Group,Building Repairs & Maintenance,60104144,S W BRUCE & CO LTD,25.00,17/07/2018,
Commercial,Customer Support Group,Building Repairs & Maintenance,60104145,S W BRUCE & CO LTD,130.00,16/07/2018,
Commercial,Customer Support Group,Building Repairs & Maintenance,60104401,S W BRUCE & CO LTD,95.00,17/07/2018,
Commercial,Customer Support Group,Building Repairs & Maintenance,60104402,S W BRUCE & CO LTD,172.50,17/07/2018,
Commercial,Customer Support Group,Building Repairs & Maintenance,60104416,S W BRUCE & CO LTD,68.00,16/07/2018,
Commercial,Customer Support Group,Building Repairs & Maintenance,60104420,S W BRUCE & CO LTD,72.00,17/07/2018,
Commercial,Customer Support Group,Building Repairs & Maintenance,60106010,S W BRUCE & CO LTD,126.50,19/07/2018,
Commercial,Customer Support Group,Building Repairs & Maintenance,60106014,S W BRUCE & CO LTD,75.00,16/07/2018,
Commercial,Customer Support Group,Building Repairs & Maintenance,60106027,S W BRUCE & CO LTD,72.00,16/07/2018,
Commercial,Customer Support Group,Building Repairs & Maintenance,60106030,S W BRUCE & CO LTD,50.00,16/07/2018,
Commercial,Customer Support Group,Building Repairs & Maintenance,60106047,S W BRUCE & CO LTD,197.80,11/07/2018,
Commercial,Customer Support Group,Building Repairs & Maintenance,60106048,S W BRUCE & CO LTD,126.50,19/07/2018,
Commercial,Customer Support Group,Building Repairs & Maintenance,60106049,S W BRUCE & CO LTD,25.00,17/07/2018,
Commercial,Customer Support Group,Building Repairs & Maintenance,60106052,S W BRUCE & CO LTD,140.00,16/07/2018,
Commercial,Customer Support Group,Building Repairs & Maintenance,60106070,S W BRUCE & CO LTD,75.00,16/07/2018,
Commercial,Customer Support Group,Building Repairs & Maintenance,60106101,S W BRUCE & CO LTD,184.00,16/07/2018,
Commercial,Customer Support Group,Building Repairs & Maintenance,60106108,S W BRUCE & CO LTD,370.30,19/07/2018,
Commercial,Customer Support Group,Building Repairs & Maintenance,60106109,S W BRUCE & CO LTD,60.00,16/07/2018,
Commercial,Customer Support Group,Building Repairs & Maintenance,60106129,S W BRUCE & CO LTD,437.00,06/07/2018,
Commercial,Customer Support Group,Building Repairs & Maintenance,60106130,S W BRUCE & CO LTD,140.00,18/07/2018,
Commercial,Customer Support Group,Building Repairs & Maintenance,60106166,S W BRUCE & CO LTD,56.44,11/07/2018,
Commercial,Customer Support Group,Building Repairs & Maintenance,60106174,S W BRUCE & CO LTD,97.35,17/07/2018,
Commercial,Customer Support Group,Building Repairs & Maintenance,60106770,TECHNICAL SURFACES LTD,465.00,10/07/2018,
Commercial,Customer Support Group,Building Repairs & Maintenance,60106557,THAMES LABORATORIES,995.00,12/07/2018,
Commercial,Customer Support Group,Building Repairs & Maintenance,60106632,THAMES LABORATORIES,250.00,12/07/2018,
Commercial,Customer Support Group,Gas,60108867,TOTAL GAS & POWER LTD,622.60,23/07/2018,
Commercial,Customer Support Group,Building Repairs & Maintenance,60109071,WATES LIVING SPACE,35.63,24/07/2018,
Commercial,Customer Support Group,Building Repairs & Maintenance,60109128,WATES LIVING SPACE,44.10,24/07/2018,
Commercial,Customer Support Group,Building Repairs & Maintenance,10014111,WINTERS RECYCLING LTD,636.00,11/07/2018,
Commercial,Customer Support Group,Ttl IT & Comms,60108660,TELEFONICA UK LTD,72.10,25/07/2018,
Commercial,Customer Support Group,Ttl IT & Comms,60108671,VODAFONE LTD,425.96,17/07/2018,
Commercial,Customer Support Group,Other Services,20036474,LOOMIS UK LIMITED,54.00,02/07/2018,
Commercial,Customer Support Group,Other Services,20036984,LOOMIS UK LIMITED,942.22,10/07/2018,
Commercial,Customer Support Group,Other Services,20037508,LOOMIS UK LIMITED,54.00,24/07/2018,
Commercial,Customer Support Group,Ttl IT & Comms,60105815,RESULT SOFTWARE LTD,750.00,06/07/2018,
Commercial,Customer Support Group,Postage,20037507,ROYAL MAIL GROUP LIMITED,646.38,24/07/2018,
Commercial,Customer Support Group,Postage,60106113,ENVOPRINT,606.00,06/07/2018,
Commercial,Customer Support Group,Postage,60107244,FINANCIAL DATA MANAGEMENT LTD,176.00,06/07/2018,
Commercial,Customer Support Group,Postage,60108320,FINANCIAL DATA MANAGEMENT LTD,923.00,12/07/2018,
Commercial,Customer Support Group,Postage,60108338,FINANCIAL DATA MANAGEMENT LTD,425.00,13/07/2018,
Commercial,Customer Support Group,Postage,60108413,FINANCIAL DATA MANAGEMENT LTD,730.00,13/07/2018,
Commercial,Customer Support Group,Postage,60105732,LETTERBOX DISTRIBUTION.COM,"1,185.00",06/07/2018,
Commercial,Customer Support Group,Postage,60109505,PARAGON GROUP UK LIMITED,560.00,30/07/2018,
Commercial,Customer Support Group,Postage,10014136,PULSTAR DATAPRINT LTD,339.17,12/07/2018,
Commercial,Customer Support Group,Postage,60105881,PULSTAR DATAPRINT LTD,206.50,06/07/2018,
Commercial,Customer Support Group,Postage,60106689,ROYAL MAIL GROUP LIMITED,54.00,06/07/2018,
Commercial,Customer Support Group,Postage,60107255,ROYAL MAIL GROUP LIMITED,109.92,02/07/2018,
Commercial,Customer Support Group,Postage,60109551,ROYAL MAIL GROUP LIMITED,93.87,30/07/2018,
Commercial,Customer Support Group,Postage,60105703,STANFORD MARSH LTD,169.36,10/07/2018,
Commercial,Customer Support Group,Postage,60108591,STANFORD MARSH LTD,300.00,16/07/2018,
Commercial,Customer Support Group,Postage,60109841,STANFORD MARSH LTD,251.67,30/07/2018,
Commercial,Customer Support Group,Postage,60109040,SWEMKO (UK) LTD,20.00,23/07/2018,
Commercial,Customer Support Group,Postage,60107378,WEMBLEY LAMINATIONS LTD:,180.00,04/07/2018,
Commercial,Customer Support Group,Water Services,60108375,ANGEL SPRINGS LTD,104.00,27/07/2018,
Commercial,Customer Support Group,Other Services,60108133,BLUE 9 SECURITY LIMITED,"22,039.20",11/07/2018,
Commercial,Customer Support Group,Equipment and Materials Purcha,60108298,HERTFORDSHIRE COUNTY COUNCIL,79.32,11/07/2018,
Commercial,Customer Support Group,Cleaning and domestic material,60108299,HERTFORDSHIRE COUNTY COUNCIL,88.29,11/07/2018,
Commercial,Customer Support Group,Electricity,60106532,KENT COUNTY COUNCIL (KCS),"1,658.29",03/07/2018,
Commercial,Customer Support Group,Rents,60105515,NETWORK RAIL ACCOUNTS RECEIVABLE,"20,375.00",06/07/2018,
Commercial,Customer Support Group,Rents,60105533,NETWORK RAIL ACCOUNTS RECEIVABLE,"4,500.00",06/07/2018,
Commercial,Customer Support Group,Rubbish Collection,60105870,PEARCE RECYCLING CO. LTD,106.50,06/07/2018,
Commercial,Customer Support Group,Rubbish Collection,60108648,PEARCE RECYCLING CO. LTD,67.50,27/07/2018,
Commercial,Customer Support Group,Building Repairs & Maintenance,60102394,S W BRUCE & CO LTD,208.00,11/07/2018,
Commercial,Customer Support Group,CSG Services Contract Payment,60107740,CAPITA BUSINESS SERVICES LTD,"1,282.73",09/07/2018,
Commercial,Customer Support Group,CSG Services Contract Payment,60108268,CAPITA BUSINESS SERVICES LTD,"66,718.47",13/07/2018,
Commercial,Customer Support Group,Building Repairs & Maintenance,60109435,S W BRUCE & CO LTD,460.00,30/07/2018,
Commercial,Customer Support Group,Building Repairs & Maintenance,60108506,RGE SERVICES,478.00,24/07/2018,
Commercial,Customer Support Group,Building Repairs & Maintenance,60108948,RGE SERVICES,295.76,30/07/2018,
Commercial,Customer Support Group,Other Services,60108108,BLUE 9 SECURITY LIMITED,"11,210.40",11/07/2018,
Commercial,Customer Support Group,Other Services,60108131,BLUE 9 SECURITY LIMITED,966.00,11/07/2018,
Commercial,Customer Support Group,Electricity,60109771,SCOTTISH POWER GROUP,"1,120.48",30/07/2018,
Commercial,Housing Needs Resources,Other Services,60107654,THE BARNETGROUP LIMITED,"278,222.92",18/07/2018,
Commercial,Housing Needs Resources,Private Contractors - Third Pa,60107673,THE BARNETGROUP LIMITED,"2,280,000.00",16/07/2018,
Commercial,Housing Needs Resources,Private Contractors - Third Pa,60109884,THE BARNETGROUP LIMITED,"1,656,151.35",30/07/2018,
COMMERCIAL,HOUSING NEEDS RESOURCES,Grant Payments,80018406,ARTHUR J. FERRYMAN ASSOCIATES,908.52,12/07/2018,
COMMERCIAL,HOUSING NEEDS RESOURCES,Grant Payments,80018655,ARTHUR J. FERRYMAN ASSOCIATES,392.52,27/07/2018,
COMMERCIAL,HOUSING NEEDS RESOURCES,Grant Payments,80018408,BG BUILDING SOLUTIONS LTD,"7,949.55",12/07/2018,
COMMERCIAL,HOUSING NEEDS RESOURCES,Grant Payments,80018654,REDACTED - PERSONAL DATA,"3,271.00",27/07/2018,
COMMERCIAL,HOUSING REVENUE ACCOUNT,Consultants Fees,60098329,S W BRUCE & CO LTD,"4,981.01",11/07/2018,
COMMERCIAL,HOUSING REVENUE ACCOUNT,Consultants Fees,60106524,ALLIES AND MORRRISON,"1,182.00",06/07/2018,
COMMERCIAL,HOUSING REVENUE ACCOUNT,Consultants Fees,60109154,ALLIES AND MORRRISON,"28,500.00",24/07/2018,
COMMERCIAL,HOUSING REVENUE ACCOUNT,Professional Services,60108417,TBG OPEN DOOR LIMITED,"4,150,407.00",23/07/2018,
COMMERCIAL,HOUSING REVENUE ACCOUNT,Professional Services,60108475,TBG OPEN DOOR LIMITED,"1,778,745.82",23/07/2018,
Commercial,HRA,Consultants Fees,60106291,PRIORITY ESTATES PROJECT LTD,"1,047.75",11/07/2018,
Commercial,HRA,Consultants Fees,60108749,TROWERS & HAMLINS,370.00,23/07/2018,
Commercial,HRA,Consultants Fees,60107127,PRIORITY ESTATES PROJECT LTD,"2,584.45",09/07/2018,
Commercial,HRA,Consultants Fees,60107134,PRIORITY ESTATES PROJECT LTD,"2,794.00",19/07/2018,
Commercial,HRA,Consultants Fees,60107836,PRIORITY ESTATES PROJECT LTD,"2,444.75",09/07/2018,
Commercial,HRA,Building Repairs & Maintenance,60107707,THE BARNETGROUP LIMITED,"629,166.67",16/07/2018,
Commercial,HRA,Building Repairs & Maintenance,60109942,THE BARNETGROUP LIMITED,"629,166.67",30/07/2018,
Commercial,HRA,Other Services,60107731,THE BARNETGROUP LIMITED,"470,140.42",16/07/2018,
Commercial,HRA,Other Services,60109882,THE BARNETGROUP LIMITED,"470,140.42",30/07/2018,
Commercial,HRA,Electricity,60106650,E-ON ENERGY,35.24,20/07/2018,
Commercial,HRA,Electricity,60106651,E-ON ENERGY,337.01,09/07/2018,
Commercial,HRA,Other Services,60107679,THE BARNETGROUP LIMITED,"953,444.00",16/07/2018,
Commercial,HRA,Consultants Fees,60108163,TROWERS & HAMLINS,215.00,20/07/2018,
Commercial,HRA,Consultants Fees,60109429,TROWERS & HAMLINS,"1,622.50",30/07/2018,
Commercial,HRA,Private Contractors - Third Pa,80018696,REDACTED - PERSONAL DATA,"3,500.00",20/07/2018,
Commercial,HRA,Private Contractors - Third Pa,80018733,REDACTED - PERSONAL DATA,"3,500.00",25/07/2018,
Commercial,Parking & Infrastructure,Equipment and Materials Purcha,60105864,AGGREGATE INDUSTRIES UK LTD T/A SPADEOAK,"2,037.74",06/07/2018,
Commercial,Parking & Infrastructure,Equipment and Materials Purcha,60106405,GREENHAM TRADING LIMITED,62.80,12/07/2018,
Commercial,Parking & Infrastructure,Equipment and Materials Purcha,60106463,GREENHAM TRADING LIMITED,41.92,12/07/2018,
Commercial,Parking & Infrastructure,Equipment and Materials Purcha,60107460,GREENHAM TRADING LIMITED,334.50,04/07/2018,
Commercial,Parking & Infrastructure,Equipment and Materials Purcha,60107948,GREENHAM TRADING LIMITED,38.10,26/07/2018,
Commercial,Parking & Infrastructure,Equipment and Materials Purcha,60106116,INSTARMAC GROUP PLC,"1,851.72",06/07/2018,
Commercial,Parking & Infrastructure,Equipment and Materials Purcha,60105743,LAFARGE TARMAC TRADING LIMITED,274.25,10/07/2018,
Commercial,Parking & Infrastructure,Equipment and Materials Purcha,60105750,LAFARGE TARMAC TRADING LIMITED,138.15,10/07/2018,
Commercial,Parking & Infrastructure,Equipment and Materials Purcha,60105753,LAFARGE TARMAC TRADING LIMITED,131.97,10/07/2018,
Commercial,Parking & Infrastructure,Equipment and Materials Purcha,60105778,LAFARGE TARMAC TRADING LIMITED,107.22,10/07/2018,
Commercial,Parking & Infrastructure,Equipment and Materials Purcha,60105809,LAFARGE TARMAC TRADING LIMITED,105.16,10/07/2018,
Commercial,Parking & Infrastructure,Equipment and Materials Purcha,60105912,LAFARGE TARMAC TRADING LIMITED,171.15,03/07/2018,
Commercial,Parking & Infrastructure,Equipment and Materials Purcha,60106237,LAFARGE TARMAC TRADING LIMITED,101.04,06/07/2018,
Commercial,Parking & Infrastructure,Equipment and Materials Purcha,60106275,LAFARGE TARMAC TRADING LIMITED,103.10,10/07/2018,
Commercial,Parking & Infrastructure,Equipment and Materials Purcha,60106592,LAFARGE TARMAC TRADING LIMITED,160.84,12/07/2018,
Commercial,Parking & Infrastructure,Equipment and Materials Purcha,60106697,LAFARGE TARMAC TRADING LIMITED,123.72,12/07/2018,
Commercial,Parking & Infrastructure,Equipment and Materials Purcha,60107190,LAFARGE TARMAC TRADING LIMITED,117.53,17/07/2018,
Commercial,Parking & Infrastructure,Equipment and Materials Purcha,60107384,LAFARGE TARMAC TRADING LIMITED,189.70,19/07/2018,
Commercial,Parking & Infrastructure,Equipment and Materials Purcha,60107819,LAFARGE TARMAC TRADING LIMITED,103.10,24/07/2018,
Commercial,Parking & Infrastructure,Equipment and Materials Purcha,60107934,RENNICK UK LTD,655.23,26/07/2018,
Commercial,Parking & Infrastructure,Equipment and Materials Purcha,10014128,W. FAYERS & SONS,686.00,06/07/2018,
Commercial,Parking & Infrastructure,Equipment and Materials Purcha,10014129,W. FAYERS & SONS,109.47,06/07/2018,
Commercial,Parking & Infrastructure,Equipment and Materials Purcha,60108277,W. FAYERS & SONS,36.49,10/07/2018,
Commercial,Parking & Infrastructure,Other Services,60105854,REDCORN LTD,190.00,10/07/2018,
Commercial,Parking & Infrastructure,Other Services,60105855,REDCORN LTD,760.00,10/07/2018,
Commercial,Parking & Infrastructure,Consultants Fees,60109868,BRITISH PARKING ASSOCIATION,183.36,30/07/2018,
Commercial,Parking & Infrastructure,Software Licences & Support,60109856,BUCHANAN COMPUTING LTD,"2,964.00",30/07/2018,
Commercial,Parking & Infrastructure,Other Services,60105266,LONDON COUNCILS,"21,416.00",04/07/2018,
Commercial,Parking & Infrastructure,Other Services,60106126,LONDON COUNCILS,"27,048.00",04/07/2018,
Commercial,Parking & Infrastructure,Other Services,60108819,LONDON COUNCILS,"15,096.00",31/07/2018,
Commercial,Parking & Infrastructure,Other Services,10014115,NSL LTD,"3,092.70",10/07/2018,
Commercial,Parking & Infrastructure,Professional Services,60106529,NSL LTD,"6,795.14",06/07/2018,
Commercial,Parking & Infrastructure,Software Licences & Support,60109869,NSL LTD,"37,923.28",30/07/2018,
Commercial,Parking & Infrastructure,Software Licences & Support,60109985,NSL LTD,"10,156.74",30/07/2018,
Commercial,Parking & Infrastructure,Other Services,60106649,PARKEON LIMITED,810.00,17/07/2018,
Commercial,Parking & Infrastructure,Other Services,60106662,PARKEON LIMITED,"2,064.00",17/07/2018,
Commercial,Parking & Infrastructure,Other Services,60109839,PARKEON LIMITED,"7,886.70",30/07/2018,
Commercial,Public Health,Consultants Fees,60106612,REDACTED - PERSONAL DATA,"1,269.32",17/07/2018,
Commercial,Public Health,Other Transfer Payments to Soc,60100546,CENTRAL LONDONCOMMUNITY HEALTHCARE,"29,167.00",03/07/2018,
Commercial,Public Health,Other Transfer Payments to Soc,60100580,CENTRAL LONDONCOMMUNITY HEALTHCARE,"4,917.00",03/07/2018,
Commercial,Public Health,Other Transfer Payments to Soc,60100586,CENTRAL LONDONCOMMUNITY HEALTHCARE,"356,000.00",03/07/2018,
Commercial,Public Health,Other Transfer Payments to Soc,60100643,CENTRAL LONDONCOMMUNITY HEALTHCARE,"9,583.00",03/07/2018,
Commercial,Public Health,Other Transfer Payments to Soc,60100698,CENTRAL LONDONCOMMUNITY HEALTHCARE,"85,834.00",03/07/2018,
Commercial,Public Health,Health authorities - Third Par,60106418,BUCKINGHAMSHIRE HEALTHCARE NHS TRUST,393.00,23/07/2018,
Commercial,Public Health,Health authorities - Third Par,60106080,CENTRAL & NORTH WEST LONDON NHS FT,"1,732.38",16/07/2018,
Commercial,Public Health,Health authorities - Third Par,60106195,CENTRAL & NORTH WEST LONDON NHS FT,"143,747.64",31/07/2018,
Commercial,Public Health,Health authorities - Third Par,60106200,CENTRAL & NORTH WEST LONDON NHS FT,44.57,31/07/2018,
Commercial,Public Health,Health authorities - Third Par,60106234,CENTRAL & NORTH WEST LONDON NHS FT,"2,631.53",31/07/2018,
Commercial,Public Health,Health authorities - Third Par,60108496,CENTRAL & NORTH WEST LONDON NHS FT,"11,500.00",16/07/2018,
Commercial,Public Health,Health authorities - Third Par,60108996,CENTRAL & NORTH WEST LONDON NHS FT,50.23,25/07/2018,
Commercial,Public Health,Health authorities - Third Par,60106538,COVENTRY & WARWICKSHIRE PARTNERSHIP,138.14,12/07/2018,
Commercial,Public Health,Private Contractors - Third Pa,60107885,DEBIGNO LTD T/A PATHWAY ANALYTICS,500.00,26/07/2018,
Commercial,Public Health,Health authorities - Third Par,60106596,GUY'S AND ST THOMAS' NHS FT,"4,866.24",11/07/2018,
Commercial,Public Health,Health authorities - Third Par,60108008,IMPERIAL COLLEGE HEALTHCARE NHS TRUST,"17,202.00",10/07/2018,
Commercial,Public Health,Health authorities - Third Par,60108058,IMPERIAL COLLEGE HEALTHCARE NHS TRUST,"17,202.00",10/07/2018,
Commercial,Public Health,Health authorities - Third Par,60108403,KENT COMMUNITY HEALTH NHS FT,142.44,19/07/2018,
Commercial,Public Health,Health authorities - Third Par,60108292,KING'S COLLEGE HOSPITAL NHS FOUNDATION T,299.00,26/07/2018,
Commercial,Public Health,Health authorities - Third Par,10014138,LONDON NORTH WEST HEALTHCARE NHS TRUST,"11,864.00",12/07/2018,
Commercial,Public Health,Health authorities - Third Par,10014139,LONDON NORTH WEST HEALTHCARE NHS TRUST,"13,339.00",12/07/2018,
Commercial,Public Health,Health authorities - Third Par,10014140,LONDON NORTH WEST HEALTHCARE NHS TRUST,"9,668.00",26/07/2018,
Commercial,Public Health,Health authorities - Third Par,10014141,LONDON NORTH WEST HEALTHCARE NHS TRUST,"9,840.00",12/07/2018,
Commercial,Public Health,Health authorities - Third Par,60108652,MAIDSTONE & TUNBRIDGE WELLS NHS TRUST,130.00,23/07/2018,
Commercial,Public Health,Health authorities - Third Par,60109895,NORTHAMPTONSHIRE HEALTHCARE NHS,243.00,31/07/2018,
Commercial,Public Health,Health authorities - Third Par,60107662,OXFORD UNIVERSITY HOSPITALS NHS FOUNDATI,337.00,09/07/2018,
Commercial,Public Health,Health authorities - Third Par,60107706,OXFORD UNIVERSITY HOSPITALS NHS FOUNDATI,702.00,09/07/2018,
Commercial,Public Health,Health authorities - Third Par,60107759,OXFORD UNIVERSITY HOSPITALS NHS FOUNDATI,365.00,09/07/2018,
Commercial,Public Health,Health authorities - Third Par,60107760,OXFORD UNIVERSITY HOSPITALS NHS FOUNDATI,337.00,09/07/2018,
Commercial,Public Health,Health authorities - Third Par,60108364,ROYAL BERKSHIRE NHS FOUNDATION TRUST,131.00,13/07/2018,
Commercial,Public Health,Health authorities - Third Par,60107700,UNIVERSITY HOSPITALS BRISTOL,139.73,12/07/2018,
Commercial,Public Health,Health authorities - Third Par,60107709,UNIVERSITY HOSPITALS BRISTOL,225.65,09/07/2018,
Commercial,Public Health,Ttl IT & Comms,60107994,IDOX HEALTH LTD,"2,055.00",26/07/2018,
Commercial,Public Health,Health authorities - Third Par,60105897,WESTMINSTER DRUG PROJECT,"52,440.00",20/07/2018,
Commercial,Public Health,Health authorities - Third Par,60107775,MILLWAY MEDICAL PRACTICE,670.00,26/07/2018,
Commercial,Public Health,Other Local Authorities - Thir,60106961,NORTH 51 LTD T/A BIONICAL LTD,"7,300.00",12/07/2018,
Commercial,Public Health,Health authorities - Third Par,60107828,OAKLODGE MEDICAL CENTRE,740.00,26/07/2018,
Commercial,Public Health,Health authorities - Third Par,60107821,ST ANDREWS MEDICAL PRACTICE,70.00,26/07/2018,
Commercial,Public Health,Health authorities - Third Par,60107809,THE CLINIC,700.00,26/07/2018,
Commercial,Public Health,Health authorities - Third Par,60107850,THE DERWENT MEDICAL CENTRE,350.00,26/07/2018,
Commercial,Public Health,Health authorities - Third Par,60107860,THE TEMPLE FORTUNE HEALTH CENTRE,200.00,26/07/2018,
Commercial,Regional Enterprise,Legal and Court Fees,80018702,REDACTED - PERSONAL DATA,"3,000.00",20/07/2018,
Commercial,Regional Enterprise,Other Services,60105443,CASTLE WATER LTD,158.41,24/07/2018,
Commercial,Regional Enterprise,Other Services,60105455,CASTLE WATER LTD,195.27,24/07/2018,
Commercial,Regional Enterprise,Other Services,60106558,CASTLE WATER LTD,58.49,24/07/2018,
Commercial,Regional Enterprise,Advertising,60100187,TMP (UK) LTD,90.00,10/07/2018,
Commercial,Regional Enterprise,Advertising,60100203,TMP (UK) LTD,170.00,23/07/2018,
Commercial,Regional Enterprise,Advertising,60100211,TMP (UK) LTD,139.00,16/07/2018,
Commercial,Regional Enterprise,Advertising,60100220,TMP (UK) LTD,139.00,10/07/2018,
Commercial,Regional Enterprise,Advertising,60100737,TMP (UK) LTD,90.00,10/07/2018,
Commercial,Regional Enterprise,Advertising,60101451,TMP (UK) LTD,278.00,10/07/2018,
Commercial,Regional Enterprise,Advertising,60102072,TMP (UK) LTD,278.00,16/07/2018,
Commercial,Regional Enterprise,Advertising,60102082,TMP (UK) LTD,260.00,10/07/2018,
Commercial,Regional Enterprise,Advertising,60102085,TMP (UK) LTD,90.00,10/07/2018,
Commercial,Regional Enterprise,Advertising,60103520,TMP (UK) LTD,278.00,10/07/2018,
Commercial,Regional Enterprise,Advertising,60103528,TMP (UK) LTD,260.00,10/07/2018,
Commercial,Regional Enterprise,Advertising,60103585,TMP (UK) LTD,260.00,10/07/2018,
Commercial,Regional Enterprise,Advertising,60105241,TMP (UK) LTD,260.00,10/07/2018,
Commercial,Regional Enterprise,Advertising,60105648,TMP (UK) LTD,81.00,23/07/2018,
Commercial,Regional Enterprise,Advertising,60105698,TMP (UK) LTD,99.00,23/07/2018,
Commercial,Regional Enterprise,Advertising,60106134,TMP (UK) LTD,260.00,23/07/2018,
Commercial,Regional Enterprise,Advertising,60107341,TMP (UK) LTD,278.00,26/07/2018,
Commercial,Regional Enterprise,Advertising,60107426,TMP (UK) LTD,170.00,26/07/2018,
Commercial,Regional Enterprise,Advertising,60107763,TMP (UK) LTD,90.00,26/07/2018,
Commercial,Regional Enterprise,Advertising,60108285,TMP (UK) LTD,170.00,26/07/2018,
Commercial,Regional Enterprise,Advertising,60102050,TMP (UK) LTD,"1,178.00",04/07/2018,
Commercial,Regional Enterprise,Advertising,60106164,TMP (UK) LTD,287.00,06/07/2018,
Commercial,Regional Enterprise,Advertising,60108733,TMP (UK) LTD,413.00,25/07/2018,
Commercial,Regional Enterprise,Equipment and Materials Purcha,60109331,BOUYGUES E&S INFRASTRUCTURE UK LTD,290.57,30/07/2018,
Commercial,Regional Enterprise,Other Services,60106329,CONWAY AECOM LTD,"1,190.70",10/07/2018,
Commercial,Regional Enterprise,Equipment and Materials Purcha,60109406,RM COUNTRYSIDE SERVICES LTD,"11,650.00",30/07/2018,
Commercial,Regional Enterprise,Other Services,60109976,RM COUNTRYSIDE SERVICES LTD,430.00,30/07/2018,
Commercial,Regional Enterprise,Refunds,80018854,BISHOP & SEWELL LLP,78.00,27/07/2018,
Commercial,Regional Enterprise,Professional Services,60105509,WATES LIVING SPACE,"1,121.55",06/07/2018,
Commercial,Regional Enterprise,Professional Services,60106247,WATES LIVING SPACE,268.13,06/07/2018,
Commercial,Regional Enterprise,Professional Services,60108986,WATES LIVING SPACE,"1,300.69",26/07/2018,
Commercial,Regional Enterprise,Advertising,60107353,TMP (UK) LTD,287.00,26/07/2018,
Commercial,Regional Enterprise,Professional Services,60102651,PUBLIC ANALYST SCIENTIFIC SERVS. LT,-411.00,02/07/2018,
Commercial,Regional Enterprise,Other Services,60106252,CONWAY AECOM LTD,737.10,06/07/2018,
Commercial,Regional Enterprise,Other Services,60107791,CONWAY AECOM LTD,286.95,09/07/2018,
Commercial,Regional Enterprise,Other Services,60107831,CONWAY AECOM LTD,169.52,09/07/2018,
Commercial,Regional Enterprise,Other Services,60108551,CONWAY AECOM LTD,47.32,16/07/2018,
Commercial,Regional Enterprise,Other Services,60109059,CONWAY AECOM LTD,292.40,24/07/2018,
Commercial,Regional Enterprise,Other Services,60109078,CONWAY AECOM LTD,292.07,24/07/2018,
Commercial,Regional Enterprise,Other Services,60109109,CONWAY AECOM LTD,280.15,24/07/2018,
Commercial,Regional Enterprise,Other Services,60109117,CONWAY AECOM LTD,83.34,24/07/2018,
Commercial,Regional Enterprise,Other Services,60109148,CONWAY AECOM LTD,45.87,24/07/2018,
Commercial,Regional Enterprise,Other Services,60109175,CONWAY AECOM LTD,132.80,24/07/2018,
Commercial,Regional Enterprise,Other Services,60109178,CONWAY AECOM LTD,70.67,24/07/2018,
Commercial,Regional Enterprise,Other Services,60109465,CONWAY AECOM LTD,548.10,30/07/2018,
Commercial,Regional Enterprise,Other Services,60109495,CONWAY AECOM LTD,207.90,30/07/2018,
Commercial,Regional Enterprise,Other Services,60109497,CONWAY AECOM LTD,170.10,30/07/2018,
Commercial,Regional Enterprise,Other Services,60109535,CONWAY AECOM LTD,62.13,30/07/2018,
Commercial,Regional Enterprise,Other Services,60109687,CONWAY AECOM LTD,85.05,30/07/2018,
Commercial,Regional Enterprise,Other Services,60109715,CONWAY AECOM LTD,135.12,30/07/2018,
Commercial,Regional Enterprise,Other Services,60109728,CONWAY AECOM LTD,32.37,30/07/2018,
Commercial,Regional Enterprise,Other Services,60109745,CONWAY AECOM LTD,135.42,30/07/2018,
Commercial,Regional Enterprise,Other Services,60109755,CONWAY AECOM LTD,159.60,30/07/2018,
Commercial,Regional Enterprise,Other Services,60109780,CONWAY AECOM LTD,138.37,30/07/2018,
Commercial,Regional Enterprise,Other Services,60109789,CONWAY AECOM LTD,73.46,30/07/2018,
Commercial,Regional Enterprise,Other Services,60109798,CONWAY AECOM LTD,47.32,30/07/2018,
Commercial,Regional Enterprise,Other Services,60109801,CONWAY AECOM LTD,138.37,30/07/2018,
Commercial,Regional Enterprise,Other Services,60109805,CONWAY AECOM LTD,62.13,30/07/2018,
Commercial,Regional Enterprise,Other Services,60109826,CONWAY AECOM LTD,175.24,30/07/2018,
Commercial,Regional Enterprise,Other Services,60057395,CONWAY AECOM LTD,"1,417.92",20/07/2018,
Commercial,Regional Enterprise,Other Services,60109477,CONWAY AECOM LTD,"1,323.00",30/07/2018,
Commercial,Regional Enterprise,Other Services,60109479,CONWAY AECOM LTD,"1,638.00",30/07/2018,
Commercial,Regional Enterprise,Other Services,60109508,CONWAY AECOM LTD,926.10,30/07/2018,
Commercial,Regional Enterprise,Other Services,60109510,CONWAY AECOM LTD,"1,360.80",30/07/2018,
Commercial,Regional Enterprise,Other Services,60109530,CONWAY AECOM LTD,"1,008.00",30/07/2018,
Commercial,Regional Enterprise,Other Services,60109539,CONWAY AECOM LTD,453.60,30/07/2018,
Commercial,Regional Enterprise,Other Services,60109563,CONWAY AECOM LTD,289.80,30/07/2018,
Commercial,Regional Enterprise,Other Services,60109578,CONWAY AECOM LTD,850.50,30/07/2018,
Commercial,Regional Enterprise,Other Services,60109586,CONWAY AECOM LTD,604.80,30/07/2018,
Commercial,Regional Enterprise,Other Services,60109616,CONWAY AECOM LTD,781.20,30/07/2018,
Commercial,Regional Enterprise,Other Services,60109631,CONWAY AECOM LTD,"1,417.50",30/07/2018,
Commercial,Regional Enterprise,Other Services,60109632,CONWAY AECOM LTD,"1,020.60",30/07/2018,
Commercial,Regional Enterprise,Other Services,60109636,CONWAY AECOM LTD,"1,417.50",30/07/2018,
Commercial,Regional Enterprise,Other Services,60109649,CONWAY AECOM LTD,945.00,30/07/2018,
Commercial,Regional Enterprise,Other Services,60109671,CONWAY AECOM LTD,791.70,30/07/2018,
Commercial,Regional Enterprise,Other Services,60109675,CONWAY AECOM LTD,"1,039.50",30/07/2018,
Commercial,Regional Enterprise,Grant Payments,80018521,AMWELL CONSTRUCTION LTD,114.00,12/07/2018,
Commercial,Regional Enterprise,Grant Payments,80018524,AMWELL CONSTRUCTION LTD,114.00,12/07/2018,
Commercial,Regional Enterprise,Grant Payments,80018526,AMWELL CONSTRUCTION LTD,114.00,12/07/2018,
Commercial,Regional Enterprise,Grant Payments,80018527,AMWELL CONSTRUCTION LTD,114.00,12/07/2018,
Commercial,Regional Enterprise,Grant Payments,80018529,AMWELL CONSTRUCTION LTD,114.00,12/07/2018,
Commercial,Regional Enterprise,Grant Payments,80018530,AMWELL CONSTRUCTION LTD,114.00,12/07/2018,
Commercial,Regional Enterprise,Grant Payments,80018532,AMWELL CONSTRUCTION LTD,114.00,12/07/2018,
Commercial,Regional Enterprise,Grant Payments,80018533,AMWELL CONSTRUCTION LTD,114.00,12/07/2018,
Commercial,Regional Enterprise,Grant Payments,80018535,AMWELL CONSTRUCTION LTD,114.00,12/07/2018,
Commercial,Regional Enterprise,Grant Payments,80018536,AMWELL CONSTRUCTION LTD,114.00,12/07/2018,
Commercial,Regional Enterprise,Grant Payments,80018366,ECOLOGIC ENERGY,464.10,06/07/2018,
Commercial,Regional Enterprise,Grant Payments,80018743,ECOLOGIC ENERGY,374.85,20/07/2018,
Commercial,Regional Enterprise,Grant Payments,80018551,H D PROPERTY SERVICES LTD,294.00,12/07/2018,
Commercial,Regional Enterprise,Other Establishments - Third P,80018602,TRANSPORT FOR LONDON,"754,872.89",19/07/2018,
Commercial,Regional Enterprise,Fees and Charges,80018291,PUBLIC ANALYST SCIENTIFIC SERVS. LT,600.00,02/07/2018,
Commercial,Regional Enterprise,Consultants Fees,60107222,GOWLING WLG,"3,180.00",04/07/2018,
Commercial,Regional Enterprise,Consultants Fees,60107262,GOWLING WLG,"1,298.00",04/07/2018,
Commercial,Regional Enterprise,Consultants Fees,60107281,GOWLING WLG,"11,500.00",04/07/2018,
Commercial,Regional Enterprise,Consultants Fees,60107305,GOWLING WLG,874.00,04/07/2018,
Commercial,Regional Enterprise,Consultants Fees,60109077,GOWLING WLG,"5,445.30",25/07/2018,
Commercial,Regional Enterprise,Consultants Fees,60109104,GOWLING WLG,"13,971.75",25/07/2018,
Commercial,Regional Enterprise,Consultants Fees,60109187,GOWLING WLG,"3,271.20",24/07/2018,
Commercial,Regional Enterprise,Consultants Fees,60107228,GOWLING WLG,"1,209.60",04/07/2018,
Commercial,Regional Enterprise,Consultants Fees,60107230,GOWLING WLG,"1,674.00",04/07/2018,
Commercial,Regional Enterprise,Consultants Fees,60107241,GOWLING WLG,691.20,04/07/2018,
Commercial,Regional Enterprise,Consultants Fees,60109152,GOWLING WLG,642.00,24/07/2018,
Commercial,Regional Enterprise,Consultants Fees,60109174,GOWLING WLG,"3,240.92",24/07/2018,
Commercial,Regional Enterprise,Consultants Fees,60106561,SAPIENS CONSULTANCY,460.00,17/07/2018,
Commercial,Regional Enterprise,RE Services Contract Payment,60107090,RE (REGIONAL ENTERPRISE) LIMITED,"24,832.77",11/07/2018,
Commercial,Regional Enterprise,RE Services Contract Payment,60107181,RE (REGIONAL ENTERPRISE) LIMITED,"22,549.19",11/07/2018,
Commercial,Regional Enterprise,RE Services Contract Payment,60107184,RE (REGIONAL ENTERPRISE) LIMITED,"18,828.97",11/07/2018,
Commercial,Regional Enterprise,Professional Services,10014118,RE (REGIONAL ENTERPRISE) LIMITED,"251,392.90",02/07/2018,
Commercial,Regional Enterprise,Professional Services,60107671,RE (REGIONAL ENTERPRISE) LIMITED,"64,260.20",17/07/2018,
Commercial,Regional Enterprise,Cleaning and domestic material,60105554,CHURCHILL CONTRACT SERVICES,488.56,13/07/2018,
Commercial,Regional Enterprise,Cleaning and domestic material,60107990,CHURCHILL CONTRACT SERVICES,488.56,30/07/2018,
COMMERCIAL,REGIONAL ENTERPRISE,Grant Payments,80018355,ACCESS & AUTOMATION LTD,"3,490.00",06/07/2018,
COMMERCIAL,REGIONAL ENTERPRISE,Grant Payments,80018600,ACCESS & AUTOMATION LTD,"2,770.00",16/07/2018,
COMMERCIAL,REGIONAL ENTERPRISE,Grant Payments,80018340,AMWELL CONSTRUCTION LTD,"7,892.00",09/07/2018,
COMMERCIAL,REGIONAL ENTERPRISE,Grant Payments,80018805,AMWELL CONSTRUCTION LTD,"4,486.00",24/07/2018,
COMMERCIAL,REGIONAL ENTERPRISE,Grant Payments,80018723,ARTHUR J. FERRYMAN ASSOCIATES,204.00,19/07/2018,
COMMERCIAL,REGIONAL ENTERPRISE,Grant Payments,80018811,DOLPHIN MOBILITY LTD.,"2,450.00",24/07/2018,
COMMERCIAL,REGIONAL ENTERPRISE,Grant Payments,80018354,DP BUILDERS DISABLED ADAPTATIONS,"6,846.00",11/07/2018,
COMMERCIAL,REGIONAL ENTERPRISE,Grant Payments,80018373,DP BUILDERS DISABLED ADAPTATIONS,"24,704.00",11/07/2018,
COMMERCIAL,REGIONAL ENTERPRISE,Grant Payments,80018661,DP BUILDERS DISABLED ADAPTATIONS,"2,050.50",26/07/2018,
COMMERCIAL,REGIONAL ENTERPRISE,Grant Payments,80018724,DP BUILDERS DISABLED ADAPTATIONS,"12,811.40",26/07/2018,
COMMERCIAL,REGIONAL ENTERPRISE,Grant Payments,80018380,H D PROPERTY SERVICES LTD,"5,819.00",06/07/2018,
COMMERCIAL,REGIONAL ENTERPRISE,Grant Payments,80018537,H D PROPERTY SERVICES LTD,"4,359.00",12/07/2018,
COMMERCIAL,REGIONAL ENTERPRISE,Grant Payments,80018554,H D PROPERTY SERVICES LTD,628.00,13/07/2018,
COMMERCIAL,REGIONAL ENTERPRISE,Grant Payments,80018780,H D PROPERTY SERVICES LTD,"1,230.00",23/07/2018,
COMMERCIAL,REGIONAL ENTERPRISE,Grant Payments,80018339,DOMESTIC LIFT SERVICES LTD,"5,865.00",06/07/2018,
COMMERCIAL,REGIONAL ENTERPRISE,Grant Payments,80018430,STAMWEST LTD,"1,479.00",06/07/2018,
COMMERCIAL,REGIONAL ENTERPRISE,Grant Payments,80018475,POLLOCK LIFTS,"24,701.00",10/07/2018,
COMMERCIAL,REGIONAL ENTERPRISE,Grant Payments,80018560,SOUTH HERTFORDSHIRE,"5,527.00",13/07/2018,
COMMERCIAL,REGIONAL ENTERPRISE,Grant Payments,80018337,STANNAH STAIRLIFTS LTD,"5,784.00",06/07/2018,
COMMERCIAL,REGIONAL ENTERPRISE,Other Services,60108363,LIVING STREETS SERVICES LTD,"5,100.00",13/07/2018,
COMMERCIAL,REGIONAL ENTERPRISE,Other Services,60109867,BARNET LIGHTING SERVICES LTD,"9,742.68",30/07/2018,
COMMERCIAL,REGIONAL ENTERPRISE,Other Services,60107311,MACLEOD SIMMONDS LTD,"6,693.75",02/07/2018,
COMMERCIAL,REGIONAL ENTERPRISE,Other Services,60109155,CONWAY AECOM LTD,82.65,24/07/2018,
COMMERCIAL,REGIONAL ENTERPRISE,Equipment and Materials Purcha,60107509,CONWAY AECOM LTD,"42,808.49",03/07/2018,
COMMERCIAL,REGIONAL ENTERPRISE,Other Services,60109515,CONWAY AECOM LTD,"3,780.24",30/07/2018,
COMMERCIAL,REGIONAL ENTERPRISE,Other Services,60109617,CONWAY AECOM LTD,"3,607.21",30/07/2018,
COMMERCIAL,REGIONAL ENTERPRISE,Other Services,60109642,CONWAY AECOM LTD,"24,849.12",30/07/2018,
COMMERCIAL,REGIONAL ENTERPRISE,Other Services,60109677,CONWAY AECOM LTD,"49,660.87",30/07/2018,
COMMERCIAL,REGIONAL ENTERPRISE,Advertising,60101306,TMP (UK) LTD,728.00,04/07/2018,
COMMERCIAL,REGIONAL ENTERPRISE,Other Services,60108023,ENVIRONMENT AGENCY,"11,500.00",10/07/2018,
COMMERCIAL,REGIONAL ENTERPRISE,Other Services,60105382,CONWAY AECOM LTD,46.04,06/07/2018,
COMMERCIAL,REGIONAL ENTERPRISE,Other Services,60105383,CONWAY AECOM LTD,187.83,06/07/2018,
COMMERCIAL,REGIONAL ENTERPRISE,Other Services,60105384,CONWAY AECOM LTD,58.41,06/07/2018,
COMMERCIAL,REGIONAL ENTERPRISE,Other Services,60105385,CONWAY AECOM LTD,39.04,06/07/2018,
COMMERCIAL,REGIONAL ENTERPRISE,Other Services,60105386,CONWAY AECOM LTD,47.32,06/07/2018,
COMMERCIAL,REGIONAL ENTERPRISE,Other Services,60105388,CONWAY AECOM LTD,39.04,06/07/2018,
COMMERCIAL,REGIONAL ENTERPRISE,Other Services,60105393,CONWAY AECOM LTD,47.32,06/07/2018,
COMMERCIAL,REGIONAL ENTERPRISE,Other Services,60105400,CONWAY AECOM LTD,62.61,06/07/2018,
COMMERCIAL,REGIONAL ENTERPRISE,Other Services,60105402,CONWAY AECOM LTD,367.27,06/07/2018,
COMMERCIAL,REGIONAL ENTERPRISE,Other Services,60105403,CONWAY AECOM LTD,124.26,06/07/2018,
COMMERCIAL,REGIONAL ENTERPRISE,Other Services,60105404,CONWAY AECOM LTD,256.44,06/07/2018,
COMMERCIAL,REGIONAL ENTERPRISE,Other Services,60105407,CONWAY AECOM LTD,35.33,06/07/2018,
COMMERCIAL,REGIONAL ENTERPRISE,Other Services,60105408,CONWAY AECOM LTD,136.59,06/07/2018,
COMMERCIAL,REGIONAL ENTERPRISE,Other Services,60105410,CONWAY AECOM LTD,62.13,06/07/2018,
COMMERCIAL,REGIONAL ENTERPRISE,Other Services,60105411,CONWAY AECOM LTD,125.22,06/07/2018,
COMMERCIAL,REGIONAL ENTERPRISE,Other Services,60105414,CONWAY AECOM LTD,39.04,06/07/2018,
COMMERCIAL,REGIONAL ENTERPRISE,Other Services,60105416,CONWAY AECOM LTD,46.04,06/07/2018,
COMMERCIAL,REGIONAL ENTERPRISE,Other Services,60105417,CONWAY AECOM LTD,467.32,06/07/2018,
COMMERCIAL,REGIONAL ENTERPRISE,Other Services,60105418,CONWAY AECOM LTD,292.07,06/07/2018,
COMMERCIAL,REGIONAL ENTERPRISE,Other Services,60105419,CONWAY AECOM LTD,24.77,06/07/2018,
COMMERCIAL,REGIONAL ENTERPRISE,Other Services,60105420,CONWAY AECOM LTD,39.04,06/07/2018,
COMMERCIAL,REGIONAL ENTERPRISE,Other Services,60105422,CONWAY AECOM LTD,41.67,06/07/2018,
COMMERCIAL,REGIONAL ENTERPRISE,Other Services,60105423,CONWAY AECOM LTD,375.66,06/07/2018,
COMMERCIAL,REGIONAL ENTERPRISE,Other Services,60105427,CONWAY AECOM LTD,125.22,06/07/2018,
COMMERCIAL,REGIONAL ENTERPRISE,Other Services,60105431,CONWAY AECOM LTD,39.04,06/07/2018,
COMMERCIAL,REGIONAL ENTERPRISE,Other Services,60105432,CONWAY AECOM LTD,52.29,06/07/2018,
COMMERCIAL,REGIONAL ENTERPRISE,Other Services,60105433,CONWAY AECOM LTD,381.33,06/07/2018,
COMMERCIAL,REGIONAL ENTERPRISE,Other Services,60105435,CONWAY AECOM LTD,52.29,06/07/2018,
COMMERCIAL,REGIONAL ENTERPRISE,Other Services,60105437,CONWAY AECOM LTD,35.33,06/07/2018,
COMMERCIAL,REGIONAL ENTERPRISE,Other Services,60105440,CONWAY AECOM LTD,39.04,06/07/2018,
COMMERCIAL,REGIONAL ENTERPRISE,Other Services,60105441,CONWAY AECOM LTD,104.58,06/07/2018,
COMMERCIAL,REGIONAL ENTERPRISE,Other Services,60105442,CONWAY AECOM LTD,62.13,06/07/2018,
COMMERCIAL,REGIONAL ENTERPRISE,Other Services,60105444,CONWAY AECOM LTD,244.18,06/07/2018,
COMMERCIAL,REGIONAL ENTERPRISE,Other Services,60105445,CONWAY AECOM LTD,38.08,06/07/2018,
COMMERCIAL,REGIONAL ENTERPRISE,Other Services,60105446,CONWAY AECOM LTD,70.67,06/07/2018,
COMMERCIAL,REGIONAL ENTERPRISE,Other Services,60105451,CONWAY AECOM LTD,350.49,06/07/2018,
COMMERCIAL,REGIONAL ENTERPRISE,Other Services,60105454,CONWAY AECOM LTD,52.29,06/07/2018,
COMMERCIAL,REGIONAL ENTERPRISE,Other Services,60105456,CONWAY AECOM LTD,32.36,06/07/2018,
COMMERCIAL,REGIONAL ENTERPRISE,Other Services,60105457,CONWAY AECOM LTD,783.52,06/07/2018,
COMMERCIAL,REGIONAL ENTERPRISE,Other Services,60105460,CONWAY AECOM LTD,39.04,06/07/2018,
COMMERCIAL,REGIONAL ENTERPRISE,Other Services,60105462,CONWAY AECOM LTD,55.14,06/07/2018,
COMMERCIAL,REGIONAL ENTERPRISE,Other Services,60105463,CONWAY AECOM LTD,52.29,06/07/2018,
COMMERCIAL,REGIONAL ENTERPRISE,Other Services,60105464,CONWAY AECOM LTD,145.52,06/07/2018,
COMMERCIAL,REGIONAL ENTERPRISE,Other Services,60105466,CONWAY AECOM LTD,47.32,06/07/2018,
COMMERCIAL,REGIONAL ENTERPRISE,Other Services,60105467,CONWAY AECOM LTD,124.26,06/07/2018,
COMMERCIAL,REGIONAL ENTERPRISE,Other Services,60105470,CONWAY AECOM LTD,124.26,06/07/2018,
COMMERCIAL,REGIONAL ENTERPRISE,Other Services,60105471,CONWAY AECOM LTD,62.61,06/07/2018,
COMMERCIAL,REGIONAL ENTERPRISE,Other Services,60105473,CONWAY AECOM LTD,35.33,06/07/2018,
COMMERCIAL,REGIONAL ENTERPRISE,Other Services,60105474,CONWAY AECOM LTD,52.29,06/07/2018,
COMMERCIAL,REGIONAL ENTERPRISE,Other Services,60105475,CONWAY AECOM LTD,194.93,06/07/2018,
COMMERCIAL,REGIONAL ENTERPRISE,Other Services,60107629,CONWAY AECOM LTD,45.87,06/07/2018,
COMMERCIAL,REGIONAL ENTERPRISE,Other Services,60107727,CONWAY AECOM LTD,128.89,06/07/2018,
COMMERCIAL,REGIONAL ENTERPRISE,Other Services,60108544,CONWAY AECOM LTD,250.44,16/07/2018,
COMMERCIAL,REGIONAL ENTERPRISE,Other Services,60108545,CONWAY AECOM LTD,120.55,16/07/2018,
COMMERCIAL,REGIONAL ENTERPRISE,Other Services,60108546,CONWAY AECOM LTD,47.32,16/07/2018,
COMMERCIAL,REGIONAL ENTERPRISE,Other Services,60108554,CONWAY AECOM LTD,81.39,16/07/2018,
COMMERCIAL,REGIONAL ENTERPRISE,Other Services,60108559,CONWAY AECOM LTD,29.28,16/07/2018,
COMMERCIAL,REGIONAL ENTERPRISE,Other Services,60108562,CONWAY AECOM LTD,35.33,16/07/2018,
COMMERCIAL,REGIONAL ENTERPRISE,Other Services,60108563,CONWAY AECOM LTD,47.32,16/07/2018,
COMMERCIAL,REGIONAL ENTERPRISE,Other Services,60108573,CONWAY AECOM LTD,162.79,16/07/2018,
COMMERCIAL,REGIONAL ENTERPRISE,Other Services,60108576,CONWAY AECOM LTD,41.67,16/07/2018,
COMMERCIAL,REGIONAL ENTERPRISE,Other Services,60108583,CONWAY AECOM LTD,175.24,16/07/2018,
COMMERCIAL,REGIONAL ENTERPRISE,Other Services,60108588,CONWAY AECOM LTD,62.61,16/07/2018,
COMMERCIAL,REGIONAL ENTERPRISE,Other Services,60108604,CONWAY AECOM LTD,35.33,16/07/2018,
COMMERCIAL,REGIONAL ENTERPRISE,Other Services,60108605,CONWAY AECOM LTD,41.15,16/07/2018,
COMMERCIAL,REGIONAL ENTERPRISE,Other Services,60108606,CONWAY AECOM LTD,406.97,16/07/2018,
COMMERCIAL,REGIONAL ENTERPRISE,Other Services,60108614,CONWAY AECOM LTD,937.56,23/07/2018,
COMMERCIAL,REGIONAL ENTERPRISE,Other Services,60108622,CONWAY AECOM LTD,55.14,23/07/2018,
COMMERCIAL,REGIONAL ENTERPRISE,Other Services,60108631,CONWAY AECOM LTD,83.34,23/07/2018,
COMMERCIAL,REGIONAL ENTERPRISE,Other Services,60108640,CONWAY AECOM LTD,35.33,23/07/2018,
COMMERCIAL,REGIONAL ENTERPRISE,Other Services,60108667,CONWAY AECOM LTD,38.08,17/07/2018,
COMMERCIAL,REGIONAL ENTERPRISE,Other Services,60108670,CONWAY AECOM LTD,52.29,17/07/2018,
COMMERCIAL,REGIONAL ENTERPRISE,Other Services,60108673,CONWAY AECOM LTD,54.29,17/07/2018,
COMMERCIAL,REGIONAL ENTERPRISE,Other Services,60108675,CONWAY AECOM LTD,35.33,17/07/2018,
COMMERCIAL,REGIONAL ENTERPRISE,Other Services,60108684,CONWAY AECOM LTD,125.22,17/07/2018,
COMMERCIAL,REGIONAL ENTERPRISE,Other Services,60108697,CONWAY AECOM LTD,125.22,17/07/2018,
COMMERCIAL,REGIONAL ENTERPRISE,Other Services,60108700,CONWAY AECOM LTD,92.09,17/07/2018,
COMMERCIAL,REGIONAL ENTERPRISE,Other Services,60108708,CONWAY AECOM LTD,125.22,17/07/2018,
COMMERCIAL,REGIONAL ENTERPRISE,Other Services,60108712,CONWAY AECOM LTD,39.04,17/07/2018,
COMMERCIAL,REGIONAL ENTERPRISE,Other Services,60108713,CONWAY AECOM LTD,35.33,17/07/2018,
COMMERCIAL,REGIONAL ENTERPRISE,Other Services,60108714,CONWAY AECOM LTD,41.15,17/07/2018,
COMMERCIAL,REGIONAL ENTERPRISE,Other Services,60108726,CONWAY AECOM LTD,310.66,23/07/2018,
COMMERCIAL,REGIONAL ENTERPRISE,Other Services,60108727,CONWAY AECOM LTD,38.08,23/07/2018,
COMMERCIAL,REGIONAL ENTERPRISE,Other Services,60108728,CONWAY AECOM LTD,495.73,23/07/2018,
COMMERCIAL,REGIONAL ENTERPRISE,Other Services,60108738,CONWAY AECOM LTD,81.39,23/07/2018,
COMMERCIAL,REGIONAL ENTERPRISE,Other Services,60108740,CONWAY AECOM LTD,168.35,23/07/2018,
COMMERCIAL,REGIONAL ENTERPRISE,Other Services,60108745,CONWAY AECOM LTD,81.39,23/07/2018,
COMMERCIAL,REGIONAL ENTERPRISE,Other Services,60108746,CONWAY AECOM LTD,55.14,23/07/2018,
COMMERCIAL,REGIONAL ENTERPRISE,Other Services,60108748,CONWAY AECOM LTD,775.75,23/07/2018,
COMMERCIAL,REGIONAL ENTERPRISE,Other Services,60108763,CONWAY AECOM LTD,244.18,23/07/2018,
COMMERCIAL,REGIONAL ENTERPRISE,Other Services,60108765,CONWAY AECOM LTD,129.73,23/07/2018,
COMMERCIAL,REGIONAL ENTERPRISE,Other Services,60108772,CONWAY AECOM LTD,199.46,23/07/2018,
COMMERCIAL,REGIONAL ENTERPRISE,Other Services,60108773,CONWAY AECOM LTD,"1,601.70",23/07/2018,
COMMERCIAL,REGIONAL ENTERPRISE,Other Services,60108774,CONWAY AECOM LTD,162.79,23/07/2018,
COMMERCIAL,REGIONAL ENTERPRISE,Other Services,60108775,CONWAY AECOM LTD,58.57,23/07/2018,
COMMERCIAL,REGIONAL ENTERPRISE,Other Services,60108779,CONWAY AECOM LTD,106.00,23/07/2018,
COMMERCIAL,REGIONAL ENTERPRISE,Other Services,60108784,CONWAY AECOM LTD,259.47,23/07/2018,
COMMERCIAL,REGIONAL ENTERPRISE,Other Services,60108792,CONWAY AECOM LTD,244.18,23/07/2018,
COMMERCIAL,REGIONAL ENTERPRISE,Other Services,60108795,CONWAY AECOM LTD,274.62,23/07/2018,
COMMERCIAL,REGIONAL ENTERPRISE,Other Services,60108800,CONWAY AECOM LTD,55.14,23/07/2018,
COMMERCIAL,REGIONAL ENTERPRISE,Other Services,60108801,CONWAY AECOM LTD,52.29,23/07/2018,
COMMERCIAL,REGIONAL ENTERPRISE,Other Services,60108802,CONWAY AECOM LTD,78.09,23/07/2018,
COMMERCIAL,REGIONAL ENTERPRISE,Other Services,60108822,CONWAY AECOM LTD,109.93,23/07/2018,
COMMERCIAL,REGIONAL ENTERPRISE,Other Services,60108823,CONWAY AECOM LTD,26.15,23/07/2018,
COMMERCIAL,REGIONAL ENTERPRISE,Other Services,60108826,CONWAY AECOM LTD,23.66,23/07/2018,
COMMERCIAL,REGIONAL ENTERPRISE,Other Services,60108829,CONWAY AECOM LTD,408.15,23/07/2018,
COMMERCIAL,REGIONAL ENTERPRISE,Other Services,60108835,CONWAY AECOM LTD,39.04,23/07/2018,
COMMERCIAL,REGIONAL ENTERPRISE,Other Services,60108837,CONWAY AECOM LTD,52.29,23/07/2018,
COMMERCIAL,REGIONAL ENTERPRISE,Other Services,60108838,CONWAY AECOM LTD,52.29,23/07/2018,
COMMERCIAL,REGIONAL ENTERPRISE,Other Services,60108840,CONWAY AECOM LTD,35.33,23/07/2018,
COMMERCIAL,REGIONAL ENTERPRISE,Other Services,60108845,CONWAY AECOM LTD,46.04,23/07/2018,
COMMERCIAL,REGIONAL ENTERPRISE,Other Services,60108852,CONWAY AECOM LTD,52.29,23/07/2018,
COMMERCIAL,REGIONAL ENTERPRISE,Other Services,60108853,CONWAY AECOM LTD,39.04,23/07/2018,
COMMERCIAL,REGIONAL ENTERPRISE,Other Services,60108857,CONWAY AECOM LTD,245.34,23/07/2018,
COMMERCIAL,REGIONAL ENTERPRISE,Other Services,60108859,CONWAY AECOM LTD,82.18,23/07/2018,
COMMERCIAL,REGIONAL ENTERPRISE,Other Services,60108862,CONWAY AECOM LTD,92.87,23/07/2018,
COMMERCIAL,REGIONAL ENTERPRISE,Other Services,60108866,CONWAY AECOM LTD,125.22,23/07/2018,
COMMERCIAL,REGIONAL ENTERPRISE,Other Services,60108868,CONWAY AECOM LTD,49.64,23/07/2018,
COMMERCIAL,REGIONAL ENTERPRISE,Other Services,60108875,CONWAY AECOM LTD,52.29,23/07/2018,
COMMERCIAL,REGIONAL ENTERPRISE,Other Services,60108880,CONWAY AECOM LTD,116.83,23/07/2018,
COMMERCIAL,REGIONAL ENTERPRISE,Other Services,60108885,CONWAY AECOM LTD,47.32,23/07/2018,
COMMERCIAL,REGIONAL ENTERPRISE,Other Services,60108889,CONWAY AECOM LTD,47.32,23/07/2018,
COMMERCIAL,REGIONAL ENTERPRISE,Other Services,60108892,CONWAY AECOM LTD,246.43,23/07/2018,
COMMERCIAL,REGIONAL ENTERPRISE,Other Services,60108894,CONWAY AECOM LTD,52.29,23/07/2018,
COMMERCIAL,REGIONAL ENTERPRISE,Other Services,60108895,CONWAY AECOM LTD,123.04,23/07/2018,
COMMERCIAL,REGIONAL ENTERPRISE,Other Services,60108897,CONWAY AECOM LTD,52.29,23/07/2018,
COMMERCIAL,REGIONAL ENTERPRISE,Other Services,60108902,CONWAY AECOM LTD,553.39,23/07/2018,
COMMERCIAL,REGIONAL ENTERPRISE,Other Services,60108905,CONWAY AECOM LTD,70.67,23/07/2018,
COMMERCIAL,REGIONAL ENTERPRISE,Other Services,60108909,CONWAY AECOM LTD,187.83,23/07/2018,
COMMERCIAL,REGIONAL ENTERPRISE,Other Services,60108911,CONWAY AECOM LTD,867.65,23/07/2018,
COMMERCIAL,REGIONAL ENTERPRISE,Other Services,60108916,CONWAY AECOM LTD,52.29,23/07/2018,
COMMERCIAL,REGIONAL ENTERPRISE,Other Services,60108918,CONWAY AECOM LTD,116.83,23/07/2018,
COMMERCIAL,REGIONAL ENTERPRISE,Other Services,60108940,CONWAY AECOM LTD,66.49,23/07/2018,
COMMERCIAL,REGIONAL ENTERPRISE,Other Services,60108943,CONWAY AECOM LTD,73.35,23/07/2018,
COMMERCIAL,REGIONAL ENTERPRISE,Other Services,60108952,CONWAY AECOM LTD,81.39,23/07/2018,
COMMERCIAL,REGIONAL ENTERPRISE,Other Services,60108959,CONWAY AECOM LTD,73.35,23/07/2018,
COMMERCIAL,REGIONAL ENTERPRISE,Other Services,60108965,CONWAY AECOM LTD,325.57,23/07/2018,
COMMERCIAL,REGIONAL ENTERPRISE,Other Services,60108966,CONWAY AECOM LTD,132.97,23/07/2018,
COMMERCIAL,REGIONAL ENTERPRISE,Other Services,60108985,CONWAY AECOM LTD,293.41,23/07/2018,
COMMERCIAL,REGIONAL ENTERPRISE,Other Services,60108994,CONWAY AECOM LTD,73.35,23/07/2018,
COMMERCIAL,REGIONAL ENTERPRISE,Other Services,60108999,CONWAY AECOM LTD,415.11,23/07/2018,
COMMERCIAL,REGIONAL ENTERPRISE,Other Services,60109002,CONWAY AECOM LTD,41.67,23/07/2018,
COMMERCIAL,REGIONAL ENTERPRISE,Other Services,60109003,CONWAY AECOM LTD,66.49,23/07/2018,
COMMERCIAL,REGIONAL ENTERPRISE,Other Services,60109009,CONWAY AECOM LTD,233.66,23/07/2018,
COMMERCIAL,REGIONAL ENTERPRISE,Other Services,60109021,CONWAY AECOM LTD,69.18,23/07/2018,
COMMERCIAL,REGIONAL ENTERPRISE,Other Services,60109032,CONWAY AECOM LTD,66.49,23/07/2018,
COMMERCIAL,REGIONAL ENTERPRISE,Other Services,60109045,CONWAY AECOM LTD,94.64,23/07/2018,
COMMERCIAL,REGIONAL ENTERPRISE,Other Services,60109047,CONWAY AECOM LTD,58.58,23/07/2018,
COMMERCIAL,REGIONAL ENTERPRISE,Other Services,60109050,CONWAY AECOM LTD,47.32,23/07/2018,
COMMERCIAL,REGIONAL ENTERPRISE,Other Services,60109054,CONWAY AECOM LTD,58.41,24/07/2018,
COMMERCIAL,REGIONAL ENTERPRISE,Other Services,60109066,CONWAY AECOM LTD,52.29,24/07/2018,
COMMERCIAL,REGIONAL ENTERPRISE,Other Services,60109075,CONWAY AECOM LTD,205.67,24/07/2018,
COMMERCIAL,REGIONAL ENTERPRISE,Other Services,60109079,CONWAY AECOM LTD,70.11,24/07/2018,
COMMERCIAL,REGIONAL ENTERPRISE,Other Services,60109080,CONWAY AECOM LTD,137.31,24/07/2018,
COMMERCIAL,REGIONAL ENTERPRISE,Other Services,60109082,CONWAY AECOM LTD,456.28,24/07/2018,
COMMERCIAL,REGIONAL ENTERPRISE,Other Services,60109087,CONWAY AECOM LTD,350.49,24/07/2018,
COMMERCIAL,REGIONAL ENTERPRISE,Other Services,60109105,CONWAY AECOM LTD,81.39,24/07/2018,
COMMERCIAL,REGIONAL ENTERPRISE,Other Services,60109111,CONWAY AECOM LTD,351.87,24/07/2018,
COMMERCIAL,REGIONAL ENTERPRISE,Other Services,60109113,CONWAY AECOM LTD,123.04,24/07/2018,
COMMERCIAL,REGIONAL ENTERPRISE,Other Services,60109115,CONWAY AECOM LTD,238.52,24/07/2018,
COMMERCIAL,REGIONAL ENTERPRISE,Other Services,60109116,CONWAY AECOM LTD,35.33,24/07/2018,
COMMERCIAL,REGIONAL ENTERPRISE,Other Services,60109118,CONWAY AECOM LTD,104.58,24/07/2018,
COMMERCIAL,REGIONAL ENTERPRISE,Other Services,60109120,CONWAY AECOM LTD,162.79,24/07/2018,
COMMERCIAL,REGIONAL ENTERPRISE,Other Services,60109124,CONWAY AECOM LTD,101.37,24/07/2018,
COMMERCIAL,REGIONAL ENTERPRISE,Other Services,60109125,CONWAY AECOM LTD,99.79,24/07/2018,
COMMERCIAL,REGIONAL ENTERPRISE,Other Services,60109127,CONWAY AECOM LTD,110.18,24/07/2018,
COMMERCIAL,REGIONAL ENTERPRISE,Other Services,60109130,CONWAY AECOM LTD,193.64,24/07/2018,
COMMERCIAL,REGIONAL ENTERPRISE,Other Services,60109135,CONWAY AECOM LTD,47.32,24/07/2018,
COMMERCIAL,REGIONAL ENTERPRISE,Other Services,60109141,CONWAY AECOM LTD,125.22,24/07/2018,
COMMERCIAL,REGIONAL ENTERPRISE,Other Services,60109156,CONWAY AECOM LTD,162.79,24/07/2018,
COMMERCIAL,REGIONAL ENTERPRISE,Other Services,60109157,CONWAY AECOM LTD,81.39,24/07/2018,
COMMERCIAL,REGIONAL ENTERPRISE,Other Services,60109158,CONWAY AECOM LTD,47.32,24/07/2018,
COMMERCIAL,REGIONAL ENTERPRISE,Other Services,60109168,CONWAY AECOM LTD,563.49,24/07/2018,
COMMERCIAL,REGIONAL ENTERPRISE,Other Services,60109172,CONWAY AECOM LTD,59.62,24/07/2018,
COMMERCIAL,REGIONAL ENTERPRISE,Other Services,60109173,CONWAY AECOM LTD,101.77,24/07/2018,
COMMERCIAL,REGIONAL ENTERPRISE,Other Services,60109176,CONWAY AECOM LTD,39.04,24/07/2018,
COMMERCIAL,REGIONAL ENTERPRISE,Other Services,60109177,CONWAY AECOM LTD,87.97,24/07/2018,
COMMERCIAL,REGIONAL ENTERPRISE,Other Services,60109179,CONWAY AECOM LTD,59.62,24/07/2018,
COMMERCIAL,REGIONAL ENTERPRISE,Other Services,60109180,CONWAY AECOM LTD,58.54,24/07/2018,
COMMERCIAL,REGIONAL ENTERPRISE,Other Services,60109183,CONWAY AECOM LTD,648.19,24/07/2018,
COMMERCIAL,REGIONAL ENTERPRISE,Other Services,60109186,CONWAY AECOM LTD,382.47,24/07/2018,
COMMERCIAL,REGIONAL ENTERPRISE,Other Services,60109188,CONWAY AECOM LTD,24.95,30/07/2018,
COMMERCIAL,REGIONAL ENTERPRISE,Other Services,60109191,CONWAY AECOM LTD,54.17,30/07/2018,
COMMERCIAL,REGIONAL ENTERPRISE,Other Services,60109193,CONWAY AECOM LTD,35.33,30/07/2018,
COMMERCIAL,REGIONAL ENTERPRISE,Other Services,60109194,CONWAY AECOM LTD,35.33,30/07/2018,
COMMERCIAL,REGIONAL ENTERPRISE,Other Services,60109197,CONWAY AECOM LTD,101.37,30/07/2018,
COMMERCIAL,REGIONAL ENTERPRISE,Other Services,60109199,CONWAY AECOM LTD,64.55,30/07/2018,
COMMERCIAL,REGIONAL ENTERPRISE,Other Services,60109204,CONWAY AECOM LTD,70.67,30/07/2018,
COMMERCIAL,REGIONAL ENTERPRISE,Other Services,60109208,CONWAY AECOM LTD,49.90,30/07/2018,
COMMERCIAL,REGIONAL ENTERPRISE,Other Services,60109211,CONWAY AECOM LTD,81.39,30/07/2018,
COMMERCIAL,REGIONAL ENTERPRISE,Other Services,60109212,CONWAY AECOM LTD,50.69,30/07/2018,
COMMERCIAL,REGIONAL ENTERPRISE,Other Services,60109213,CONWAY AECOM LTD,99.79,30/07/2018,
COMMERCIAL,REGIONAL ENTERPRISE,Other Services,60109218,CONWAY AECOM LTD,59.62,30/07/2018,
COMMERCIAL,REGIONAL ENTERPRISE,Other Services,60109221,CONWAY AECOM LTD,61.52,30/07/2018,
COMMERCIAL,REGIONAL ENTERPRISE,Other Services,60109223,CONWAY AECOM LTD,64.55,30/07/2018,
COMMERCIAL,REGIONAL ENTERPRISE,Other Services,60109224,CONWAY AECOM LTD,41.67,30/07/2018,
COMMERCIAL,REGIONAL ENTERPRISE,Other Services,60109226,CONWAY AECOM LTD,137.31,30/07/2018,
COMMERCIAL,REGIONAL ENTERPRISE,Other Services,60109227,CONWAY AECOM LTD,35.33,30/07/2018,
COMMERCIAL,REGIONAL ENTERPRISE,Other Services,60109233,CONWAY AECOM LTD,125.22,30/07/2018,
COMMERCIAL,REGIONAL ENTERPRISE,Other Services,60109234,CONWAY AECOM LTD,35.33,30/07/2018,
COMMERCIAL,REGIONAL ENTERPRISE,Other Services,60109248,CONWAY AECOM LTD,438.92,30/07/2018,
COMMERCIAL,REGIONAL ENTERPRISE,Other Services,60109249,CONWAY AECOM LTD,49.90,30/07/2018,
COMMERCIAL,REGIONAL ENTERPRISE,Other Services,60109256,CONWAY AECOM LTD,162.79,30/07/2018,
COMMERCIAL,REGIONAL ENTERPRISE,Other Services,60109258,CONWAY AECOM LTD,219.01,30/07/2018,
COMMERCIAL,REGIONAL ENTERPRISE,Other Services,60109265,CONWAY AECOM LTD,59.62,30/07/2018,
COMMERCIAL,REGIONAL ENTERPRISE,Other Services,60109275,CONWAY AECOM LTD,116.83,30/07/2018,
COMMERCIAL,REGIONAL ENTERPRISE,Other Services,60109277,CONWAY AECOM LTD,107.43,30/07/2018,
COMMERCIAL,REGIONAL ENTERPRISE,Other Services,60109279,CONWAY AECOM LTD,81.39,30/07/2018,
COMMERCIAL,REGIONAL ENTERPRISE,Other Services,60109280,CONWAY AECOM LTD,87.97,30/07/2018,
COMMERCIAL,REGIONAL ENTERPRISE,Other Services,60109281,CONWAY AECOM LTD,175.94,30/07/2018,
COMMERCIAL,REGIONAL ENTERPRISE,Other Services,60109285,CONWAY AECOM LTD,41.67,30/07/2018,
COMMERCIAL,REGIONAL ENTERPRISE,Other Services,60109286,CONWAY AECOM LTD,29.28,30/07/2018,
COMMERCIAL,REGIONAL ENTERPRISE,Other Services,60109289,CONWAY AECOM LTD,62.61,30/07/2018,
COMMERCIAL,REGIONAL ENTERPRISE,Other Services,60109292,CONWAY AECOM LTD,49.90,30/07/2018,
COMMERCIAL,REGIONAL ENTERPRISE,Other Services,60109298,CONWAY AECOM LTD,62.61,30/07/2018,
COMMERCIAL,REGIONAL ENTERPRISE,Other Services,60109300,CONWAY AECOM LTD,49.90,30/07/2018,
COMMERCIAL,REGIONAL ENTERPRISE,Other Services,60109301,CONWAY AECOM LTD,151.88,30/07/2018,
COMMERCIAL,REGIONAL ENTERPRISE,Other Services,60109303,CONWAY AECOM LTD,34.33,30/07/2018,
COMMERCIAL,REGIONAL ENTERPRISE,Other Services,60109304,CONWAY AECOM LTD,162.79,30/07/2018,
COMMERCIAL,REGIONAL ENTERPRISE,Other Services,60109306,CONWAY AECOM LTD,81.39,30/07/2018,
COMMERCIAL,REGIONAL ENTERPRISE,Other Services,60109307,CONWAY AECOM LTD,770.35,30/07/2018,
COMMERCIAL,REGIONAL ENTERPRISE,Other Services,60109312,CONWAY AECOM LTD,123.04,30/07/2018,
COMMERCIAL,REGIONAL ENTERPRISE,Other Services,60109313,CONWAY AECOM LTD,653.63,30/07/2018,
COMMERCIAL,REGIONAL ENTERPRISE,Other Services,60109314,CONWAY AECOM LTD,23.68,30/07/2018,
COMMERCIAL,REGIONAL ENTERPRISE,Other Services,60109316,CONWAY AECOM LTD,62.61,30/07/2018,
COMMERCIAL,REGIONAL ENTERPRISE,Other Services,60109319,CONWAY AECOM LTD,82.07,30/07/2018,
COMMERCIAL,REGIONAL ENTERPRISE,Other Services,60109320,CONWAY AECOM LTD,70.11,30/07/2018,
COMMERCIAL,REGIONAL ENTERPRISE,Other Services,60109321,CONWAY AECOM LTD,29.28,30/07/2018,
COMMERCIAL,REGIONAL ENTERPRISE,Other Services,60109325,CONWAY AECOM LTD,49.90,30/07/2018,
COMMERCIAL,REGIONAL ENTERPRISE,Other Services,60109326,CONWAY AECOM LTD,81.39,30/07/2018,
COMMERCIAL,REGIONAL ENTERPRISE,Other Services,60109337,CONWAY AECOM LTD,104.58,30/07/2018,
COMMERCIAL,REGIONAL ENTERPRISE,Other Services,60109339,CONWAY AECOM LTD,45.87,30/07/2018,
COMMERCIAL,REGIONAL ENTERPRISE,Other Services,60109341,CONWAY AECOM LTD,62.13,30/07/2018,
COMMERCIAL,REGIONAL ENTERPRISE,Other Services,60109342,CONWAY AECOM LTD,35.33,30/07/2018,
COMMERCIAL,REGIONAL ENTERPRISE,Other Services,60109346,CONWAY AECOM LTD,92.09,30/07/2018,
COMMERCIAL,REGIONAL ENTERPRISE,Other Services,60109352,CONWAY AECOM LTD,123.04,30/07/2018,
COMMERCIAL,REGIONAL ENTERPRISE,Other Services,60109356,CONWAY AECOM LTD,59.62,30/07/2018,
COMMERCIAL,REGIONAL ENTERPRISE,Other Services,60109359,CONWAY AECOM LTD,38.07,30/07/2018,
COMMERCIAL,REGIONAL ENTERPRISE,Other Services,60109364,CONWAY AECOM LTD,59.63,30/07/2018,
COMMERCIAL,REGIONAL ENTERPRISE,Other Services,60109366,CONWAY AECOM LTD,170.04,30/07/2018,
COMMERCIAL,REGIONAL ENTERPRISE,Other Services,60109370,CONWAY AECOM LTD,35.33,30/07/2018,
COMMERCIAL,REGIONAL ENTERPRISE,Other Services,60109372,CONWAY AECOM LTD,735.21,30/07/2018,
COMMERCIAL,REGIONAL ENTERPRISE,Other Services,60109373,CONWAY AECOM LTD,59.63,30/07/2018,
COMMERCIAL,REGIONAL ENTERPRISE,Other Services,60109378,CONWAY AECOM LTD,62.61,30/07/2018,
COMMERCIAL,REGIONAL ENTERPRISE,Other Services,60109388,CONWAY AECOM LTD,114.01,30/07/2018,
COMMERCIAL,REGIONAL ENTERPRISE,Other Services,60109399,CONWAY AECOM LTD,47.32,30/07/2018,
COMMERCIAL,REGIONAL ENTERPRISE,Other Services,60109401,CONWAY AECOM LTD,94.64,30/07/2018,
COMMERCIAL,REGIONAL ENTERPRISE,Other Services,60109407,CONWAY AECOM LTD,175.94,30/07/2018,
COMMERCIAL,REGIONAL ENTERPRISE,Other Services,60109408,CONWAY AECOM LTD,35.33,30/07/2018,
COMMERCIAL,REGIONAL ENTERPRISE,Other Services,60109409,CONWAY AECOM LTD,61.52,30/07/2018,
COMMERCIAL,REGIONAL ENTERPRISE,Other Services,60109412,CONWAY AECOM LTD,59.63,30/07/2018,
COMMERCIAL,REGIONAL ENTERPRISE,Other Services,60109422,CONWAY AECOM LTD,45.87,30/07/2018,
COMMERCIAL,REGIONAL ENTERPRISE,Other Services,60109423,CONWAY AECOM LTD,81.39,30/07/2018,
COMMERCIAL,REGIONAL ENTERPRISE,Other Services,60109427,CONWAY AECOM LTD,141.34,30/07/2018,
COMMERCIAL,REGIONAL ENTERPRISE,Other Services,60109431,CONWAY AECOM LTD,202.65,30/07/2018,
COMMERCIAL,REGIONAL ENTERPRISE,Other Services,60109436,CONWAY AECOM LTD,35.33,30/07/2018,
COMMERCIAL,REGIONAL ENTERPRISE,Other Services,60109440,CONWAY AECOM LTD,45.87,30/07/2018,
COMMERCIAL,REGIONAL ENTERPRISE,Other Services,60109445,CONWAY AECOM LTD,110.27,30/07/2018,
COMMERCIAL,REGIONAL ENTERPRISE,Other Services,60109450,CONWAY AECOM LTD,94.64,30/07/2018,
COMMERCIAL,REGIONAL ENTERPRISE,Other Services,60109451,CONWAY AECOM LTD,236.61,30/07/2018,
COMMERCIAL,REGIONAL ENTERPRISE,Other Services,60109454,CONWAY AECOM LTD,62.61,30/07/2018,
COMMERCIAL,REGIONAL ENTERPRISE,Other Services,60109462,CONWAY AECOM LTD,59.62,30/07/2018,
COMMERCIAL,REGIONAL ENTERPRISE,Other Services,60109464,CONWAY AECOM LTD,47.32,30/07/2018,
COMMERCIAL,REGIONAL ENTERPRISE,Other Services,60109473,CONWAY AECOM LTD,92.24,30/07/2018,
COMMERCIAL,REGIONAL ENTERPRISE,Other Services,60109474,CONWAY AECOM LTD,547.94,30/07/2018,
COMMERCIAL,REGIONAL ENTERPRISE,Other Services,60109476,CONWAY AECOM LTD,47.32,30/07/2018,
COMMERCIAL,REGIONAL ENTERPRISE,Other Services,60109482,CONWAY AECOM LTD,304.66,30/07/2018,
COMMERCIAL,REGIONAL ENTERPRISE,Other Services,60109484,CONWAY AECOM LTD,99.29,30/07/2018,
COMMERCIAL,REGIONAL ENTERPRISE,Other Services,60109487,CONWAY AECOM LTD,62.13,30/07/2018,
COMMERCIAL,REGIONAL ENTERPRISE,Other Services,60109489,CONWAY AECOM LTD,101.37,30/07/2018,
COMMERCIAL,REGIONAL ENTERPRISE,Other Services,60109490,CONWAY AECOM LTD,467.32,30/07/2018,
COMMERCIAL,REGIONAL ENTERPRISE,Other Services,60109498,CONWAY AECOM LTD,66.49,30/07/2018,
COMMERCIAL,REGIONAL ENTERPRISE,Other Services,60109501,CONWAY AECOM LTD,101.37,30/07/2018,
COMMERCIAL,REGIONAL ENTERPRISE,Other Services,60109503,CONWAY AECOM LTD,69.18,30/07/2018,
COMMERCIAL,REGIONAL ENTERPRISE,Other Services,60109504,CONWAY AECOM LTD,99.29,30/07/2018,
COMMERCIAL,REGIONAL ENTERPRISE,Other Services,60109509,CONWAY AECOM LTD,59.62,30/07/2018,
COMMERCIAL,REGIONAL ENTERPRISE,Other Services,60109512,CONWAY AECOM LTD,41.15,30/07/2018,
COMMERCIAL,REGIONAL ENTERPRISE,Other Services,60109519,CONWAY AECOM LTD,94.64,30/07/2018,
COMMERCIAL,REGIONAL ENTERPRISE,Other Services,60109522,CONWAY AECOM LTD,421.49,30/07/2018,
COMMERCIAL,REGIONAL ENTERPRISE,Other Services,60109523,CONWAY AECOM LTD,35.33,30/07/2018,
COMMERCIAL,REGIONAL ENTERPRISE,Other Services,60109528,CONWAY AECOM LTD,61.52,30/07/2018,
COMMERCIAL,REGIONAL ENTERPRISE,Other Services,60109544,CONWAY AECOM LTD,47.32,30/07/2018,
COMMERCIAL,REGIONAL ENTERPRISE,Other Services,60109548,CONWAY AECOM LTD,123.03,30/07/2018,
COMMERCIAL,REGIONAL ENTERPRISE,Other Services,60109549,CONWAY AECOM LTD,47.32,30/07/2018,
COMMERCIAL,REGIONAL ENTERPRISE,Other Services,60109555,CONWAY AECOM LTD,52.29,30/07/2018,
COMMERCIAL,REGIONAL ENTERPRISE,Other Services,60109556,CONWAY AECOM LTD,199.46,30/07/2018,
COMMERCIAL,REGIONAL ENTERPRISE,Other Services,60109558,CONWAY AECOM LTD,35.33,30/07/2018,
COMMERCIAL,REGIONAL ENTERPRISE,Other Services,60109560,CONWAY AECOM LTD,129.10,30/07/2018,
COMMERCIAL,REGIONAL ENTERPRISE,Other Services,60109561,CONWAY AECOM LTD,35.33,30/07/2018,
COMMERCIAL,REGIONAL ENTERPRISE,Other Services,60109568,CONWAY AECOM LTD,439.84,30/07/2018,
COMMERCIAL,REGIONAL ENTERPRISE,Other Services,60109576,CONWAY AECOM LTD,39.04,30/07/2018,
COMMERCIAL,REGIONAL ENTERPRISE,Other Services,60109579,CONWAY AECOM LTD,636.02,30/07/2018,
COMMERCIAL,REGIONAL ENTERPRISE,Other Services,60109585,CONWAY AECOM LTD,70.11,30/07/2018,
COMMERCIAL,REGIONAL ENTERPRISE,Other Services,60109587,CONWAY AECOM LTD,59.62,30/07/2018,
COMMERCIAL,REGIONAL ENTERPRISE,Other Services,60109588,CONWAY AECOM LTD,45.87,30/07/2018,
COMMERCIAL,REGIONAL ENTERPRISE,Other Services,60109589,CONWAY AECOM LTD,80.77,30/07/2018,
COMMERCIAL,REGIONAL ENTERPRISE,Other Services,60109590,CONWAY AECOM LTD,31.07,30/07/2018,
COMMERCIAL,REGIONAL ENTERPRISE,Other Services,60109591,CONWAY AECOM LTD,35.33,30/07/2018,
COMMERCIAL,REGIONAL ENTERPRISE,Other Services,60109594,CONWAY AECOM LTD,38.08,30/07/2018,
COMMERCIAL,REGIONAL ENTERPRISE,Other Services,60109599,CONWAY AECOM LTD,595.22,30/07/2018,
COMMERCIAL,REGIONAL ENTERPRISE,Other Services,60109602,CONWAY AECOM LTD,23.66,30/07/2018,
COMMERCIAL,REGIONAL ENTERPRISE,Other Services,60109605,CONWAY AECOM LTD,99.29,30/07/2018,
COMMERCIAL,REGIONAL ENTERPRISE,Other Services,60109611,CONWAY AECOM LTD,103.80,30/07/2018,
COMMERCIAL,REGIONAL ENTERPRISE,Other Services,60109613,CONWAY AECOM LTD,41.67,30/07/2018,
COMMERCIAL,REGIONAL ENTERPRISE,Other Services,60109614,CONWAY AECOM LTD,82.66,30/07/2018,
COMMERCIAL,REGIONAL ENTERPRISE,Other Services,60109615,CONWAY AECOM LTD,59.63,30/07/2018,
COMMERCIAL,REGIONAL ENTERPRISE,Other Services,60109619,CONWAY AECOM LTD,385.15,30/07/2018,
COMMERCIAL,REGIONAL ENTERPRISE,Other Services,60109621,CONWAY AECOM LTD,325.57,30/07/2018,
COMMERCIAL,REGIONAL ENTERPRISE,Other Services,60109625,CONWAY AECOM LTD,38.08,30/07/2018,
COMMERCIAL,REGIONAL ENTERPRISE,Other Services,60109627,CONWAY AECOM LTD,46.04,30/07/2018,
COMMERCIAL,REGIONAL ENTERPRISE,Other Services,60109628,CONWAY AECOM LTD,59.62,30/07/2018,
COMMERCIAL,REGIONAL ENTERPRISE,Other Services,60109633,CONWAY AECOM LTD,58.54,30/07/2018,
COMMERCIAL,REGIONAL ENTERPRISE,Other Services,60109639,CONWAY AECOM LTD,183.01,30/07/2018,
COMMERCIAL,REGIONAL ENTERPRISE,Other Services,60109640,CONWAY AECOM LTD,116.83,30/07/2018,
COMMERCIAL,REGIONAL ENTERPRISE,Other Services,60109641,CONWAY AECOM LTD,61.52,30/07/2018,
COMMERCIAL,REGIONAL ENTERPRISE,Other Services,60109643,CONWAY AECOM LTD,116.83,30/07/2018,
COMMERCIAL,REGIONAL ENTERPRISE,Other Services,60109645,CONWAY AECOM LTD,303.76,30/07/2018,
COMMERCIAL,REGIONAL ENTERPRISE,Other Services,60109650,CONWAY AECOM LTD,40.58,30/07/2018,
COMMERCIAL,REGIONAL ENTERPRISE,Other Services,60109653,CONWAY AECOM LTD,62.61,30/07/2018,
COMMERCIAL,REGIONAL ENTERPRISE,Other Services,60109654,CONWAY AECOM LTD,101.37,30/07/2018,
COMMERCIAL,REGIONAL ENTERPRISE,Other Services,60109656,CONWAY AECOM LTD,70.67,30/07/2018,
COMMERCIAL,REGIONAL ENTERPRISE,Other Services,60109658,CONWAY AECOM LTD,162.79,30/07/2018,
COMMERCIAL,REGIONAL ENTERPRISE,Other Services,60109659,CONWAY AECOM LTD,62.61,30/07/2018,
COMMERCIAL,REGIONAL ENTERPRISE,Other Services,60109660,CONWAY AECOM LTD,59.63,30/07/2018,
COMMERCIAL,REGIONAL ENTERPRISE,Other Services,60109670,CONWAY AECOM LTD,62.61,30/07/2018,
COMMERCIAL,REGIONAL ENTERPRISE,Other Services,60109674,CONWAY AECOM LTD,82.29,30/07/2018,
COMMERCIAL,REGIONAL ENTERPRISE,Other Services,60109678,CONWAY AECOM LTD,81.39,30/07/2018,
COMMERCIAL,REGIONAL ENTERPRISE,Other Services,60109684,CONWAY AECOM LTD,52.29,30/07/2018,
COMMERCIAL,REGIONAL ENTERPRISE,Other Services,60109686,CONWAY AECOM LTD,70.11,30/07/2018,
COMMERCIAL,REGIONAL ENTERPRISE,Other Services,60109688,CONWAY AECOM LTD,81.39,30/07/2018,
COMMERCIAL,REGIONAL ENTERPRISE,Other Services,60109689,CONWAY AECOM LTD,97.47,30/07/2018,
COMMERCIAL,REGIONAL ENTERPRISE,Other Services,60109691,CONWAY AECOM LTD,129.86,30/07/2018,
COMMERCIAL,REGIONAL ENTERPRISE,Other Services,60109693,CONWAY AECOM LTD,59.63,30/07/2018,
COMMERCIAL,REGIONAL ENTERPRISE,Other Services,60109694,CONWAY AECOM LTD,61.52,30/07/2018,
COMMERCIAL,REGIONAL ENTERPRISE,Other Services,60109695,CONWAY AECOM LTD,91.74,30/07/2018,
COMMERCIAL,REGIONAL ENTERPRISE,Other Services,60109696,CONWAY AECOM LTD,202.75,30/07/2018,
COMMERCIAL,REGIONAL ENTERPRISE,Other Services,60109698,CONWAY AECOM LTD,218.85,30/07/2018,
COMMERCIAL,REGIONAL ENTERPRISE,Other Services,60109702,CONWAY AECOM LTD,119.26,30/07/2018,
COMMERCIAL,REGIONAL ENTERPRISE,Other Services,60109703,CONWAY AECOM LTD,64.45,30/07/2018,
COMMERCIAL,REGIONAL ENTERPRISE,Other Services,60109705,CONWAY AECOM LTD,59.62,30/07/2018,
COMMERCIAL,REGIONAL ENTERPRISE,Other Services,60109706,CONWAY AECOM LTD,59.62,30/07/2018,
COMMERCIAL,REGIONAL ENTERPRISE,Other Services,60109707,CONWAY AECOM LTD,59.62,30/07/2018,
COMMERCIAL,REGIONAL ENTERPRISE,Other Services,60109708,CONWAY AECOM LTD,59.63,30/07/2018,
COMMERCIAL,REGIONAL ENTERPRISE,Other Services,60109709,CONWAY AECOM LTD,59.62,30/07/2018,
COMMERCIAL,REGIONAL ENTERPRISE,Other Services,60109710,CONWAY AECOM LTD,59.62,30/07/2018,
COMMERCIAL,REGIONAL ENTERPRISE,Other Services,60109711,CONWAY AECOM LTD,119.04,30/07/2018,
COMMERCIAL,REGIONAL ENTERPRISE,Other Services,60109712,CONWAY AECOM LTD,59.62,30/07/2018,
COMMERCIAL,REGIONAL ENTERPRISE,Other Services,60109714,CONWAY AECOM LTD,59.62,30/07/2018,
COMMERCIAL,REGIONAL ENTERPRISE,Other Services,60109716,CONWAY AECOM LTD,50.69,30/07/2018,
COMMERCIAL,REGIONAL ENTERPRISE,Other Services,60109717,CONWAY AECOM LTD,202.75,30/07/2018,
COMMERCIAL,REGIONAL ENTERPRISE,Other Services,60109721,CONWAY AECOM LTD,59.62,30/07/2018,
COMMERCIAL,REGIONAL ENTERPRISE,Other Services,60109722,CONWAY AECOM LTD,38.08,30/07/2018,
COMMERCIAL,REGIONAL ENTERPRISE,Other Services,60109726,CONWAY AECOM LTD,101.37,30/07/2018,
COMMERCIAL,REGIONAL ENTERPRISE,Other Services,60109727,CONWAY AECOM LTD,50.69,30/07/2018,
COMMERCIAL,REGIONAL ENTERPRISE,Other Services,60109729,CONWAY AECOM LTD,455.63,30/07/2018,
COMMERCIAL,REGIONAL ENTERPRISE,Other Services,60109731,CONWAY AECOM LTD,70.11,30/07/2018,
COMMERCIAL,REGIONAL ENTERPRISE,Other Services,60109732,CONWAY AECOM LTD,59.62,30/07/2018,
COMMERCIAL,REGIONAL ENTERPRISE,Other Services,60109734,CONWAY AECOM LTD,50.69,30/07/2018,
COMMERCIAL,REGIONAL ENTERPRISE,Other Services,60109735,CONWAY AECOM LTD,91.74,30/07/2018,
COMMERCIAL,REGIONAL ENTERPRISE,Other Services,60109739,CONWAY AECOM LTD,50.69,30/07/2018,
COMMERCIAL,REGIONAL ENTERPRISE,Other Services,60109741,CONWAY AECOM LTD,59.62,30/07/2018,
COMMERCIAL,REGIONAL ENTERPRISE,Other Services,60109742,CONWAY AECOM LTD,59.62,30/07/2018,
COMMERCIAL,REGIONAL ENTERPRISE,Other Services,60109746,CONWAY AECOM LTD,59.62,30/07/2018,
COMMERCIAL,REGIONAL ENTERPRISE,Other Services,60109748,CONWAY AECOM LTD,207.55,30/07/2018,
COMMERCIAL,REGIONAL ENTERPRISE,Other Services,60109750,CONWAY AECOM LTD,405.49,30/07/2018,
COMMERCIAL,REGIONAL ENTERPRISE,Other Services,60109751,CONWAY AECOM LTD,59.62,30/07/2018,
COMMERCIAL,REGIONAL ENTERPRISE,Other Services,60109752,CONWAY AECOM LTD,691.95,30/07/2018,
COMMERCIAL,REGIONAL ENTERPRISE,Other Services,60109753,CONWAY AECOM LTD,45.87,30/07/2018,
COMMERCIAL,REGIONAL ENTERPRISE,Other Services,60109754,CONWAY AECOM LTD,50.69,30/07/2018,
COMMERCIAL,REGIONAL ENTERPRISE,Other Services,60109756,CONWAY AECOM LTD,45.87,30/07/2018,
COMMERCIAL,REGIONAL ENTERPRISE,Other Services,60109759,CONWAY AECOM LTD,91.74,30/07/2018,
COMMERCIAL,REGIONAL ENTERPRISE,Other Services,60109760,CONWAY AECOM LTD,59.62,30/07/2018,
COMMERCIAL,REGIONAL ENTERPRISE,Other Services,60109761,CONWAY AECOM LTD,59.62,30/07/2018,
COMMERCIAL,REGIONAL ENTERPRISE,Other Services,60109762,CONWAY AECOM LTD,66.49,30/07/2018,
COMMERCIAL,REGIONAL ENTERPRISE,Other Services,60109764,CONWAY AECOM LTD,59.63,30/07/2018,
COMMERCIAL,REGIONAL ENTERPRISE,Other Services,60109766,CONWAY AECOM LTD,136.59,30/07/2018,
COMMERCIAL,REGIONAL ENTERPRISE,Other Services,60109767,CONWAY AECOM LTD,59.62,30/07/2018,
COMMERCIAL,REGIONAL ENTERPRISE,Other Services,60109768,CONWAY AECOM LTD,45.87,30/07/2018,
COMMERCIAL,REGIONAL ENTERPRISE,Other Services,60109772,CONWAY AECOM LTD,49.64,30/07/2018,
COMMERCIAL,REGIONAL ENTERPRISE,Other Services,60109773,CONWAY AECOM LTD,178.89,30/07/2018,
COMMERCIAL,REGIONAL ENTERPRISE,Other Services,60109775,CONWAY AECOM LTD,59.62,30/07/2018,
COMMERCIAL,REGIONAL ENTERPRISE,Other Services,60109777,CONWAY AECOM LTD,59.62,30/07/2018,
COMMERCIAL,REGIONAL ENTERPRISE,Other Services,60109778,CONWAY AECOM LTD,59.62,30/07/2018,
COMMERCIAL,REGIONAL ENTERPRISE,Other Services,60109779,CONWAY AECOM LTD,59.63,30/07/2018,
COMMERCIAL,REGIONAL ENTERPRISE,Other Services,60109781,CONWAY AECOM LTD,50.69,30/07/2018,
COMMERCIAL,REGIONAL ENTERPRISE,Other Services,60109785,CONWAY AECOM LTD,101.37,30/07/2018,
COMMERCIAL,REGIONAL ENTERPRISE,Other Services,60109786,CONWAY AECOM LTD,59.62,30/07/2018,
COMMERCIAL,REGIONAL ENTERPRISE,Other Services,60109787,CONWAY AECOM LTD,59.62,30/07/2018,
COMMERCIAL,REGIONAL ENTERPRISE,Other Services,60109788,CONWAY AECOM LTD,104.58,30/07/2018,
COMMERCIAL,REGIONAL ENTERPRISE,Other Services,60109790,CONWAY AECOM LTD,58.41,30/07/2018,
COMMERCIAL,REGIONAL ENTERPRISE,Other Services,60109792,CONWAY AECOM LTD,91.74,30/07/2018,
COMMERCIAL,REGIONAL ENTERPRISE,Other Services,60109793,CONWAY AECOM LTD,50.69,30/07/2018,
COMMERCIAL,REGIONAL ENTERPRISE,Other Services,60109795,CONWAY AECOM LTD,50.69,30/07/2018,
COMMERCIAL,REGIONAL ENTERPRISE,Other Services,60109796,CONWAY AECOM LTD,58.54,30/07/2018,
COMMERCIAL,REGIONAL ENTERPRISE,Other Services,60109799,CONWAY AECOM LTD,"1,014.48",30/07/2018,
COMMERCIAL,REGIONAL ENTERPRISE,Other Services,60109800,CONWAY AECOM LTD,59.62,30/07/2018,
COMMERCIAL,REGIONAL ENTERPRISE,Other Services,60109802,CONWAY AECOM LTD,59.62,30/07/2018,
COMMERCIAL,REGIONAL ENTERPRISE,Other Services,60109804,CONWAY AECOM LTD,45.87,30/07/2018,
COMMERCIAL,REGIONAL ENTERPRISE,Other Services,60109806,CONWAY AECOM LTD,59.62,30/07/2018,
COMMERCIAL,REGIONAL ENTERPRISE,Other Services,60109807,CONWAY AECOM LTD,45.87,30/07/2018,
COMMERCIAL,REGIONAL ENTERPRISE,Other Services,60109808,CONWAY AECOM LTD,59.62,30/07/2018,
COMMERCIAL,REGIONAL ENTERPRISE,Other Services,60109809,CONWAY AECOM LTD,59.62,30/07/2018,
COMMERCIAL,REGIONAL ENTERPRISE,Other Services,60109810,CONWAY AECOM LTD,589.58,30/07/2018,
COMMERCIAL,REGIONAL ENTERPRISE,Other Services,60109811,CONWAY AECOM LTD,137.61,30/07/2018,
COMMERCIAL,REGIONAL ENTERPRISE,Other Services,60109812,CONWAY AECOM LTD,59.62,30/07/2018,
COMMERCIAL,REGIONAL ENTERPRISE,Other Services,60109813,CONWAY AECOM LTD,59.62,30/07/2018,
COMMERCIAL,REGIONAL ENTERPRISE,Other Services,60109814,CONWAY AECOM LTD,61.52,30/07/2018,
COMMERCIAL,REGIONAL ENTERPRISE,Other Services,60109815,CONWAY AECOM LTD,59.62,30/07/2018,
COMMERCIAL,REGIONAL ENTERPRISE,Other Services,60109816,CONWAY AECOM LTD,83.34,30/07/2018,
COMMERCIAL,REGIONAL ENTERPRISE,Other Services,60109817,CONWAY AECOM LTD,61.52,30/07/2018,
COMMERCIAL,REGIONAL ENTERPRISE,Other Services,60109818,CONWAY AECOM LTD,52.29,30/07/2018,
COMMERCIAL,REGIONAL ENTERPRISE,Other Services,60109819,CONWAY AECOM LTD,111.25,30/07/2018,
COMMERCIAL,REGIONAL ENTERPRISE,Other Services,60109821,CONWAY AECOM LTD,137.61,30/07/2018,
COMMERCIAL,REGIONAL ENTERPRISE,Other Services,60109823,CONWAY AECOM LTD,61.52,30/07/2018,
COMMERCIAL,REGIONAL ENTERPRISE,Other Services,60109827,CONWAY AECOM LTD,61.52,30/07/2018,
COMMERCIAL,REGIONAL ENTERPRISE,Other Services,60109829,CONWAY AECOM LTD,59.62,30/07/2018,
COMMERCIAL,REGIONAL ENTERPRISE,Other Services,60109830,CONWAY AECOM LTD,59.62,30/07/2018,
COMMERCIAL,REGIONAL ENTERPRISE,Other Services,60109832,CONWAY AECOM LTD,59.62,30/07/2018,
COMMERCIAL,REGIONAL ENTERPRISE,Other Services,60109833,CONWAY AECOM LTD,59.62,30/07/2018,
COMMERCIAL,REGIONAL ENTERPRISE,Other Services,60109834,CONWAY AECOM LTD,45.87,30/07/2018,
COMMERCIAL,REGIONAL ENTERPRISE,Other Services,60109835,CONWAY AECOM LTD,59.62,30/07/2018,
COMMERCIAL,REGIONAL ENTERPRISE,Other Services,60109837,CONWAY AECOM LTD,152.06,30/07/2018,
COMMERCIAL,REGIONAL ENTERPRISE,Other Services,60109840,CONWAY AECOM LTD,91.74,30/07/2018,
COMMERCIAL,REGIONAL ENTERPRISE,Other Services,60109844,CONWAY AECOM LTD,45.87,30/07/2018,
COMMERCIAL,REGIONAL ENTERPRISE,Other Services,60109845,CONWAY AECOM LTD,59.62,30/07/2018,
COMMERCIAL,REGIONAL ENTERPRISE,Other Services,60109847,CONWAY AECOM LTD,59.62,30/07/2018,
COMMERCIAL,REGIONAL ENTERPRISE,Other Services,60109850,CONWAY AECOM LTD,50.69,30/07/2018,
COMMERCIAL,REGIONAL ENTERPRISE,Other Services,60109851,CONWAY AECOM LTD,59.62,30/07/2018,
COMMERCIAL,REGIONAL ENTERPRISE,Other Services,60109853,CONWAY AECOM LTD,59.62,30/07/2018,
COMMERCIAL,REGIONAL ENTERPRISE,Other Services,60109854,CONWAY AECOM LTD,59.62,30/07/2018,
COMMERCIAL,REGIONAL ENTERPRISE,Other Services,60109857,CONWAY AECOM LTD,64.45,30/07/2018,
COMMERCIAL,REGIONAL ENTERPRISE,Other Services,60109865,CONWAY AECOM LTD,45.87,30/07/2018,
COMMERCIAL,REGIONAL ENTERPRISE,Other Services,60109870,CONWAY AECOM LTD,59.62,30/07/2018,
COMMERCIAL,REGIONAL ENTERPRISE,Other Services,60109871,CONWAY AECOM LTD,59.62,30/07/2018,
COMMERCIAL,REGIONAL ENTERPRISE,Other Services,60109872,CONWAY AECOM LTD,59.62,30/07/2018,
COMMERCIAL,REGIONAL ENTERPRISE,Other Services,60109875,CONWAY AECOM LTD,59.62,30/07/2018,
COMMERCIAL,REGIONAL ENTERPRISE,Other Services,60109878,CONWAY AECOM LTD,45.87,30/07/2018,
COMMERCIAL,REGIONAL ENTERPRISE,Other Services,60109880,CONWAY AECOM LTD,59.62,30/07/2018,
COMMERCIAL,REGIONAL ENTERPRISE,Other Services,60109881,CONWAY AECOM LTD,45.87,30/07/2018,
COMMERCIAL,REGIONAL ENTERPRISE,Other Services,60109887,CONWAY AECOM LTD,59.62,30/07/2018,
COMMERCIAL,REGIONAL ENTERPRISE,Other Services,60109888,CONWAY AECOM LTD,59.62,30/07/2018,
COMMERCIAL,REGIONAL ENTERPRISE,Other Services,60109889,CONWAY AECOM LTD,45.87,30/07/2018,
COMMERCIAL,REGIONAL ENTERPRISE,Other Services,60109890,CONWAY AECOM LTD,45.87,30/07/2018,
COMMERCIAL,REGIONAL ENTERPRISE,Other Services,60109892,CONWAY AECOM LTD,59.62,30/07/2018,
COMMERCIAL,REGIONAL ENTERPRISE,Other Services,60109898,CONWAY AECOM LTD,59.62,30/07/2018,
COMMERCIAL,REGIONAL ENTERPRISE,Other Services,60109900,CONWAY AECOM LTD,152.06,30/07/2018,
COMMERCIAL,REGIONAL ENTERPRISE,Other Services,60109902,CONWAY AECOM LTD,64.45,30/07/2018,
COMMERCIAL,REGIONAL ENTERPRISE,Other Services,60109903,CONWAY AECOM LTD,50.69,30/07/2018,
COMMERCIAL,REGIONAL ENTERPRISE,Other Services,60109904,CONWAY AECOM LTD,59.62,30/07/2018,
COMMERCIAL,REGIONAL ENTERPRISE,Other Services,60109906,CONWAY AECOM LTD,59.62,30/07/2018,
COMMERCIAL,REGIONAL ENTERPRISE,Other Services,60109908,CONWAY AECOM LTD,59.62,30/07/2018,
COMMERCIAL,REGIONAL ENTERPRISE,Other Services,60109909,CONWAY AECOM LTD,50.69,30/07/2018,
COMMERCIAL,REGIONAL ENTERPRISE,Other Services,60109915,CONWAY AECOM LTD,91.74,30/07/2018,
COMMERCIAL,REGIONAL ENTERPRISE,Other Services,60109919,CONWAY AECOM LTD,50.69,30/07/2018,
COMMERCIAL,REGIONAL ENTERPRISE,Other Services,60109920,CONWAY AECOM LTD,59.62,30/07/2018,
COMMERCIAL,REGIONAL ENTERPRISE,Other Services,60109921,CONWAY AECOM LTD,59.62,30/07/2018,
COMMERCIAL,REGIONAL ENTERPRISE,Other Services,60109922,CONWAY AECOM LTD,183.48,30/07/2018,
COMMERCIAL,REGIONAL ENTERPRISE,Other Services,60109923,CONWAY AECOM LTD,45.87,30/07/2018,
COMMERCIAL,REGIONAL ENTERPRISE,Other Services,60109924,CONWAY AECOM LTD,59.62,30/07/2018,
COMMERCIAL,REGIONAL ENTERPRISE,Other Services,60109926,CONWAY AECOM LTD,45.87,30/07/2018,
COMMERCIAL,REGIONAL ENTERPRISE,Other Services,60109932,CONWAY AECOM LTD,59.62,30/07/2018,
COMMERCIAL,REGIONAL ENTERPRISE,Other Services,60109933,CONWAY AECOM LTD,22.94,30/07/2018,
COMMERCIAL,REGIONAL ENTERPRISE,Other Services,60109936,CONWAY AECOM LTD,59.62,30/07/2018,
COMMERCIAL,REGIONAL ENTERPRISE,Other Services,60109938,CONWAY AECOM LTD,64.45,30/07/2018,
COMMERCIAL,REGIONAL ENTERPRISE,Other Services,60109940,CONWAY AECOM LTD,45.87,30/07/2018,
COMMERCIAL,REGIONAL ENTERPRISE,Other Services,60109941,CONWAY AECOM LTD,59.62,30/07/2018,
COMMERCIAL,REGIONAL ENTERPRISE,Other Services,60109943,CONWAY AECOM LTD,45.87,30/07/2018,
COMMERCIAL,REGIONAL ENTERPRISE,Other Services,60109944,CONWAY AECOM LTD,59.62,30/07/2018,
COMMERCIAL,REGIONAL ENTERPRISE,Other Services,60109946,CONWAY AECOM LTD,45.87,30/07/2018,
COMMERCIAL,REGIONAL ENTERPRISE,Other Services,60109948,CONWAY AECOM LTD,59.62,30/07/2018,
COMMERCIAL,REGIONAL ENTERPRISE,Other Services,60109949,CONWAY AECOM LTD,152.06,30/07/2018,
COMMERCIAL,REGIONAL ENTERPRISE,Other Services,60109951,CONWAY AECOM LTD,59.62,30/07/2018,
COMMERCIAL,REGIONAL ENTERPRISE,Other Services,60109953,CONWAY AECOM LTD,45.87,30/07/2018,
COMMERCIAL,REGIONAL ENTERPRISE,Other Services,60109954,CONWAY AECOM LTD,59.62,30/07/2018,
COMMERCIAL,REGIONAL ENTERPRISE,Other Services,60109957,CONWAY AECOM LTD,59.62,30/07/2018,
COMMERCIAL,REGIONAL ENTERPRISE,Other Services,60109959,CONWAY AECOM LTD,45.87,30/07/2018,
COMMERCIAL,REGIONAL ENTERPRISE,Other Services,60109961,CONWAY AECOM LTD,45.87,30/07/2018,
COMMERCIAL,REGIONAL ENTERPRISE,Other Services,60109963,CONWAY AECOM LTD,119.26,30/07/2018,
COMMERCIAL,REGIONAL ENTERPRISE,Other Services,60109966,CONWAY AECOM LTD,59.63,30/07/2018,
COMMERCIAL,REGIONAL ENTERPRISE,Other Services,60109967,CONWAY AECOM LTD,137.61,30/07/2018,
COMMERCIAL,REGIONAL ENTERPRISE,Other Services,60109968,CONWAY AECOM LTD,59.62,30/07/2018,
COMMERCIAL,REGIONAL ENTERPRISE,Other Services,60109969,CONWAY AECOM LTD,59.62,30/07/2018,
COMMERCIAL,REGIONAL ENTERPRISE,Other Services,60109973,CONWAY AECOM LTD,59.62,30/07/2018,
COMMERCIAL,REGIONAL ENTERPRISE,Other Services,60109974,CONWAY AECOM LTD,59.62,30/07/2018,
COMMERCIAL,REGIONAL ENTERPRISE,Other Services,60109975,CONWAY AECOM LTD,45.87,30/07/2018,
COMMERCIAL,REGIONAL ENTERPRISE,Other Services,60109977,CONWAY AECOM LTD,45.87,30/07/2018,
COMMERCIAL,REGIONAL ENTERPRISE,Other Services,60109978,CONWAY AECOM LTD,59.62,30/07/2018,
COMMERCIAL,REGIONAL ENTERPRISE,Other Services,60109979,CONWAY AECOM LTD,59.62,30/07/2018,
COMMERCIAL,REGIONAL ENTERPRISE,Other Services,60109981,CONWAY AECOM LTD,59.62,30/07/2018,
COMMERCIAL,REGIONAL ENTERPRISE,Other Services,60109982,CONWAY AECOM LTD,59.63,30/07/2018,
COMMERCIAL,REGIONAL ENTERPRISE,Other Services,60109984,CONWAY AECOM LTD,59.62,30/07/2018,
COMMERCIAL,REGIONAL ENTERPRISE,Other Services,60109986,CONWAY AECOM LTD,45.87,30/07/2018,
COMMERCIAL,REGIONAL ENTERPRISE,Other Services,60109987,CONWAY AECOM LTD,59.63,30/07/2018,
COMMERCIAL,REGIONAL ENTERPRISE,Other Services,60109988,CONWAY AECOM LTD,45.87,30/07/2018,
COMMERCIAL,REGIONAL ENTERPRISE,Other Services,60109989,CONWAY AECOM LTD,119.26,30/07/2018,
COMMERCIAL,REGIONAL ENTERPRISE,Other Services,60109990,CONWAY AECOM LTD,91.74,30/07/2018,
COMMERCIAL,REGIONAL ENTERPRISE,Other Services,60109995,CONWAY AECOM LTD,50.69,30/07/2018,
COMMERCIAL,REGIONAL ENTERPRISE,Other Services,60109996,CONWAY AECOM LTD,45.87,30/07/2018,
Commercial,REGIONAL ENTERPRISE,Other Services,60108771,CYCLE CONFIDENT LTD,"28,056.45",31/07/2018,
Commercial,REGIONAL ENTERPRISE,Other Services,60107131,KELTIC CLOTHING,98.90,19/07/2018,
Commercial,REGIONAL ENTERPRISE,Advertising,60107431,TMP (UK) LTD,570.00,26/07/2018,
Commercial,REGIONAL ENTERPRISE,Advertising,60108333,TMP (UK) LTD,570.00,26/07/2018,
Commercial,REGIONAL ENTERPRISE,Advertising,60105699,TMP (UK) LTD,561.00,23/07/2018,
Commercial,REGIONAL ENTERPRISE,Other Services,60109937,CONWAY AECOM LTD,"10,000.00",30/07/2018,
Commercial,REGIONAL ENTERPRISE,Advertising,60107357,TMP (UK) LTD,305.00,26/07/2018,
Commercial,REGIONAL ENTERPRISE,Advertising,60108306,TMP (UK) LTD,323.00,26/07/2018,
Commercial,REGIONAL ENTERPRISE,Advertising,60108313,TMP (UK) LTD,534.00,26/07/2018,
Commercial,REGIONAL ENTERPRISE,Advertising,60106635,TMP (UK) LTD,624.00,23/07/2018,
Commercial,REGIONAL ENTERPRISE,Advertising,60107747,TMP (UK) LTD,498.00,24/07/2018,
Commercial,REGIONAL ENTERPRISE,Advertising,60107755,TMP (UK) LTD,583.50,24/07/2018,
Commercial,REGIONAL ENTERPRISE,Other Services,60109917,CONWAY AECOM LTD,"40,000.00",30/07/2018,
Commercial,REGIONAL ENTERPRISE,Other Services,60109991,CONWAY AECOM LTD,"45,000.00",30/07/2018,
Commercial,REGIONAL ENTERPRISE,Other Services,60109838,CONWAY AECOM LTD,"14,965.07",30/07/2018,
COMMERCIAL,REGIONAL ENTERPRISE,Other Services,60109664,CONWAY AECOM LTD,"25,037.06",30/07/2018,
COMMERCIAL,REGIONAL ENTERPRISE,Other Services,80018853,HM REVENUE & CUSTOMS,"258,251.00",27/07/2018,
COMMERCIAL,REGIONAL ENTERPRISE,Other Services,60109471,CONWAY AECOM LTD,"26,027.40",30/07/2018,
COMMERCIAL,REGIONAL ENTERPRISE,Other Services,60109485,CONWAY AECOM LTD,"18,672.93",30/07/2018,
COMMERCIAL,REGIONAL ENTERPRISE,Other Services,60109533,CONWAY AECOM LTD,"53,184.00",30/07/2018,
COMMERCIAL,REGIONAL ENTERPRISE,Other Services,60109534,CONWAY AECOM LTD,"2,785.63",30/07/2018,
COMMERCIAL,REGIONAL ENTERPRISE,Other Services,60109550,CONWAY AECOM LTD,"9,992.25",30/07/2018,
COMMERCIAL,REGIONAL ENTERPRISE,Other Services,60109595,CONWAY AECOM LTD,"24,610.24",30/07/2018,
COMMERCIAL,REGIONAL ENTERPRISE,Other Services,60109630,CONWAY AECOM LTD,"25,841.25",30/07/2018,
COMMERCIAL,REGIONAL ENTERPRISE,Other Services,60109644,CONWAY AECOM LTD,"18,799.65",30/07/2018,
COMMERCIAL,REGIONAL ENTERPRISE,Other Services,60109668,CONWAY AECOM LTD,"34,986.70",30/07/2018,
COMMERCIAL,REGIONAL ENTERPRISE,Other Services,60109672,CONWAY AECOM LTD,"36,948.95",30/07/2018,
Commercial,REGIONAL ENTERPRISE,Consultants Fees,60104450,NATIONWIDE DATA COLLECTION,400.00,02/07/2018,
Commissioning,Commissioning,Other Local Authorities - Thir,EBX0238608,GREATER LONDON AUTHORITY,"4,363,157.80",30/07/2018,
Commissioning,Commissioning,Other Local Authorities - Thir,EBX238500,NORTH LONDON WASTE AUTHORITY,"1,014,609.00",27/07/2018,
Commissioning,Commissioning,Professional Services,60108296,GENERAL DYNAMICS INFORMATION TECHNOLOGY,374.40,19/07/2018,
Commissioning,Commissioning,Cleaning and domestic material,60105609,CHURCHILL CONTRACT SERVICES,664.48,17/07/2018,
Commissioning,Commissioning,Cleaning and domestic material,60108041,CHURCHILL CONTRACT SERVICES,82.35,27/07/2018,
Commissioning,Commissioning,Cleaning and domestic material,60108101,CHURCHILL CONTRACT SERVICES,664.48,30/07/2018,
Commissioning,Commissioning,Other Services,60107428,LONDON BOROUGH OF BRENT,"64,690.00",04/07/2018,
Commissioning,Commissioning,Professional Services,60106712,PRICEWATERHOUSE COOPERS,"14,500.00",17/07/2018,
Commissioning,Commissioning,Other Services,60105401,SHREDALL LTD,99.00,11/07/2018,
Commissioning,Commissioning,Other Services,60105426,SHREDALL LTD,135.00,11/07/2018,
Commissioning,Commissioning,Other Services,60105458,SHREDALL LTD,18.00,11/07/2018,
Commissioning,Commissioning,Other Services,60108666,SHREDALL LTD,270.00,27/07/2018,
Commissioning,Commissioning,Other Services,60108691,SHREDALL LTD,36.00,27/07/2018,
Commissioning,Commissioning,Other Services,60108705,SHREDALL LTD,198.00,27/07/2018,
Commissioning,Commissioning,Other Services,60108635,STOR-A FILE LTD,"5,883.09",27/07/2018,
Commissioning,Commissioning,Professional Services,60108424,QM LEGAL COSTS SOLUTIONS LTD,381.55,13/07/2018,
Commissioning,Commissioning,Grant Payments,80018346,ART AGAINST KNIVES,"2,434.75",11/07/2018,
Commissioning,Commissioning,Grant Payments,80018466,SERAD,"2,458.00",11/07/2018,
Commissioning,Commissioning,Professional Services,60108138,KPMG FEES ACCOUNT,875.00,10/07/2018,
Commissioning,Commissioning,Professional Services,60107391,L G FUTURES,"1,319.44",03/07/2018,
Commissioning,Commissioning,Professional Services,60108656,L G FUTURES,175.00,23/07/2018,
Commissioning,Commissioning,Employee Expenses,60105801,PENNA PLC,"13,513.50",20/07/2018,
Commissioning,Commissioning,Professional Services,60107838,PENNA PLC,"11,232.00",20/07/2018,
Commissioning,Commissioning,Consultants Fees,60105398,LEIDOS INNOVATIONS UK LTD,"1,335.98",06/07/2018,
Commissioning,Commissioning,Consultants Fees,60106539,LEIDOS INNOVATIONS UK LTD,"7,999.70",12/07/2018,
Commissioning,Commissioning,Other Agencies - Third Party P,80017761,FAMILY FUND TRADING LTD,"100,000.00",02/07/2018,
Commissioning,Commissioning,Equipment and Materials Purcha,60107925,OCS GROUP UK LIMITED,"47,269.00",06/07/2018,
Commissioning,Commissioning,Other Services,60100747,BRITISH GYMNASTICS,76.00,03/07/2018,
Commissioning,Commissioning,Other Services,80018816,JAG'S TROPHIES,24.00,26/07/2018,
Commissioning,Commissioning,Clothing - Uniforms,60109723,THE ULTIMATE PROMOTION CO LTD,155.00,30/07/2018,
Commissioning,Commissioning,Other Services,60105661,REDACTED - PERSONAL DATA,721.50,20/07/2018,
Commissioning,Commissioning,Other Services,60105718,REDACTED - PERSONAL DATA,137.00,20/07/2018,
Commissioning,Commissioning,Non Education Staff GPay,60108807,HESTIA,"14,270.00",23/07/2018,
Commissioning,Commissioning,Equipment and Materials Purcha,60108863,HESTIA,"14,270.00",23/07/2018,
Commissioning,Commissioning,Non Education Staff GPay,60108917,HESTIA,"14,270.00",23/07/2018,
Commissioning,Commissioning,Equipment and Materials Purcha,10014149,SOLACE WOMEN'S AID,"17,333.50",30/07/2018,
Commissioning,Commissioning,Equipment and Materials Purcha,10014150,SOLACE WOMEN'S AID,"17,333.50",31/07/2018,
Commissioning,Commissioning,Equipment and Materials Purcha,10014151,SOLACE WOMEN'S AID,"17,333.50",31/07/2018,
Commissioning,Commissioning,Other Transfer Payments to Soc,10014152,SOLACE WOMEN'S AID,"22,552.50",31/07/2018,
Commissioning,Commissioning,Equipment and Materials Purcha,60107900,SOLACE WOMEN'S AID,"17,200.00",06/07/2018,
Commissioning,Commissioning,Equipment and Materials Purcha,60107906,SOLACE WOMEN'S AID,"17,171.25",06/07/2018,
Commissioning,Commissioning,Equipment and Materials Purcha,60107954,SOLACE WOMEN'S AID,"17,200.00",06/07/2018,
Commissioning,Commissioning,Private Contractors - Third Pa,60109774,GREENWICH LEISURE LTD,"2,465.88",31/07/2018,
Commissioning,Commissioning,Other Services,60105642,REDACTED - PERSONAL DATA,187.50,23/07/2018,
Commissioning,Commissioning,Other Services,60105691,REDACTED - PERSONAL DATA,150.00,23/07/2018,
Commissioning,Commissioning,Other Services,60106523,REDACTED - PERSONAL DATA,180.00,23/07/2018,
Commissioning,Commissioning,Consultants Fees,60109371,CITY OF LONDON,"5,000.00",30/07/2018,
Commissioning,Commissioning,Training,60105829,GOVNET COMMUNICATIONS,395.00,06/07/2018,
Commissioning,Commissioning,Consultants Fees,60105935,THOMPSONS SOLICITORS,291.67,13/07/2018,
Commissioning,Commissioning,Consultants Fees,60105939,THOMPSONS SOLICITORS,291.67,30/07/2018,
Commissioning,Commissioning,Furniture-Purchase-Repair,60098458,S W BRUCE & CO LTD,675.00,18/07/2018,
Commissioning,Commissioning,Training,60108055,CAPITA BUSINESS SERVICES LTD,"2,362.50",12/07/2018,
Commissioning,Commissioning,Consultants Fees,80018797,BDLD CIC,"2,600.00",24/07/2018,
Commissioning,Commissioning,Print Recharge,60106414,GOOD IMPRESSIONS (LONDON) LIMITED,"1,200.00",12/07/2018,
Commissioning,Commissioning,Professional Services,60105977,MYSTERY SHOPPERS LTD,399.80,06/07/2018,
Commissioning,Commissioning,Professional Services,60108343,MYSTERY SHOPPERS LTD,399.80,27/07/2018,
Commissioning,Commissioning,Miscellaneous Expenses,80018608,HEARNS COACHES LTD,300.00,19/07/2018,
Commissioning,Commissioning,Miscellaneous Expenses,80018761,SEO WEB DESIGNS,"1,210.00",25/07/2018,
Commissioning,Commissioning,Miscellaneous Expenses,80018682,REDACTED - PERSONAL DATA,"1,450.00",19/07/2018,
Commissioning,Commissioning,Training,60108683,REDACTED - PERSONAL DATA,450.00,24/07/2018,
Commissioning,Commissioning,Professional Services,80018926,AHMEDIA LIMITED,"1,860.00",30/07/2018,
Commissioning,Commissioning,Other Services,60107697,MOTT MACDONALD LTD,"13,811.00",06/07/2018,
Commissioning,Commissioning,Other Services,60107289,MOTT MACDONALD LTD,"12,461.63",04/07/2018,
Commissioning,Commissioning,Other Services,60107324,MOTT MACDONALD LTD,"28,297.61",04/07/2018,
COMMISSIONING,COMMISSIONING GROUP,Equipment and Materials Purcha,60108947,JOHN GRAHAM CONSTRUCTION LTD,"410,601.70",27/07/2018,
COMMISSIONING,COMMISSIONING GROUP,Building Repairs & Maintenance,60109434,ADAMS ENVIRONMENTAL LTD,"1,000.00",30/07/2018,
COMMISSIONING,COMMISSIONING GROUP,Building Repairs & Maintenance,60106150,JOHN TAYLOR & GREEN LTD,"30,076.26",06/07/2018,
COMMISSIONING,COMMISSIONING GROUP,Building Repairs & Maintenance,60095408,S W BRUCE & CO LTD,"1,516.16",10/07/2018,
COMMISSIONING,COMMISSIONING GROUP,Building Repairs & Maintenance,60106140,S W BRUCE & CO LTD,"2,535.00",11/07/2018,
COMMISSIONING,COMMISSIONING GROUP,Consultants Fees,60107148,E-CAR CLUB,125.00,11/07/2018,
COMMISSIONING,COMMISSIONING GROUP,Consultants Fees,60107206,E-CAR CLUB,"2,556.29",11/07/2018,
COMMISSIONING,COMMISSIONING GROUP,Consultants Fees,10014119,GALLIFORD TRY,"1,320,531.21",03/07/2018,
COMMISSIONING,COMMISSIONING GROUP,Consultants Fees,10014148,GALLIFORD TRY,"182,606.50",26/07/2018,
COMMISSIONING,COMMISSIONING GROUP,Training,60108282,STAIRWAY CONSULTING LTD,669.30,24/07/2018,
COMMISSIONING,COMMISSIONING GROUP,Training,60108303,STAIRWAY CONSULTING LTD,"7,223.70",12/07/2018,
COMMISSIONING,COMMISSIONING GROUP,Equipment and Materials Purcha,60106562,AKS WARD LTD,875.00,16/07/2018,
COMMISSIONING,COMMISSIONING GROUP,Equipment and Materials Purcha,60106564,AKS WARD LTD,500.00,16/07/2018,
COMMISSIONING,COMMISSIONING GROUP,Equipment and Materials Purcha,60107784,JOHN GRAHAM CONSTRUCTION LTD,"709,580.18",06/07/2018,
COMMISSIONING,COMMISSIONING GROUP,Other Services,80018557,THE HOPE OF CHILDS HILL,"4,400.00",13/07/2018,
COMMISSIONING,COMMISSIONING GROUP,Advertising,60108297,TMP (UK) LTD,529.50,26/07/2018,
COMMISSIONING,COMMISSIONING GROUP,Other Services,60109333,BOUYGUES E&S INFRASTRUCTURE UK LTD,287.50,30/07/2018,
COMMISSIONING,COMMISSIONING GROUP,Other Services,60109368,BOUYGUES E&S INFRASTRUCTURE UK LTD,"1,012.00",30/07/2018,
Corporate Accounting,Corporate Accounting,Other Local Authorities - Thir,EBX0237734,GREATER LONDON AUTHORITY,"236,146.00",23/07/2018,
Corporate Accounting,Corporate Accounting,Grant Payments,80018768,COMMUNITY FOCUS,"3,250.00",26/07/2018,
Corporate Accounting,Corporate Accounting,Grant Payments,80018523,INCLUSION BARNET,"4,625.00",19/07/2018,
Corporate Accounting,Corporate Accounting,Grant Payments,80018385,LIVING WAY MINISTRIES,"2,400.00",11/07/2018,
Corporate Accounting,Corporate Accounting,Grant Payments,80018493,THE GOLF TRUST,"2,500.00",11/07/2018,
Corporate Accounting,Corporate Accounting,Other Transfer Payments to Soc,80018519,WIRECARD (FS INSTANT 2040880892973),"17,350.56",12/07/2018,
Corporate Accounting,Corporate Accounting,Other Transfer Payments to Soc,80018857,WIRECARD (FS INSTANT 2040880892973),"10,223.08",26/07/2018,
Corporate Accounting,Corporate Accounting,Other Transfer Payments to Soc,80018520,WIRECARD (FS ONGOING 2040881670310,"21,560.72",12/07/2018,
Corporate Accounting,Corporate Accounting,Other Transfer Payments to Soc,80018858,WIRECARD (FS ONGOING 2040881670310,"21,018.76",26/07/2018,
Corporate Accounting,Corporate Accounting,Refunds,80018312,MOTT MACDONALD LTD/CAMBRIDGE EDUCATION,360.00,06/07/2018,
Corporate Accounting,Corporate Accounting,Refunds,80018480,MOTT MACDONALD LTD/CAMBRIDGE EDUCATION,"1,809.99",13/07/2018,
Corporate Accounting,Corporate Accounting,Refunds,80018149,REDCORN LTD,"2,448.00",18/07/2018,
Corporate Accounting,Corporate Accounting,Employee Expenses,60107517,EDENRED,"1,156.25",10/07/2018,
COST CENTRES BLOCKED,COST CENTRES BLOCKED,Other Services,60082321,CONWAY AECOM LTD,"2,697.82",23/07/2018,
COST CENTRES BLOCKED,COST CENTRES BLOCKED,Other Services,60082159,CONWAY AECOM LTD,"3,744.29",11/07/2018,
COST CENTRES BLOCKED,COST CENTRES BLOCKED,Other Services,60109209,CONWAY AECOM LTD,"4,310.61",30/07/2018,
COST CENTRES BLOCKED,COST CENTRES BLOCKED,Other Services,60109259,CONWAY AECOM LTD,"3,069.97",30/07/2018,
Delivery Units,Adults and Communities,Stationery,40002907,OFFICE DEPOT UK LTD,360.14,26/07/2018,
Delivery Units,Adults and Communities,Voluntary Associations - Third,20036933,ASRA GREATER LONDON HOUSING ASSOC,379.30,06/07/2018,
Delivery Units,Adults and Communities,Voluntary Associations - Third,20037264,ASRA GREATER LONDON HOUSING ASSOC,379.30,18/07/2018,
Delivery Units,Adults and Communities,Voluntary Associations - Third,20036934,BARNET MENCAP,"11,142.65",06/07/2018,
Delivery Units,Adults and Communities,Voluntary Associations - Third,20037265,BARNET MENCAP,"11,142.65",18/07/2018,
Delivery Units,Adults and Communities,Voluntary Associations - Third,20036936,CHRISTIAN ACTION (ENFIELD),365.80,06/07/2018,
Delivery Units,Adults and Communities,Voluntary Associations - Third,20037267,CHRISTIAN ACTION (ENFIELD),365.80,18/07/2018,
Delivery Units,Adults and Communities,Voluntary Associations - Third,20036937,ELEANOR PALMER TRUST NO 2 A/C.,486.50,06/07/2018,
Delivery Units,Adults and Communities,Voluntary Associations - Third,20037268,ELEANOR PALMER TRUST NO 2 A/C.,486.50,18/07/2018,
Delivery Units,Adults and Communities,Voluntary Associations - Third,20036938,GENESIS HOUSING ASSOCIATION LIMITED,"35,676.00",06/07/2018,
Delivery Units,Adults and Communities,Voluntary Associations - Third,20037269,GENESIS HOUSING ASSOCIATION LIMITED,"35,676.00",18/07/2018,
Delivery Units,Adults and Communities,Voluntary Associations - Third,20036940,HABINTEG HOUSING ASSOCIATION,446.37,06/07/2018,
Delivery Units,Adults and Communities,Voluntary Associations - Third,20037271,HABINTEG HOUSING ASSOCIATION,446.37,18/07/2018,
Delivery Units,Adults and Communities,Voluntary Associations - Third,20036941,JEWISH COMMUNITY HOUSING ASSOCIATIO,568.17,06/07/2018,
Delivery Units,Adults and Communities,Voluntary Associations - Third,20037272,JEWISH COMMUNITY HOUSING ASSOCIATIO,568.17,18/07/2018,
Delivery Units,Adults and Communities,Voluntary Associations - Third,20036947,LINEN & WOOLLEN DRAPERS COTTAGE,730.11,06/07/2018,
Delivery Units,Adults and Communities,Voluntary Associations - Third,20037278,LINEN & WOOLLEN DRAPERS COTTAGE,730.11,18/07/2018,
Delivery Units,Adults and Communities,Voluntary Associations - Third,20036943,METROPOLITAN SUPPORT TRUST,502.00,06/07/2018,
Delivery Units,Adults and Communities,Voluntary Associations - Third,20036944,METROPOLITAN SUPPORT TRUST,"5,742.00",06/07/2018,
Delivery Units,Adults and Communities,Voluntary Associations - Third,20037274,METROPOLITAN SUPPORT TRUST,502.00,18/07/2018,
Delivery Units,Adults and Communities,Voluntary Associations - Third,20037275,METROPOLITAN SUPPORT TRUST,"5,689.80",18/07/2018,
Delivery Units,Adults and Communities,Voluntary Associations - Third,20036945,ORCHARD HOUSING ASSOCIATION,196.62,06/07/2018,
Delivery Units,Adults and Communities,Voluntary Associations - Third,20037276,ORCHARD HOUSING ASSOCIATION,196.62,17/07/2018,
Delivery Units,Adults and Communities,Voluntary Associations - Third,20036948,SANCTUARY HOUSING ASSOCIATION,"5,974.08",06/07/2018,
Delivery Units,Adults and Communities,Voluntary Associations - Third,20036949,SANCTUARY HOUSING ASSOCIATION,407.80,06/07/2018,
Delivery Units,Adults and Communities,Voluntary Associations - Third,20037279,SANCTUARY HOUSING ASSOCIATION,"6,463.68",18/07/2018,
Delivery Units,Adults and Communities,Voluntary Associations - Third,20037280,SANCTUARY HOUSING ASSOCIATION,407.80,18/07/2018,
Delivery Units,Adults and Communities,Voluntary Associations - Third,20036950,SCOTSCARE,361.52,06/07/2018,
Delivery Units,Adults and Communities,Voluntary Associations - Third,20037281,SCOTSCARE,361.52,18/07/2018,
Delivery Units,Adults and Communities,Voluntary Associations - Third,20036946,ST PANCRAS & HUMANIST H.A.,661.55,06/07/2018,
Delivery Units,Adults and Communities,Voluntary Associations - Third,20037277,ST PANCRAS & HUMANIST H.A.,661.55,18/07/2018,
Delivery Units,Adults and Communities,Other Services,20036951,WILLOW HOUSING & CARE LTD.,711.38,06/07/2018,
Delivery Units,Adults and Communities,Other Services,20037282,WILLOW HOUSING & CARE LTD.,711.38,18/07/2018,
Delivery Units,Adults and Communities,Other Services,60105831,D.A. LANGUAGES LTD,35.36,23/07/2018,
Delivery Units,Adults and Communities,Ttl IT & Comms,60107712,P A CONSULTING SERVICES LTD,"27,120.00",06/07/2018,
Delivery Units,Adults and Communities,Equipment and Materials Purcha,60105999,MILLBROOK HEALTHCARE LTD,"37,766.12",03/07/2018,
Delivery Units,Adults and Communities,Equipment and Materials Purcha,60107652,MILLBROOK HEALTHCARE LTD,"278,668.69",06/07/2018,
Delivery Units,Adults and Communities,Equipment and Materials Purcha,60107832,MILLBROOK HEALTHCARE LTD,"289,147.63",11/07/2018,
Delivery Units,Adults and Communities,Stationery,40002947,OFFICE DEPOT UK LTD,37.56,26/07/2018,
Delivery Units,Adults and Communities,Other Services,60106025,AISA MEDICAL LTD,173.37,12/07/2018,
Delivery Units,Adults and Communities,Other Services,80018295,KYRIACOS KYRIACOU (THEODOSIS A,"2,904.00",02/07/2018,
Delivery Units,Adults and Communities,Other Contributions,80018585,BARNET ENFIELD & HARINGEY MENTAL,"8,116.68",18/07/2018,
Delivery Units,Adults and Communities,Cleaning and domestic material,60105582,CHURCHILL CONTRACT SERVICES,391.37,13/07/2018,
Delivery Units,Adults and Communities,Cleaning and domestic material,60105594,CHURCHILL CONTRACT SERVICES,377.81,13/07/2018,
Delivery Units,Adults and Communities,Cleaning and domestic material,60107993,CHURCHILL CONTRACT SERVICES,377.81,30/07/2018,
Delivery Units,Adults and Communities,Cleaning and domestic material,60108063,CHURCHILL CONTRACT SERVICES,391.37,30/07/2018,
Delivery Units,Adults and Communities,Translation Exp / Interpret,60105783,D.A. LANGUAGES LTD,315.75,18/07/2018,
Delivery Units,Adults and Communities,Rubbish Collection,60108934,G.B.HOLDINGS LTD,16.80,23/07/2018,
Delivery Units,Adults and Communities,Rubbish Collection,60109026,G.B.HOLDINGS LTD,33.60,23/07/2018,
Delivery Units,Adults and Communities,Stationery,60108933,HERTFORDSHIRE SUPPLIES   COUNTY CO,476.09,23/07/2018,
Delivery Units,Adults and Communities,Building Repairs & Maintenance,60107422,HSL COMPLIANCE LTD,34.91,04/07/2018,
Delivery Units,Adults and Communities,Building Repairs & Maintenance,60107599,HSL COMPLIANCE LTD,75.00,03/07/2018,
Delivery Units,Adults and Communities,Gas,60108462,KENT COUNTY COUNCIL (KCS),127.09,13/07/2018,
Delivery Units,Adults and Communities,Food Costs,60105560,MULLER MILK & INGREDIENTS,1.52,10/07/2018,
Delivery Units,Adults and Communities,Food Costs,60105569,MULLER MILK & INGREDIENTS,1.52,10/07/2018,
Delivery Units,Adults and Communities,Food Costs,60106639,MULLER MILK & INGREDIENTS,1.52,06/07/2018,
Delivery Units,Adults and Communities,Food Costs,60107331,MULLER MILK & INGREDIENTS,1.52,13/07/2018,
Delivery Units,Adults and Communities,Food Costs,60108067,MULLER MILK & INGREDIENTS,1.52,20/07/2018,
Delivery Units,Adults and Communities,Food Costs,60109028,MULLER MILK & INGREDIENTS,1.52,27/07/2018,
Delivery Units,Adults and Communities,Building Repairs & Maintenance,60104433,S W BRUCE & CO LTD,97.20,16/07/2018,
Delivery Units,Adults and Communities,Building Repairs & Maintenance,60104479,S W BRUCE & CO LTD,185.00,11/07/2018,
Delivery Units,Adults and Communities,Stationery,60108954,UNIQUE OFFICE SOLUTIONS LTD,957.10,23/07/2018,
Delivery Units,Adults and Communities,Building Repairs & Maintenance,60109095,WATES LIVING SPACE,67.80,24/07/2018,
Delivery Units,Adults and Communities,Stationery,60106528,XEROX (UK) LTD,1.58,13/07/2018,
Delivery Units,Adults and Communities,Stationery,60108447,XEROX (UK) LTD,0.24,26/07/2018,
Delivery Units,Adults and Communities,Stationery,60108509,XEROX (UK) LTD,20.19,19/07/2018,
Delivery Units,Adults and Communities,Grounds maintenance,60108444,REDACTED - PERSONAL DATA,160.00,13/07/2018,
Delivery Units,Adults and Communities,Grounds maintenance,60108445,REDACTED - PERSONAL DATA,100.00,13/07/2018,
Delivery Units,Adults and Communities,Grounds maintenance,60108477,REDACTED - PERSONAL DATA,100.00,13/07/2018,
Delivery Units,Adults and Communities,Grounds maintenance,60108482,REDACTED - PERSONAL DATA,100.00,13/07/2018,
Delivery Units,Adults and Communities,Voluntary Associations - Third,20036932,AGE CONCERN,"58,333.00",06/07/2018,
Delivery Units,Adults and Communities,Voluntary Associations - Third,20037263,AGE CONCERN,"58,333.00",18/07/2018,
Delivery Units,Adults and Communities,Other Transfer Payments to Soc,60106040,AGE CONCERN,"3,150.00",06/07/2018,
Delivery Units,Adults and Communities,Other Transfer Payments to Soc,60106296,AGE CONCERN,"3,150.00",06/07/2018,
Delivery Units,Adults and Communities,Other Transfer Payments to Soc,60106349,AGE CONCERN,187.07,06/07/2018,
Delivery Units,Adults and Communities,Other Transfer Payments to Soc,60105646,BARNET CITIZENS ADVICE BUREAU,"76,971.00",20/07/2018,
Delivery Units,Adults and Communities,Professional Services,60105696,BARNET CITIZENS ADVICE BUREAU,"84,705.00",17/07/2018,
Delivery Units,Adults and Communities,Other Transfer Payments to Soc,60109461,BARNET CITIZENS ADVICE BUREAU,"76,971.00",31/07/2018,
Delivery Units,Adults and Communities,Voluntary Associations - Third,20036935,BARNET MENCAP,"28,583.00",06/07/2018,
Delivery Units,Adults and Communities,Voluntary Associations - Third,20037266,BARNET MENCAP,"28,583.00",18/07/2018,
Delivery Units,Adults and Communities,Voluntary Associations - Third,20036939,GENESIS HOUSING ASSOCIATION LIMITED,"33,577.00",06/07/2018,
Delivery Units,Adults and Communities,Voluntary Associations - Third,20037270,GENESIS HOUSING ASSOCIATION LIMITED,"33,577.00",18/07/2018,
Delivery Units,Adults and Communities,Voluntary Associations - Third,20036942,MIDDLESEX ASSOCIATION  FOR THE BLIN,"2,394.00",06/07/2018,
Delivery Units,Adults and Communities,Voluntary Associations - Third,20037273,MIDDLESEX ASSOCIATION  FOR THE BLIN,"2,394.00",18/07/2018,
Delivery Units,Adults and Communities,Training,60106785,ADJUSTING THE BALANCE,600.00,18/07/2018,
Delivery Units,Adults and Communities,Training,60108558,KAIROS HEALTHCARE TRAINING,400.00,18/07/2018,
Delivery Units,Adults and Communities,Training,60108592,KAIROS HEALTHCARE TRAINING,400.00,18/07/2018,
Delivery Units,Adults and Communities,Training,60108584,LOUISE FOX CONSULTING LTD,"2,770.00",24/07/2018,
Delivery Units,Adults and Communities,Training,60109950,ME LEARNING LTD,"4,000.00",30/07/2018,
Delivery Units,Adults and Communities,Training,60107259,MEDUCATE TRAINING LTD,400.00,04/07/2018,
Delivery Units,Adults and Communities,Training,60107283,MEDUCATE TRAINING LTD,400.00,04/07/2018,
Delivery Units,Adults and Communities,Training,60107238,MICHAEL MANDELSTAM LTD,825.00,03/07/2018,
Delivery Units,Adults and Communities,Training,60107776,MICHAEL MANDELSTAM LTD,825.00,26/07/2018,
Delivery Units,Adults and Communities,Other Services,80018472,GENESIS HOUSING ASSOCIATION LIMITED,"22,107.67",20/07/2018,
Delivery Units,Adults and Communities,Other Transfer Payments to Soc,60108690,PRT BARNET CARERS CENTRE,"97,268.13",18/07/2018,
Delivery Units,Adults and Communities,Stationery,40002935,OFFICE DEPOT UK LTD,3.60,26/07/2018,
Delivery Units,Adults and Communities,Other Transfer Payments to Soc,80018659,HILL HOUSE RESIDENTS FUND,320.60,27/07/2018,
Delivery Units,Adults and Communities,Other Transfer Payments to Soc,80018369,OAK TREE,151.67,04/07/2018,
Delivery Units,Adults and Communities,Other Transfer Payments to Soc,80018356,CLOVERLEY PROPERTIES LTD,68.00,04/07/2018,
Delivery Units,Adults and Communities,Other Transfer Payments to Soc,80018368,LODGE SCHOOL,72.00,03/07/2018,
Delivery Units,Adults and Communities,Other Transfer Payments to Soc,80018377,REDACTED - PERSONAL DATA,99.60,04/07/2018,
Delivery Units,Adults and Communities,Other Transfer Payments to Soc,80018971,REDACTED - PERSONAL DATA,99.60,31/07/2018,
Delivery Units,Adults and Communities,Other Transfer Payments to Soc,80018559,REDACTED - PERSONAL DATA,99.60,13/07/2018,
Delivery Units,Adults and Communities,Other Transfer Payments to Soc,80018561,REDACTED - PERSONAL DATA,80.00,13/07/2018,
Delivery Units,Adults and Communities,Other Transfer Payments to Soc,80018351,REDACTED - PERSONAL DATA,120.00,03/07/2018,
Delivery Units,Adults and Communities,Other Transfer Payments to Soc,80018349,REDACTED - PERSONAL DATA,99.60,04/07/2018,
Delivery Units,Adults and Communities,Other Transfer Payments to Soc,80018353,REDACTED - PERSONAL DATA,200.00,04/07/2018,
Delivery Units,Adults and Communities,Other Transfer Payments to Soc,80018562,REDACTED - PERSONAL DATA,340.00,13/07/2018,
Delivery Units,Adults and Communities,Other Transfer Payments to Soc,80018343,REDACTED - PERSONAL DATA,350.00,04/07/2018,
Delivery Units,Adults and Communities,Other Transfer Payments to Soc,80018578,REDACTED - PERSONAL DATA,120.00,13/07/2018,
Delivery Units,Adults and Communities,Other Transfer Payments to Soc,80018579,REDACTED - PERSONAL DATA,280.00,13/07/2018,
Delivery Units,Adults and Communities,Other Transfer Payments to Soc,80018362,REDACTED - PERSONAL DATA,69.80,04/07/2018,
Delivery Units,Adults and Communities,Other Transfer Payments to Soc,80018363,REDACTED - PERSONAL DATA,200.00,04/07/2018,
Delivery Units,Adults and Communities,Other Transfer Payments to Soc,80018365,REDACTED - PERSONAL DATA,99.60,04/07/2018,
Delivery Units,Adults and Communities,Other Transfer Payments to Soc,80018364,REDACTED - PERSONAL DATA,99.60,04/07/2018,
Delivery Units,Adults and Communities,Other Transfer Payments to Soc,80018367,REDACTED - PERSONAL DATA,93.40,04/07/2018,
Delivery Units,Adults and Communities,Other Transfer Payments to Soc,80018352,REDACTED - PERSONAL DATA,99.60,04/07/2018,
Delivery Units,Adults and Communities,Other Transfer Payments to Soc,80018347,REDACTED - PERSONAL DATA,155.00,04/07/2018,
Delivery Units,Adults and Communities,Other Transfer Payments to Soc,80018359,REDACTED - PERSONAL DATA,183.80,04/07/2018,
Delivery Units,Adults and Communities,Other Transfer Payments to Soc,80018361,REDACTED - PERSONAL DATA,99.60,04/07/2018,
Delivery Units,Adults and Communities,Other Transfer Payments to Soc,80018580,REDACTED - PERSONAL DATA,336.00,13/07/2018,
Delivery Units,Adults and Communities,Other Transfer Payments to Soc,80018371,REDACTED - PERSONAL DATA,80.00,04/07/2018,
Delivery Units,Adults and Communities,Other Transfer Payments to Soc,80018575,REDACTED - PERSONAL DATA,99.60,13/07/2018,
Delivery Units,Adults and Communities,Other Transfer Payments to Soc,80018576,REDACTED - PERSONAL DATA,99.60,13/07/2018,
Delivery Units,Adults and Communities,Other Transfer Payments to Soc,80018662,REDACTED - PERSONAL DATA,200.00,30/07/2018,
Delivery Units,Adults and Communities,Other Transfer Payments to Soc,80018348,REDACTED - PERSONAL DATA,160.00,04/07/2018,
Delivery Units,Adults and Communities,Other Transfer Payments to Soc,80018360,REDACTED - PERSONAL DATA,99.60,04/07/2018,
Delivery Units,Adults and Communities,Other Transfer Payments to Soc,80018357,REDACTED - PERSONAL DATA,186.80,04/07/2018,
Delivery Units,Adults and Communities,Other Transfer Payments to Soc,80018581,REDACTED - PERSONAL DATA,186.80,13/07/2018,
Delivery Units,Adults and Communities,Other Transfer Payments to Soc,80018370,REDACTED - PERSONAL DATA,99.60,04/07/2018,
Delivery Units,Adults and Communities,Other Transfer Payments to Soc,80018656,REDACTED - PERSONAL DATA,520.00,19/07/2018,
Delivery Units,Adults and Communities,Other Transfer Payments to Soc,80018807,REDACTED - PERSONAL DATA,83.15,30/07/2018,
Delivery Units,Adults and Communities,Other Transfer Payments to Soc,80018644,REDACTED - PERSONAL DATA,139.60,19/07/2018,
Delivery Units,Adults and Communities,Other Transfer Payments to Soc,80018054,REDACTED - PERSONAL DATA,70.40,12/07/2018,
Delivery Units,Adults and Communities,Other Transfer Payments to Soc,80018663,REDACTED - PERSONAL DATA,300.00,30/07/2018,
Delivery Units,Adults and Communities,Other Transfer Payments to Soc,80018374,REDACTED - PERSONAL DATA,160.00,04/07/2018,
Delivery Units,Adults and Communities,Other Transfer Payments to Soc,80018375,REDACTED - PERSONAL DATA,146.80,04/07/2018,
Delivery Units,Adults and Communities,Other Transfer Payments to Soc,80018660,REDACTED - PERSONAL DATA,99.60,30/07/2018,
Delivery Units,Adults and Communities,Other Transfer Payments to Soc,80018376,REDACTED - PERSONAL DATA,165.00,04/07/2018,
Delivery Units,Adults and Communities,Other Transfer Payments to Soc,80018658,REDACTED - PERSONAL DATA,99.60,30/07/2018,
Delivery Units,Adults and Communities,Other Transfer Payments to Soc,80018657,REDACTED - PERSONAL DATA,83.60,19/07/2018,
Delivery Units,Adults and Communities,Other Establishments - Third P,60101968,HERTFORDSHIRE PARTNERSHIP,"111,724.50",06/07/2018,
Delivery Units,Adults and Communities,Other Establishments - Third P,60103055,HERTFORDSHIRE PARTNERSHIP,"111,724.50",06/07/2018,
Delivery Units,Adults and Communities,Other Establishments - Third P,60104474,HERTFORDSHIRE PARTNERSHIP,"111,724.50",06/07/2018,
Delivery Units,Adults and Communities,Other Establishments - Third P,60106526,HERTFORDSHIRE PARTNERSHIP,"111,724.50",06/07/2018,
Delivery Units,Adults and Communities,Other Services,60106728,RED R DESIGN,250.00,12/07/2018,
Delivery Units,Adults and Communities,Other Services,80018517,REDACTED - PERSONAL DATA,120.00,20/07/2018,
Delivery Units,Adults and Communities,Other Services,60108227,PRIME PRODUCTION LTD,500.00,10/07/2018,
Delivery Units,Adults and Communities,Translation Exp / Interpret,60105752,D.A. LANGUAGES LTD,54.00,19/07/2018,
Delivery Units,Adults and Communities,Translation Exp / Interpret,60105814,D.A. LANGUAGES LTD,62.50,19/07/2018,
Delivery Units,Adults and Communities,Other Services,80018620,REDACTED - PERSONAL DATA,100.00,17/07/2018,
Delivery Units,Adults and Communities,Other Transfer Payments to Soc,60108289,ACTION FIRST RECRUITMENT,"1,675.00",17/07/2018,
Delivery Units,Adults and Communities,Other Transfer Payments to Soc,60101461,AISA MEDICAL LTD,356.91,18/07/2018,
Delivery Units,Adults and Communities,Other Transfer Payments to Soc,60102862,AISA MEDICAL LTD,351.19,18/07/2018,
Delivery Units,Adults and Communities,Other Transfer Payments to Soc,60102863,AISA MEDICAL LTD,351.24,18/07/2018,
Delivery Units,Adults and Communities,Other Transfer Payments to Soc,60105777,AISA MEDICAL LTD,178.24,06/07/2018,
Delivery Units,Adults and Communities,Other Transfer Payments to Soc,60105972,BARTEK ZANIEWSKI LTD,"2,734.40",06/07/2018,
Delivery Units,Adults and Communities,Other Transfer Payments to Soc,60106051,BARTEK ZANIEWSKI LTD,611.60,06/07/2018,
Delivery Units,Adults and Communities,Translation Exp / Interpret,60105772,D.A. LANGUAGES LTD,125.00,18/07/2018,
Delivery Units,Adults and Communities,Other Transfer Payments to Soc,60100845,HCL SOCIAL CARE LTD,335.00,11/07/2018,
Delivery Units,Adults and Communities,Other Transfer Payments to Soc,60106353,HCL SOCIAL CARE LTD,670.00,11/07/2018,
Delivery Units,Adults and Communities,Other Transfer Payments to Soc,60106368,HCL SOCIAL CARE LTD,670.00,12/07/2018,
Delivery Units,Adults and Communities,Other Transfer Payments to Soc,60107235,HCL SOCIAL CARE LTD,670.00,19/07/2018,
Delivery Units,Adults and Communities,Other Transfer Payments to Soc,60107834,KEVIN SCHEURING LTD,"1,520.00",26/07/2018,
Delivery Units,Adults and Communities,Other Services,60105961,KMCA CONSULTANCY SERVICES LTD,"4,956.60",18/07/2018,
Delivery Units,Adults and Communities,Other Services,60108264,KMCA CONSULTANCY SERVICES LTD,"3,113.04",18/07/2018,
Delivery Units,Adults and Communities,Other Transfer Payments to Soc,60085087,KORU MEDICAL LTD,852.45,23/07/2018,
Delivery Units,Adults and Communities,Other Transfer Payments to Soc,60095737,KORU MEDICAL LTD,"1,205.02",23/07/2018,
Delivery Units,Adults and Communities,Other Transfer Payments to Soc,60100001,KORU MEDICAL LTD,"1,508.32",23/07/2018,
Delivery Units,Adults and Communities,Other Transfer Payments to Soc,60107260,KORU MEDICAL LTD,"2,530.01",12/07/2018,
Delivery Units,Adults and Communities,Other Services,80018288,LONDON BOROUGH OF ENFIELD,"4,940.96",16/07/2018,
Delivery Units,Adults and Communities,Other Services,80018540,LONDON BOROUGH OF ENFIELD,"10,979.90",16/07/2018,
Delivery Units,Adults and Communities,Other Transfer Payments to Soc,60105233,MAINPAY LTD,"1,500.00",18/07/2018,
Delivery Units,Adults and Communities,Other Transfer Payments to Soc,60105544,MAINPAY LTD,300.00,11/07/2018,
Delivery Units,Adults and Communities,Other Transfer Payments to Soc,60106001,MAINPAY LTD,300.00,06/07/2018,
Delivery Units,Adults and Communities,Other Services,80016454,S MUSTAFA LTD,200.00,06/07/2018,
Delivery Units,Adults and Communities,Other Transfer Payments to Soc,60095529,PEACEABLE HABITATION LTD,319.08,20/07/2018,
Delivery Units,Adults and Communities,Other Transfer Payments to Soc,60104436,PEACEABLE HABITATION LTD,600.00,20/07/2018,
Delivery Units,Adults and Communities,Other Transfer Payments to Soc,60107388,PEACEABLE HABITATION LTD,620.58,24/07/2018,
Delivery Units,Adults and Communities,Other Transfer Payments to Soc,60108097,PEACEABLE HABITATION LTD,316.96,26/07/2018,
Delivery Units,Adults and Communities,Other Agencies - Third Party P,90092632,AARANDALE MANOR CARE HOME,"3,900.00",19/07/2018,
Delivery Units,Adults and Communities,Other Agencies - Third Party P,90092633,AARANDALE MANOR CARE HOME,"5,200.00",19/07/2018,
Delivery Units,Adults and Communities,Other Agencies - Third Party P,90092634,AARANDALE MANOR CARE HOME,"5,757.14",19/07/2018,
Delivery Units,Adults and Communities,Other Agencies - Third Party P,90092635,AARANDALE MANOR CARE HOME,"5,571.43",19/07/2018,
Delivery Units,Adults and Communities,Other Agencies - Third Party P,90092636,AARANDALE MANOR CARE HOME,"5,757.14",19/07/2018,
Delivery Units,Adults and Communities,Other Agencies - Third Party P,90092637,AARANDALE MANOR CARE HOME,"5,571.43",19/07/2018,
Delivery Units,Adults and Communities,Other Agencies - Third Party P,90092638,AARANDALE MANOR CARE HOME,"4,428.57",19/07/2018,
Delivery Units,Adults and Communities,Other Agencies - Third Party P,90092639,AARANDALE MANOR CARE HOME,"4,285.71",19/07/2018,
Delivery Units,Adults and Communities,Other Agencies - Third Party P,90092640,AARANDALE MANOR CARE HOME,"4,428.57",19/07/2018,
Delivery Units,Adults and Communities,Other Agencies - Third Party P,90092641,AARANDALE MANOR CARE HOME,"4,285.71",19/07/2018,
Delivery Units,Adults and Communities,Other Agencies - Third Party P,90092642,AARANDALE MANOR CARE HOME,"4,000.00",19/07/2018,
Delivery Units,Adults and Communities,Other Agencies - Third Party P,90093391,AARANDALE MANOR CARE HOME,"2,487.64",20/07/2018,
Delivery Units,Adults and Communities,Other Agencies - Third Party P,90093393,AARANDALE MANOR CARE HOME,"2,570.56",20/07/2018,
Delivery Units,Adults and Communities,Other Agencies - Third Party P,90093394,AARANDALE MANOR CARE HOME,"2,570.56",20/07/2018,
Delivery Units,Adults and Communities,Other Agencies - Third Party P,90093395,AARANDALE MANOR CARE HOME,"4,428.57",20/07/2018,
Delivery Units,Adults and Communities,Other Agencies - Third Party P,90090748,ABBEY RAVENSCROFT PARK NURSING HOME,"3,214.29",10/07/2018,
Delivery Units,Adults and Communities,Other Agencies - Third Party P,90092597,ABBEY RAVENSCROFT PARK NURSING HOME,"2,788.32",19/07/2018,
Delivery Units,Adults and Communities,Other Agencies - Third Party P,90092598,ABBEY RAVENSCROFT PARK NURSING HOME,"3,321.43",19/07/2018,
Delivery Units,Adults and Communities,Other Agencies - Third Party P,90092599,ABBEY RAVENSCROFT PARK NURSING HOME,"3,321.43",19/07/2018,
Delivery Units,Adults and Communities,Other Agencies - Third Party P,90092602,ABBEY RAVENSCROFT PARK NURSING HOME,"3,801.88",19/07/2018,
Delivery Units,Adults and Communities,Other Agencies - Third Party P,90092603,ABBEY RAVENSCROFT PARK NURSING HOME,"2,788.32",19/07/2018,
Delivery Units,Adults and Communities,Other Agencies - Third Party P,90092605,ABBEY RAVENSCROFT PARK NURSING HOME,"2,892.86",19/07/2018,
Delivery Units,Adults and Communities,Other Agencies - Third Party P,90092607,ABBEY RAVENSCROFT PARK NURSING HOME,"3,100.00",19/07/2018,
Delivery Units,Adults and Communities,Other Agencies - Third Party P,90092609,ABBEY RAVENSCROFT PARK NURSING HOME,"2,788.32",19/07/2018,
Delivery Units,Adults and Communities,Other Agencies - Third Party P,90092611,ABBEY RAVENSCROFT PARK NURSING HOME,"2,788.32",19/07/2018,
Delivery Units,Adults and Communities,Other Agencies - Third Party P,90092612,ABBEY RAVENSCROFT PARK NURSING HOME,"2,788.32",19/07/2018,
Delivery Units,Adults and Communities,Other Agencies - Third Party P,90092613,ABBEY RAVENSCROFT PARK NURSING HOME,"3,255.00",19/07/2018,
Delivery Units,Adults and Communities,Other Agencies - Third Party P,90092614,ABBEY RAVENSCROFT PARK NURSING HOME,"3,231.43",19/07/2018,
Delivery Units,Adults and Communities,Other Agencies - Third Party P,90092616,ABBEY RAVENSCROFT PARK NURSING HOME,"3,321.43",19/07/2018,
Delivery Units,Adults and Communities,Other Agencies - Third Party P,90092617,ABBEY RAVENSCROFT PARK NURSING HOME,"3,321.43",19/07/2018,
Delivery Units,Adults and Communities,Other Agencies - Third Party P,90090593,ACACIA CARE LTD,"6,800.00",26/07/2018,
Delivery Units,Adults and Communities,Other Agencies - Third Party P,90087849,ADARA HEALTHCARE LTD,"3,400.00",02/07/2018,
Delivery Units,Adults and Communities,Other Agencies - Third Party P,90089446,AGUDAS ISRAEL HOUSING ASSCTN LTD,"2,648.57",04/07/2018,
Delivery Units,Adults and Communities,Other Agencies - Third Party P,90094670,APPLE TREE COURT CARE HOME,"2,570.70",26/07/2018,
Delivery Units,Adults and Communities,Other Agencies - Third Party P,90094674,APPLE TREE COURT CARE HOME,"4,871.43",26/07/2018,
Delivery Units,Adults and Communities,Other Agencies - Third Party P,90094675,APPLE TREE COURT CARE HOME,"2,397.72",26/07/2018,
Delivery Units,Adults and Communities,Other Agencies - Third Party P,90094676,APPLE TREE COURT CARE HOME,"2,657.14",26/07/2018,
Delivery Units,Adults and Communities,Other Agencies - Third Party P,90087833,ASHTON LODGE CARE CENTRE,"3,405.49",02/07/2018,
Delivery Units,Adults and Communities,Other Agencies - Third Party P,90087834,ASHTON LODGE CARE CENTRE,"3,192.64",02/07/2018,
Delivery Units,Adults and Communities,Other Agencies - Third Party P,90087835,ASHTON LODGE CARE CENTRE,"-2,341.27",02/07/2018,
Delivery Units,Adults and Communities,Other Agencies - Third Party P,90091920,ASHTON LODGE CARE CENTRE,"2,936.14",17/07/2018,
Delivery Units,Adults and Communities,Other Agencies - Third Party P,90091921,ASHTON LODGE CARE CENTRE,"2,844.07",17/07/2018,
Delivery Units,Adults and Communities,Other Agencies - Third Party P,90091922,ASHTON LODGE CARE CENTRE,"2,567.95",17/07/2018,
Delivery Units,Adults and Communities,Other Agencies - Third Party P,90091923,ASHTON LODGE CARE CENTRE,"3,299.06",17/07/2018,
Delivery Units,Adults and Communities,Other Agencies - Third Party P,90091924,ASHTON LODGE CARE CENTRE,"3,321.43",17/07/2018,
Delivery Units,Adults and Communities,Other Agencies - Third Party P,90091925,ASHTON LODGE CARE CENTRE,"3,077.64",17/07/2018,
Delivery Units,Adults and Communities,Other Agencies - Third Party P,90091926,ASHTON LODGE CARE CENTRE,"3,520.49",17/07/2018,
Delivery Units,Adults and Communities,Other Agencies - Third Party P,90091927,ASHTON LODGE CARE CENTRE,"2,844.07",17/07/2018,
Delivery Units,Adults and Communities,Other Agencies - Third Party P,90091928,ASHTON LODGE CARE CENTRE,"3,299.06",17/07/2018,
Delivery Units,Adults and Communities,Other Agencies - Third Party P,90091929,ASHTON LODGE CARE CENTRE,"3,077.64",17/07/2018,
Delivery Units,Adults and Communities,Other Agencies - Third Party P,90091930,ASHTON LODGE CARE CENTRE,"3,764.29",17/07/2018,
Delivery Units,Adults and Communities,Other Agencies - Third Party P,90091932,ASHTON LODGE CARE CENTRE,"3,077.64",17/07/2018,
Delivery Units,Adults and Communities,Other Agencies - Third Party P,90091933,ASHTON LODGE CARE CENTRE,"3,293.75",17/07/2018,
Delivery Units,Adults and Communities,Other Agencies - Third Party P,90091934,ASHTON LODGE CARE CENTRE,"3,504.99",17/07/2018,
Delivery Units,Adults and Communities,Other Agencies - Third Party P,90091935,ASHTON LODGE CARE CENTRE,"3,542.86",17/07/2018,
Delivery Units,Adults and Communities,Other Agencies - Third Party P,90091936,ASHTON LODGE CARE CENTRE,"3,073.43",17/07/2018,
Delivery Units,Adults and Communities,Other Agencies - Third Party P,90091937,ASHTON LODGE CARE CENTRE,"3,506.72",17/07/2018,
Delivery Units,Adults and Communities,Other Agencies - Third Party P,90091939,ASHTON LODGE CARE CENTRE,"3,133.79",17/07/2018,
Delivery Units,Adults and Communities,Other Agencies - Third Party P,90091941,ASHTON LODGE CARE CENTRE,"2,844.07",17/07/2018,
Delivery Units,Adults and Communities,Other Agencies - Third Party P,90091942,ASHTON LODGE CARE CENTRE,"3,741.92",17/07/2018,
Delivery Units,Adults and Communities,Other Agencies - Third Party P,90091944,ASHTON LODGE CARE CENTRE,"3,077.64",17/07/2018,
Delivery Units,Adults and Communities,Other Agencies - Third Party P,90091945,ASHTON LODGE CARE CENTRE,"3,520.49",17/07/2018,
Delivery Units,Adults and Communities,Other Agencies - Third Party P,90091947,ASHTON LODGE CARE CENTRE,"3,520.49",17/07/2018,
Delivery Units,Adults and Communities,Other Agencies - Third Party P,90091948,ASHTON LODGE CARE CENTRE,"3,520.49",17/07/2018,
Delivery Units,Adults and Communities,Other Agencies - Third Party P,90091949,ASHTON LODGE CARE CENTRE,"-2,498.41",17/07/2018,
Delivery Units,Adults and Communities,Other Agencies - Third Party P,90091695,AUTUMN GARDENS,"4,800.00",13/07/2018,
Delivery Units,Adults and Communities,Other Agencies - Third Party P,90091700,AUTUMN GARDENS,"4,800.00",13/07/2018,
Delivery Units,Adults and Communities,Other Agencies - Third Party P,90091487,BONDCARE LONDON (THE FOUNTAINS),"2,138.00",13/07/2018,
Delivery Units,Adults and Communities,Other Agencies - Third Party P,80018342,BUPA CARE HOMES,"2,243.03",06/07/2018,
Delivery Units,Adults and Communities,Other Agencies - Third Party P,90089438,BUPA CARE HOMES,"1,297.26",04/07/2018,
Delivery Units,Adults and Communities,Other Agencies - Third Party P,90090566,BUPA CARE HOMES,"2,910.39",13/07/2018,
Delivery Units,Adults and Communities,Other Agencies - Third Party P,90090567,BUPA CARE HOMES,"2,386.50",13/07/2018,
Delivery Units,Adults and Communities,Other Agencies - Third Party P,90091351,BUPA CARE HOMES,"2,641.07",12/07/2018,
Delivery Units,Adults and Communities,Other Agencies - Third Party P,90091352,BUPA CARE HOMES,"3,642.86",12/07/2018,
Delivery Units,Adults and Communities,Other Agencies - Third Party P,90091353,BUPA CARE HOMES,"3,621.21",12/07/2018,
Delivery Units,Adults and Communities,Other Agencies - Third Party P,90091354,BUPA CARE HOMES,"3,400.00",18/07/2018,
Delivery Units,Adults and Communities,Other Agencies - Third Party P,90091356,BUPA CARE HOMES,"2,165.68",18/07/2018,
Delivery Units,Adults and Communities,Other Agencies - Third Party P,90092253,BUPA CARE HOMES,"2,387.19",18/07/2018,
Delivery Units,Adults and Communities,Other Agencies - Third Party P,90092259,BUPA CARE HOMES,"2,466.76",17/07/2018,
Delivery Units,Adults and Communities,Other Agencies - Third Party P,90092272,BUPA CARE HOMES,"2,321.92",17/07/2018,
Delivery Units,Adults and Communities,Other Agencies - Third Party P,90092273,BUPA CARE HOMES,"2,094.52",17/07/2018,
Delivery Units,Adults and Communities,Other Agencies - Third Party P,90092274,BUPA CARE HOMES,"2,549.32",17/07/2018,
Delivery Units,Adults and Communities,Other Agencies - Third Party P,90092573,BUPA CARE HOMES,"3,416.11",19/07/2018,
Delivery Units,Adults and Communities,Other Agencies - Third Party P,90092574,BUPA CARE HOMES,"3,343.57",19/07/2018,
Delivery Units,Adults and Communities,Other Agencies - Third Party P,90092644,BUPA CARE HOMES LTD (SUTTON LODGE),"2,420.00",19/07/2018,
Delivery Units,Adults and Communities,Other Agencies - Third Party P,90094050,BUPA NURSING HOMES LTD - ARKLEY,"2,227.52",26/07/2018,
Delivery Units,Adults and Communities,Other Agencies - Third Party P,90094051,BUPA NURSING HOMES LTD - ARKLEY,"2,227.24",26/07/2018,
Delivery Units,Adults and Communities,Other Agencies - Third Party P,90094052,BUPA NURSING HOMES LTD - ARKLEY,"2,227.14",26/07/2018,
Delivery Units,Adults and Communities,Other Agencies - Third Party P,90094054,BUPA NURSING HOMES LTD - ARKLEY,"2,227.40",26/07/2018,
Delivery Units,Adults and Communities,Other Agencies - Third Party P,90091539,CARE UK COMMUNITY PARTNERSHIPS,"3,426.61",13/07/2018,
Delivery Units,Adults and Communities,Other Agencies - Third Party P,90095223,CARETECH COMMUNITY SERVICES LTD,"4,926.34",31/07/2018,
Delivery Units,Adults and Communities,Other Agencies - Third Party P,90095224,CARETECH COMMUNITY SERVICES LTD,"4,926.34",31/07/2018,
Delivery Units,Adults and Communities,Other Agencies - Third Party P,90090591,FERNBANK NURSING HOME.,"4,221.30",09/07/2018,
Delivery Units,Adults and Communities,Other Agencies - Third Party P,90090726,FERNBANK NURSING HOME.,"2,397.54",10/07/2018,
Delivery Units,Adults and Communities,Other Agencies - Third Party P,90090727,FERNBANK NURSING HOME.,"4,362.01",10/07/2018,
Delivery Units,Adults and Communities,Other Agencies - Third Party P,90090728,FERNBANK NURSING HOME.,"2,413.35",10/07/2018,
Delivery Units,Adults and Communities,Other Agencies - Third Party P,90090729,FERNBANK NURSING HOME.,"2,397.54",10/07/2018,
Delivery Units,Adults and Communities,Other Agencies - Third Party P,90090731,FERNBANK NURSING HOME.,"2,657.01",10/07/2018,
Delivery Units,Adults and Communities,Other Agencies - Third Party P,90090754,FERNBANK NURSING HOME.,"2,318.80",10/07/2018,
Delivery Units,Adults and Communities,Other Agencies - Third Party P,90090755,FERNBANK NURSING HOME.,"2,318.80",10/07/2018,
Delivery Units,Adults and Communities,Other Agencies - Third Party P,90090756,FERNBANK NURSING HOME.,"2,318.80",10/07/2018,
Delivery Units,Adults and Communities,Other Agencies - Third Party P,90094855,FOUR SEASONS HEALTH CARE,"2,550.72",27/07/2018,
Delivery Units,Adults and Communities,Other Agencies - Third Party P,90094857,FOUR SEASONS HEALTH CARE,"2,550.72",27/07/2018,
Delivery Units,Adults and Communities,Other Agencies - Third Party P,90094858,FOUR SEASONS HEALTH CARE,"2,291.36",27/07/2018,
Delivery Units,Adults and Communities,Other Agencies - Third Party P,90094860,FOUR SEASONS HEALTH CARE,"2,551.52",27/07/2018,
Delivery Units,Adults and Communities,Other Agencies - Third Party P,90094861,FOUR SEASONS HEALTH CARE,"2,291.36",27/07/2018,
Delivery Units,Adults and Communities,Other Agencies - Third Party P,90094862,FOUR SEASONS HEALTH CARE,"2,291.36",27/07/2018,
Delivery Units,Adults and Communities,Other Agencies - Third Party P,90094863,FOUR SEASONS HEALTH CARE,"2,291.36",27/07/2018,
Delivery Units,Adults and Communities,Other Agencies - Third Party P,90094864,FOUR SEASONS HEALTH CARE,"2,291.36",27/07/2018,
Delivery Units,Adults and Communities,Other Agencies - Third Party P,90094865,FOUR SEASONS HEALTH CARE,"2,550.72",27/07/2018,
Delivery Units,Adults and Communities,Other Agencies - Third Party P,90087848,FOUR SEASONS HEALTH CARE (NO.4) LTD,"2,004.00",02/07/2018,
Delivery Units,Adults and Communities,Other Agencies - Third Party P,90095163,FOUR SEASONS HEALTH CARE (NO.4) LTD,"2,004.00",30/07/2018,
Delivery Units,Adults and Communities,Other Agencies - Third Party P,90095169,FRISTON HOUSE,"2,963.36",30/07/2018,
Delivery Units,Adults and Communities,Other Agencies - Third Party P,90091506,GCH (HERTFORDSHIRE) LTD T/A,"2,358.76",13/07/2018,
Delivery Units,Adults and Communities,Other Agencies - Third Party P,90092649,HENRY NIHILL HOUSE,"2,165.68",24/07/2018,
Delivery Units,Adults and Communities,Other Agencies - Third Party P,90092650,HENRY NIHILL HOUSE,"2,165.68",24/07/2018,
Delivery Units,Adults and Communities,Other Agencies - Third Party P,90092651,HENRY NIHILL HOUSE,"2,165.68",24/07/2018,
Delivery Units,Adults and Communities,Other Agencies - Third Party P,90092652,HENRY NIHILL HOUSE,"2,165.68",24/07/2018,
Delivery Units,Adults and Communities,Other Agencies - Third Party P,90092653,HENRY NIHILL HOUSE,"2,165.68",24/07/2018,
Delivery Units,Adults and Communities,Other Agencies - Third Party P,90092655,HENRY NIHILL HOUSE,"2,165.68",24/07/2018,
Delivery Units,Adults and Communities,Other Agencies - Third Party P,90092656,HENRY NIHILL HOUSE,"2,165.68",24/07/2018,
Delivery Units,Adults and Communities,Other Agencies - Third Party P,90092657,HENRY NIHILL HOUSE,"2,165.68",24/07/2018,
Delivery Units,Adults and Communities,Other Agencies - Third Party P,90091724,HUSKARDS NEW CARE LTD,"2,397.72",13/07/2018,
Delivery Units,Adults and Communities,Other Agencies - Third Party P,90090950,JEWISH CARE,"2,568.84",10/07/2018,
Delivery Units,Adults and Communities,Other Agencies - Third Party P,90090951,JEWISH CARE,"2,568.84",10/07/2018,
Delivery Units,Adults and Communities,Other Agencies - Third Party P,90090952,JEWISH CARE,"2,319.44",10/07/2018,
Delivery Units,Adults and Communities,Other Agencies - Third Party P,90090953,JEWISH CARE,"2,319.44",10/07/2018,
Delivery Units,Adults and Communities,Other Agencies - Third Party P,90090954,JEWISH CARE,"2,568.84",10/07/2018,
Delivery Units,Adults and Communities,Other Agencies - Third Party P,90090955,JEWISH CARE,"2,319.44",10/07/2018,
Delivery Units,Adults and Communities,Other Agencies - Third Party P,90090956,JEWISH CARE,"2,568.84",10/07/2018,
Delivery Units,Adults and Communities,Other Agencies - Third Party P,90090957,JEWISH CARE,"2,568.84",10/07/2018,
Delivery Units,Adults and Communities,Other Agencies - Third Party P,90090959,JEWISH CARE,"2,319.44",10/07/2018,
Delivery Units,Adults and Communities,Other Agencies - Third Party P,90090960,JEWISH CARE,"2,319.44",10/07/2018,
Delivery Units,Adults and Communities,Other Agencies - Third Party P,90090962,JEWISH CARE,"2,319.44",10/07/2018,
Delivery Units,Adults and Communities,Other Agencies - Third Party P,90090964,JEWISH CARE,"2,568.84",10/07/2018,
Delivery Units,Adults and Communities,Other Agencies - Third Party P,90090965,JEWISH CARE,"2,568.84",10/07/2018,
Delivery Units,Adults and Communities,Other Agencies - Third Party P,90090966,JEWISH CARE,"2,568.84",10/07/2018,
Delivery Units,Adults and Communities,Other Agencies - Third Party P,90090967,JEWISH CARE,"2,319.44",10/07/2018,
Delivery Units,Adults and Communities,Other Agencies - Third Party P,90091042,JEWISH CARE,579.86,10/07/2018,
Delivery Units,Adults and Communities,Other Agencies - Third Party P,90091043,JEWISH CARE,"1,408.23",10/07/2018,
Delivery Units,Adults and Communities,Other Agencies - Third Party P,90091044,JEWISH CARE,"2,568.84",10/07/2018,
Delivery Units,Adults and Communities,Other Agencies - Third Party P,90091045,JEWISH CARE,"2,568.84",10/07/2018,
Delivery Units,Adults and Communities,Other Agencies - Third Party P,90091046,JEWISH CARE,"2,568.84",10/07/2018,
Delivery Units,Adults and Communities,Other Agencies - Third Party P,90091047,JEWISH CARE,"2,319.44",10/07/2018,
Delivery Units,Adults and Communities,Other Agencies - Third Party P,90091048,JEWISH CARE,"2,319.44",10/07/2018,
Delivery Units,Adults and Communities,Other Agencies - Third Party P,90091049,JEWISH CARE,"1,009.19",10/07/2018,
Delivery Units,Adults and Communities,Other Agencies - Third Party P,90091076,JEWISH CARE,"2,319.44",10/07/2018,
Delivery Units,Adults and Communities,Other Agencies - Third Party P,90092300,JEWISH CARE,"2,153.76",17/07/2018,
Delivery Units,Adults and Communities,Other Agencies - Third Party P,90092301,JEWISH CARE,"2,319.44",17/07/2018,
Delivery Units,Adults and Communities,Other Agencies - Third Party P,90092302,JEWISH CARE,"2,319.44",17/07/2018,
Delivery Units,Adults and Communities,Other Agencies - Third Party P,90092303,JEWISH CARE,"2,319.44",17/07/2018,
Delivery Units,Adults and Communities,Other Agencies - Third Party P,90092309,JEWISH CARE,"2,568.84",17/07/2018,
Delivery Units,Adults and Communities,Other Agencies - Third Party P,90092313,JEWISH CARE,"3,302.79",17/07/2018,
Delivery Units,Adults and Communities,Other Agencies - Third Party P,90091518,KARUNA MANOR,"4,207.14",13/07/2018,
Delivery Units,Adults and Communities,Other Agencies - Third Party P,90092579,M D HOMES,"3,072.32",19/07/2018,
Delivery Units,Adults and Communities,Other Agencies - Third Party P,90092568,MEERA NURSING HOME LIMITED,"2,445.68",19/07/2018,
Delivery Units,Adults and Communities,Other Agencies - Third Party P,90092569,MEERA NURSING HOME LIMITED,"2,445.68",19/07/2018,
Delivery Units,Adults and Communities,Other Agencies - Third Party P,90092570,MEERA NURSING HOME LIMITED,"2,445.68",19/07/2018,
Delivery Units,Adults and Communities,Other Agencies - Third Party P,90092571,MEERA NURSING HOME LIMITED,"2,708.65",19/07/2018,
Delivery Units,Adults and Communities,Other Agencies - Third Party P,90092575,MEERA NURSING HOME LIMITED,"2,907.93",19/07/2018,
Delivery Units,Adults and Communities,Other Agencies - Third Party P,80018245,NEEM TREE CARE CENTRE,"3,835.71",06/07/2018,
Delivery Units,Adults and Communities,Other Agencies - Third Party P,90087837,NEEM TREE CARE CENTRE,"7,799.29",02/07/2018,
Delivery Units,Adults and Communities,Other Agencies - Third Party P,90094365,NEEM TREE CARE CENTRE,"3,963.57",25/07/2018,
Delivery Units,Adults and Communities,Other Agencies - Third Party P,90090544,NEWCENTURY CARE LTD,"2,398.56",09/07/2018,
Delivery Units,Adults and Communities,Other Agencies - Third Party P,90092513,NEWCENTURY CARE LTD,"3,321.43",19/07/2018,
Delivery Units,Adults and Communities,Other Agencies - Third Party P,90092514,NEWCENTURY CARE LTD,"3,764.29",19/07/2018,
Delivery Units,Adults and Communities,Other Agencies - Third Party P,90092515,NEWCENTURY CARE LTD,"4,198.29",19/07/2018,
Delivery Units,Adults and Communities,Other Agencies - Third Party P,90092517,NEWCENTURY CARE LTD,"4,340.00",19/07/2018,
Delivery Units,Adults and Communities,Other Agencies - Third Party P,90092518,NEWCENTURY CARE LTD,"3,985.71",19/07/2018,
Delivery Units,Adults and Communities,Other Agencies - Third Party P,90092519,NEWCENTURY CARE LTD,"3,985.71",19/07/2018,
Delivery Units,Adults and Communities,Other Agencies - Third Party P,90092520,NEWCENTURY CARE LTD,"3,321.43",19/07/2018,
Delivery Units,Adults and Communities,Other Agencies - Third Party P,90092522,NEWCENTURY CARE LTD,"3,321.43",19/07/2018,
Delivery Units,Adults and Communities,Other Agencies - Third Party P,90093397,NEWCENTURY CARE LTD,"2,398.56",20/07/2018,
Delivery Units,Adults and Communities,Other Agencies - Third Party P,90094872,NIGHTINGALE HOUSE,"2,900.71",27/07/2018,
Delivery Units,Adults and Communities,Other Agencies - Third Party P,90090555,SAGE NURSING HOME,"5,142.86",09/07/2018,
Delivery Units,Adults and Communities,Other Agencies - Third Party P,90090557,SAGE NURSING HOME,"2,320.37",09/07/2018,
Delivery Units,Adults and Communities,Other Agencies - Third Party P,90090559,SAGE NURSING HOME,"2,698.37",09/07/2018,
Delivery Units,Adults and Communities,Other Agencies - Third Party P,90090560,SAGE NURSING HOME,"3,259.09",09/07/2018,
Delivery Units,Adults and Communities,Other Agencies - Third Party P,90090561,SAGE NURSING HOME,"3,214.29",09/07/2018,
Delivery Units,Adults and Communities,Other Agencies - Third Party P,90090562,SAGE NURSING HOME,"2,436.39",09/07/2018,
Delivery Units,Adults and Communities,Other Agencies - Third Party P,90090563,SAGE NURSING HOME,"2,436.39",09/07/2018,
Delivery Units,Adults and Communities,Other Agencies - Third Party P,90092578,SANCTUARY CARE LTD,"2,573.84",19/07/2018,
Delivery Units,Adults and Communities,Other Agencies - Third Party P,90090645,SONESTA NURSING HOME LTD.,"2,397.72",10/07/2018,
Delivery Units,Adults and Communities,Other Agencies - Third Party P,90090646,SONESTA NURSING HOME LTD.,"2,655.55",10/07/2018,
Delivery Units,Adults and Communities,Other Agencies - Third Party P,90090648,SONESTA NURSING HOME LTD.,"2,399.58",10/07/2018,
Delivery Units,Adults and Communities,Other Agencies - Third Party P,90090649,SONESTA NURSING HOME LTD.,"2,569.89",10/07/2018,
Delivery Units,Adults and Communities,Other Agencies - Third Party P,90090650,SONESTA NURSING HOME LTD.,"2,320.37",10/07/2018,
Delivery Units,Adults and Communities,Other Agencies - Third Party P,90090652,SONESTA NURSING HOME LTD.,"2,569.89",10/07/2018,
Delivery Units,Adults and Communities,Other Agencies - Third Party P,90090654,SONESTA NURSING HOME LTD.,"2,322.17",10/07/2018,
Delivery Units,Adults and Communities,Other Agencies - Third Party P,90092590,SONESTA NURSING HOME LTD.,"2,399.58",19/07/2018,
Delivery Units,Adults and Communities,Other Agencies - Third Party P,90092591,SONESTA NURSING HOME LTD.,"2,655.55",19/07/2018,
Delivery Units,Adults and Communities,Other Agencies - Third Party P,90092592,SONESTA NURSING HOME LTD.,"2,397.72",19/07/2018,
Delivery Units,Adults and Communities,Other Agencies - Third Party P,90089448,ST ANNS HOME-LITTLE SISTERS OF THE POOR,"2,397.73",04/07/2018,
Delivery Units,Adults and Communities,Other Agencies - Third Party P,90094671,ST JOHNS WOOD CARE CENTRE,"2,856.21",30/07/2018,
Delivery Units,Adults and Communities,Other Agencies - Third Party P,90089769,SUNRISE SENIOR LIVING,"25,323.24",06/07/2018,
Delivery Units,Adults and Communities,Other Agencies - Third Party P,90090570,THE LEONARD CHESHIRE FOUNDATION,"6,321.43",26/07/2018,
Delivery Units,Adults and Communities,Other Agencies - Third Party P,90090572,VICTORIA CARE CENTRE,"2,958.95",09/07/2018,
Delivery Units,Adults and Communities,Other Agencies - Third Party P,90094668,VICTORIA CARE CENTRE,"2,863.50",26/07/2018,
Delivery Units,Adults and Communities,Other Agencies - Third Party P,90092577,WESTGATE HOUSE CARE CENTRE,"3,725.76",20/07/2018,
Delivery Units,Adults and Communities,Other Agencies - Third Party P,90090745,WESTMINSTER HEALTH CARE LTD,"2,244.13",10/07/2018,
Delivery Units,Adults and Communities,Other Agencies - Third Party P,90091384,WESTMINSTER HEALTH CARE LTD,"2,235.94",13/07/2018,
Delivery Units,Adults and Communities,Other Agencies - Third Party P,90091385,WESTMINSTER HEALTH CARE LTD,"2,219.61",13/07/2018,
Delivery Units,Adults and Communities,Other Agencies - Third Party P,90091386,WESTMINSTER HEALTH CARE LTD,"2,235.94",13/07/2018,
Delivery Units,Adults and Communities,Other Services,80018912,AGUDAS ISRAEL HOUSING ASSCTN LTD,"2,500.00",31/07/2018,
Delivery Units,Adults and Communities,Other Agencies - Third Party P,90095158,AGUDAS ISRAEL HOUSING ASSCTN LTD,"2,662.20",31/07/2018,
Delivery Units,Adults and Communities,Other Agencies - Third Party P,90090733,ALEXANDRA HOUSE (RUNWOOD HOMES),"2,189.70",10/07/2018,
Delivery Units,Adults and Communities,Other Agencies - Third Party P,90091698,ANASTASIA LODGE,"2,800.00",13/07/2018,
Delivery Units,Adults and Communities,Other Agencies - Third Party P,90094672,APPLE TREE COURT CARE HOME,"2,448.78",26/07/2018,
Delivery Units,Adults and Communities,Other Agencies - Third Party P,90093376,ASHFIELDS RESIDENTIAL CARE HOME,"2,448.78",20/07/2018,
Delivery Units,Adults and Communities,Other Agencies - Third Party P,90093377,ASHFIELDS RESIDENTIAL CARE HOME,"2,448.78",20/07/2018,
Delivery Units,Adults and Communities,Other Agencies - Third Party P,90093378,ASHFIELDS RESIDENTIAL CARE HOME,"2,657.14",20/07/2018,
Delivery Units,Adults and Communities,Other Agencies - Third Party P,90093380,ASHFIELDS RESIDENTIAL CARE HOME,"2,502.14",20/07/2018,
Delivery Units,Adults and Communities,Other Agencies - Third Party P,90093382,ASHFIELDS RESIDENTIAL CARE HOME,"2,448.78",20/07/2018,
Delivery Units,Adults and Communities,Other Agencies - Third Party P,90093383,ASHFIELDS RESIDENTIAL CARE HOME,"2,249.27",20/07/2018,
Delivery Units,Adults and Communities,Other Agencies - Third Party P,90093387,ASHFIELDS RESIDENTIAL CARE HOME,"2,369.79",20/07/2018,
Delivery Units,Adults and Communities,Other Agencies - Third Party P,90093388,ASHFIELDS RESIDENTIAL CARE HOME,"2,369.79",20/07/2018,
Delivery Units,Adults and Communities,Other Agencies - Third Party P,90093389,ASHFIELDS RESIDENTIAL CARE HOME,"2,176.71",20/07/2018,
Delivery Units,Adults and Communities,Other Agencies - Third Party P,90093398,ASHFIELDS RESIDENTIAL CARE HOME,"2,369.79",20/07/2018,
Delivery Units,Adults and Communities,Other Agencies - Third Party P,90093399,ASHFIELDS RESIDENTIAL CARE HOME,"2,421.43",20/07/2018,
Delivery Units,Adults and Communities,Other Agencies - Third Party P,90093400,ASHFIELDS RESIDENTIAL CARE HOME,"2,571.43",20/07/2018,
Delivery Units,Adults and Communities,Other Agencies - Third Party P,90094425,ASHFIELDS RESIDENTIAL CARE HOME,"3,159.72",25/07/2018,
Delivery Units,Adults and Communities,Other Agencies - Third Party P,90091931,ASHTON LODGE CARE CENTRE,"2,844.07",17/07/2018,
Delivery Units,Adults and Communities,Other Agencies - Third Party P,90091940,ASHTON LODGE CARE CENTRE,"2,622.64",17/07/2018,
Delivery Units,Adults and Communities,Other Agencies - Third Party P,90091696,AUTUMN GARDENS,"2,880.00",13/07/2018,
Delivery Units,Adults and Communities,Other Agencies - Third Party P,90091697,AUTUMN GARDENS,"3,160.00",13/07/2018,
Delivery Units,Adults and Communities,Other Agencies - Third Party P,90091509,B & M CARE,"2,249.45",13/07/2018,
Delivery Units,Adults and Communities,Other Agencies - Third Party P,90091510,B & M CARE,"2,316.94",13/07/2018,
Delivery Units,Adults and Communities,Other Agencies - Third Party P,90091515,B & M CARE,"3,321.43",13/07/2018,
Delivery Units,Adults and Communities,Other Agencies - Third Party P,90090752,BELMONT LODGE CARE CENTRE,"2,404.71",10/07/2018,
Delivery Units,Adults and Communities,Other Agencies - Third Party P,90091909,BIRCHWOOD GRANGE CARE HOME,"2,657.14",17/07/2018,
Delivery Units,Adults and Communities,Other Agencies - Third Party P,90094426,BIRCHWOOD GRANGE CARE HOME,"2,400.00",25/07/2018,
Delivery Units,Adults and Communities,Other Agencies - Third Party P,90092257,BUPA CARE HOMES,"2,369.79",17/07/2018,
Delivery Units,Adults and Communities,Other Agencies - Third Party P,90092258,BUPA CARE HOMES,"2,239.59",17/07/2018,
Delivery Units,Adults and Communities,Other Agencies - Third Party P,90092267,BUPA CARE HOMES,"2,239.59",18/07/2018,
Delivery Units,Adults and Communities,Other Agencies - Third Party P,90094053,BUPA NURSING HOMES LTD - ARKLEY,"2,089.68",26/07/2018,
Delivery Units,Adults and Communities,Other Agencies - Third Party P,80018595,CARLTON COURT (TLC GROUP),"48,479.67",19/07/2018,
Delivery Units,Adults and Communities,Other Agencies - Third Party P,90087845,CATHERINE LODGE,"1,817.14",06/07/2018,
Delivery Units,Adults and Communities,Other Agencies - Third Party P,90092529,CATHERINE LODGE,"2,211.80",19/07/2018,
Delivery Units,Adults and Communities,Other Agencies - Third Party P,90092530,CATHERINE LODGE,"3,365.71",19/07/2018,
Delivery Units,Adults and Communities,Other Agencies - Third Party P,90092531,CATHERINE LODGE,"2,448.78",19/07/2018,
Delivery Units,Adults and Communities,Other Agencies - Third Party P,90092532,CATHERINE LODGE,"3,476.43",19/07/2018,
Delivery Units,Adults and Communities,Other Agencies - Third Party P,90092533,CATHERINE LODGE,"3,520.71",19/07/2018,
Delivery Units,Adults and Communities,Other Agencies - Third Party P,90094045,CATHERINE LODGE,"3,520.71",25/07/2018,
Delivery Units,Adults and Communities,Other Agencies - Third Party P,90095227,CATHERINE LODGE,"1,152.00",31/07/2018,
Delivery Units,Adults and Communities,Other Agencies - Third Party P,90091678,CLOVELLY HOUSE RESID. HOME LTD,"2,304.00",13/07/2018,
Delivery Units,Adults and Communities,Other Agencies - Third Party P,90091679,CLOVELLY HOUSE RESID. HOME LTD,"2,600.00",13/07/2018,
Delivery Units,Adults and Communities,Other Agencies - Third Party P,90091680,CLOVELLY HOUSE RESID. HOME LTD,"2,304.00",13/07/2018,
Delivery Units,Adults and Communities,Other Agencies - Third Party P,90091683,CLOVELLY HOUSE RESID. HOME LTD,"2,780.00",13/07/2018,
Delivery Units,Adults and Communities,Other Agencies - Third Party P,90091685,CLOVELLY HOUSE RESID. HOME LTD,"2,780.00",13/07/2018,
Delivery Units,Adults and Communities,Other Agencies - Third Party P,90091686,CLOVELLY HOUSE RESID. HOME LTD,"2,780.00",13/07/2018,
Delivery Units,Adults and Communities,Other Agencies - Third Party P,90091687,CLOVELLY HOUSE RESID. HOME LTD,"2,600.00",13/07/2018,
Delivery Units,Adults and Communities,Other Agencies - Third Party P,90091691,CLOVELLY HOUSE RESID. HOME LTD,"2,600.00",13/07/2018,
Delivery Units,Adults and Communities,Other Agencies - Third Party P,90091692,CLOVELLY HOUSE RESID. HOME LTD,992.86,13/07/2018,
Delivery Units,Adults and Communities,Other Agencies - Third Party P,90091549,EASTSIDE HOUSE RESIDENTIAL CARE HOM,"3,080.00",13/07/2018,
Delivery Units,Adults and Communities,Other Agencies - Third Party P,90091725,ELEANOR PALMER TRUST NO 2 A/C.,"2,546.74",13/07/2018,
Delivery Units,Adults and Communities,Other Agencies - Third Party P,90091726,ELEANOR PALMER TRUST NO 2 A/C.,"2,546.74",13/07/2018,
Delivery Units,Adults and Communities,Other Agencies - Third Party P,90091727,ELEANOR PALMER TRUST NO 2 A/C.,"2,339.44",13/07/2018,
Delivery Units,Adults and Communities,Other Agencies - Third Party P,90091728,ELEANOR PALMER TRUST NO 2 A/C.,"2,546.74",13/07/2018,
Delivery Units,Adults and Communities,Other Agencies - Third Party P,90091729,ELEANOR PALMER TRUST NO 2 A/C.,"3,321.43",13/07/2018,
Delivery Units,Adults and Communities,Other Agencies - Third Party P,90091730,ELEANOR PALMER TRUST NO 2 A/C.,"2,546.74",13/07/2018,
Delivery Units,Adults and Communities,Other Agencies - Third Party P,90091731,ELEANOR PALMER TRUST NO 2 A/C.,"3,321.43",13/07/2018,
Delivery Units,Adults and Communities,Other Agencies - Third Party P,90091732,ELEANOR PALMER TRUST NO 2 A/C.,"2,339.44",13/07/2018,
Delivery Units,Adults and Communities,Other Agencies - Third Party P,90091733,ELEANOR PALMER TRUST NO 2 A/C.,"2,339.44",13/07/2018,
Delivery Units,Adults and Communities,Other Agencies - Third Party P,90091734,ELEANOR PALMER TRUST NO 2 A/C.,"3,321.43",13/07/2018,
Delivery Units,Adults and Communities,Other Agencies - Third Party P,90091735,ELEANOR PALMER TRUST NO 2 A/C.,"3,321.43",13/07/2018,
Delivery Units,Adults and Communities,Other Agencies - Third Party P,90091736,ELEANOR PALMER TRUST NO 2 A/C.,"2,339.44",13/07/2018,
Delivery Units,Adults and Communities,Other Agencies - Third Party P,90091737,ELEANOR PALMER TRUST NO 2 A/C.,"-1,200.00",13/07/2018,
Delivery Units,Adults and Communities,Other Agencies - Third Party P,90091738,ELEANOR PALMER TRUST NO 2 A/C.,"3,321.43",13/07/2018,
Delivery Units,Adults and Communities,Other Agencies - Third Party P,90091739,ELEANOR PALMER TRUST NO 2 A/C.,"2,546.74",13/07/2018,
Delivery Units,Adults and Communities,Other Agencies - Third Party P,90091740,ELEANOR PALMER TRUST NO 2 A/C.,"3,321.43",13/07/2018,
Delivery Units,Adults and Communities,Other Agencies - Third Party P,90091741,ELEANOR PALMER TRUST NO 2 A/C.,"3,321.43",13/07/2018,
Delivery Units,Adults and Communities,Other Agencies - Third Party P,90091742,ELEANOR PALMER TRUST NO 2 A/C.,"3,321.43",13/07/2018,
Delivery Units,Adults and Communities,Other Agencies - Third Party P,90095170,ELEANOR PALMER TRUST NO 2 A/C.,107.14,31/07/2018,
Delivery Units,Adults and Communities,Other Agencies - Third Party P,90095171,ELEANOR PALMER TRUST NO 2 A/C.,"2,339.44",31/07/2018,
Delivery Units,Adults and Communities,Other Agencies - Third Party P,90095172,ELEANOR PALMER TRUST NO 2 A/C.,"2,035.71",31/07/2018,
Delivery Units,Adults and Communities,Other Agencies - Third Party P,90095173,ELEANOR PALMER TRUST NO 2 A/C.,"1,928.57",31/07/2018,
Delivery Units,Adults and Communities,Other Agencies - Third Party P,90095174,ELEANOR PALMER TRUST NO 2 A/C.,"3,321.43",31/07/2018,
Delivery Units,Adults and Communities,Other Agencies - Third Party P,90095175,ELEANOR PALMER TRUST NO 2 A/C.,"3,321.43",31/07/2018,
Delivery Units,Adults and Communities,Other Agencies - Third Party P,90095176,ELEANOR PALMER TRUST NO 2 A/C.,"3,000.00",31/07/2018,
Delivery Units,Adults and Communities,Other Agencies - Third Party P,90095177,ELEANOR PALMER TRUST NO 2 A/C.,507.94,31/07/2018,
Delivery Units,Adults and Communities,Other Agencies - Third Party P,90095178,ELEANOR PALMER TRUST NO 2 A/C.,"3,321.43",31/07/2018,
Delivery Units,Adults and Communities,Other Agencies - Third Party P,90095179,ELEANOR PALMER TRUST NO 2 A/C.,642.86,31/07/2018,
Delivery Units,Adults and Communities,Other Agencies - Third Party P,90095237,ELEANOR PALMER TRUST NO 2 A/C.,97.96,31/07/2018,
Delivery Units,Adults and Communities,Other Agencies - Third Party P,90095238,ELEANOR PALMER TRUST NO 2 A/C.,97.96,31/07/2018,
Delivery Units,Adults and Communities,Other Agencies - Third Party P,90095239,ELEANOR PALMER TRUST NO 2 A/C.,89.99,31/07/2018,
Delivery Units,Adults and Communities,Other Agencies - Third Party P,90095240,ELEANOR PALMER TRUST NO 2 A/C.,89.99,31/07/2018,
Delivery Units,Adults and Communities,Other Agencies - Third Party P,90095241,ELEANOR PALMER TRUST NO 2 A/C.,97.96,31/07/2018,
Delivery Units,Adults and Communities,Other Agencies - Third Party P,90095242,ELEANOR PALMER TRUST NO 2 A/C.,97.96,31/07/2018,
Delivery Units,Adults and Communities,Other Agencies - Third Party P,90095244,ELEANOR PALMER TRUST NO 2 A/C.,297.29,31/07/2018,
Delivery Units,Adults and Communities,Other Agencies - Third Party P,90095245,ELEANOR PALMER TRUST NO 2 A/C.,89.99,31/07/2018,
Delivery Units,Adults and Communities,Other Agencies - Third Party P,90095246,ELEANOR PALMER TRUST NO 2 A/C.,97.96,31/07/2018,
Delivery Units,Adults and Communities,Other Agencies - Third Party P,90095248,ELEANOR PALMER TRUST NO 2 A/C.,89.99,31/07/2018,
Delivery Units,Adults and Communities,Other Agencies - Third Party P,90095249,ELEANOR PALMER TRUST NO 2 A/C.,97.96,31/07/2018,
Delivery Units,Adults and Communities,Other Agencies - Third Party P,90095250,ELEANOR PALMER TRUST NO 2 A/C.,88.48,31/07/2018,
Delivery Units,Adults and Communities,Other Agencies - Third Party P,90095251,ELEANOR PALMER TRUST NO 2 A/C.,88.48,31/07/2018,
Delivery Units,Adults and Communities,Other Agencies - Third Party P,90095252,ELEANOR PALMER TRUST NO 2 A/C.,81.28,31/07/2018,
Delivery Units,Adults and Communities,Other Agencies - Third Party P,90095253,ELEANOR PALMER TRUST NO 2 A/C.,81.28,31/07/2018,
Delivery Units,Adults and Communities,Other Agencies - Third Party P,90095254,ELEANOR PALMER TRUST NO 2 A/C.,88.48,31/07/2018,
Delivery Units,Adults and Communities,Other Agencies - Third Party P,90095255,ELEANOR PALMER TRUST NO 2 A/C.,88.48,31/07/2018,
Delivery Units,Adults and Communities,Other Agencies - Third Party P,90095257,ELEANOR PALMER TRUST NO 2 A/C.,268.52,31/07/2018,
Delivery Units,Adults and Communities,Other Agencies - Third Party P,90095258,ELEANOR PALMER TRUST NO 2 A/C.,81.28,31/07/2018,
Delivery Units,Adults and Communities,Other Agencies - Third Party P,90095259,ELEANOR PALMER TRUST NO 2 A/C.,88.48,31/07/2018,
Delivery Units,Adults and Communities,Other Agencies - Third Party P,90095260,ELEANOR PALMER TRUST NO 2 A/C.,81.28,31/07/2018,
Delivery Units,Adults and Communities,Other Agencies - Third Party P,90095261,ELEANOR PALMER TRUST NO 2 A/C.,88.48,31/07/2018,
Delivery Units,Adults and Communities,Other Agencies - Third Party P,90089459,ELM PARK LODGE,"1,720.93",09/07/2018,
Delivery Units,Adults and Communities,Other Agencies - Third Party P,90089461,ELM PARK LODGE,"3,068.57",09/07/2018,
Delivery Units,Adults and Communities,Other Agencies - Third Party P,80018434,FERNBANK NURSING HOME.,"19,974.36",12/07/2018,
Delivery Units,Adults and Communities,Other Agencies - Third Party P,90092560,FINBOND LIMITED,"3,542.86",19/07/2018,
